{"text_format":"3","workbook":"xlsx","n_sheets":15,"sheets":["Jak korzystać z tego szablonu","Lista uczniów","Sierpień","Wrzesień","Październik","Listopad","Grudzień","Styczeń","Luty","Marzec","Kwiecień","Maj","Czerwiec","Lipiec","Raport obecności ucznia"],"not_rendered":{"defined_names":16},"read":"whole","date_system":"1900"}

{"sheet":"Jak korzystać z tego szablonu","index":0,"n_rows":25,"n_cols":5,"rows_kept":25,"merged":[[3,2,3,12],[4,4,4,12],[5,4,5,12],[6,4,6,12],[7,4,7,12],[8,4,8,7],[11,2,11,12],[12,4,12,12],[13,4,13,12],[14,4,14,12],[17,2,17,12],[18,4,18,12],[19,4,19,12],[20,4,20,12],[21,4,21,12],[24,2,24,12]]}
["JAK KORZYSTAĆ Z TEGO SZABLONU"]
[]
[null,"OD CZEGO ZACZĄĆ?"]
[null,null,"Przed rozpoczęciem śledzenia obecności uczniów musisz zrobić kilka rzeczy:"]
[{"$nulls":3},"1.","Dodaj uczniów: w arkuszu Lista uczniów podaj informacje dla poszczególnych uczniów, takie jak nazwiska opiekunów i dane kontaktowe. Identyfikator ucznia to ważna pozycja, ponieważ zapewnia unikatowy identyfikator każdego ucznia i jest używana w całym skoroszycie w różnych listach rozwijanych Identyfikator ucznia w celu ułatwienia wprowadzania danych. Informacje podane w arkuszu Lista uczniów są też używane w innych arkuszach, na przykład w arkuszu Raport obecności ucznia i w miesięcznych rejestrach obecności."]
[{"$nulls":3},"2.","Zmień rok kalendarza szkolnego: w arkuszu Sierpień z danymi o obecności kliknij kontrolkę pokrętła w prawym górnym rogu nagłówka, aby zaktualizować rok kalendarza szkolnego. Ta zmiana spowoduje zaktualizowanie nagłówków wszystkich miesięcznych rejestrów obecności w skoroszycie. Przycisk pokrętła nie jest drukowany."]
[{"$nulls":3},"3.","(Opcjonalnie). Zmodyfikuj kolory w skoroszycie: najpierw przejdź do ostatniego arkusza, Raport obecności ucznia, i na karcie Recenzja w grupie Zmiany kliknij przycisk Nie chroń arkusza. Następnie na karcie Układ strony w grupie Motywy kliknij przycisk Kolory i wybierz z galerii kolorów inny zestaw kolorów motywu. Po wprowadzeniu zmian kolorów i wszelkich innych zmian motywu wróć do arkusza Raport obecności ucznia i na karcie Recenzja w grupie Zmiany kliknij przycisk Chroń arkusz, a następnie kliknij przycisk OK."]
[{"$nulls":4},"Porada Możesz utworzyć niestandardowy zestaw kolorów motywu pasujący do kolorów Twojej szkoły. W tym celu na karcie Układ strony w grupie Motywy kliknij przycisk Kolory, a następnie u dołu galerii kolorów kliknij pozycję Utwórz nowe kolory motywu. Aby dowiedzieć się więcej o tworzeniu niestandardowego zestawu kolorów, zobacz następujący temat Pomocy: "]
[{"$nulls":4},"Dostosowywanie motywu dokumentu."]
[]
[null,"UCZNIOWIE JUŻ DODANI. CO TERAZ?"]
[null,null,"Po wpisaniu danych uczniów w arkuszu Lista uczniów można rozpocząć śledzenie obecności w roku szkolnym według schematu:"]
[{"$nulls":3},"1.","Aby dodać ucznia do rejestru obecności, kliknij komórkę poniżej kolumny Identyfikator ucznia i wybierz z listy identyfikator. Po wybraniu identyfikatora zostanie automatycznie wyświetlone nazwisko ucznia. "]
[{"$nulls":4},"Porada Przyspiesz sobie pracę nad wprowadzaniem danych: po dodaniu uczniów dla jednego miesiąca zaznacz wprowadzone identyfikatory uczniów, skopiuj je i wklej w kolumnach Identyfikator ucznia dla pozostałych miesięcy. "]
[{"$nulls":3},"2.","Następnie wypełnij rejestr obecności dla każdego dnia miesiąca, wpisując opcje obecności według legendy kolorów. Obecność jest obliczana automatycznie według opcji obecności dla poszczególnych uczniów w kolumnie Sumy. Łączna liczba nieobecności w każdym dniu jest obliczana automatycznie u dołu tabeli w wierszu sumy."]
[]
[null,"JAK DODAĆ KOLEJNYCH UCZNIÓW DO MIESIĘCZNEGO REJESTRU OBECNOŚCI?"]
[null,null,"Arkusze miesięcznych rejestrów obecności i Lista uczniów to tabele programu Excel. Aby dodać nowe wiersze do dowolnej tabeli programu Excel, wykonaj jedną z następujących czynności:"]
[{"$nulls":3},"● ","Jeśli w tabeli nie ma wiersza sumy, zacznij pisać poniżej tabeli, a gdy naciśniesz klawisz Enter lub Tab, tabela zostanie automatycznie rozszerzona."]
[{"$nulls":3},"● ","Umieść wskaźnik komórki na ostatniej komórce powyżej wiersza sumy, na przykład na komórce Dni nieobecności dla ostatniego ucznia, a następnie naciśnij klawisz Tab."]
[{"$nulls":3},"● ","Kliknij prawym przyciskiem myszy w tabeli i w menu podręcznym wskaż polecenie Wstaw, a następnie kliknij polecenie Wiersze tabeli powyżej lub Wiersze tabeli poniżej. "]
[{"$nulls":3},"● ","W prawym dolnym rogu tabeli umieść wskaźnik myszy na uchwycie zmiany rozmiaru tabeli i przeciągnij go w dół, aby zwiększyć liczbę dostępnych wierszy tabeli."]
[]
[null,"CZY MOGĘ WYŚWIETLIĆ OBECNOŚCI UCZNIÓW W CAŁYM ROKU SZKOLNYM?"]
[null,null,"Ostatni arkusz w tym skoroszycie, Raport obecności ucznia, służy do śledzenia obecności od początku roku. Aby wyświetlić raport dla konkretnego ucznia, kliknij komórkę poniżej pozycji Identyfikator ucznia i wybierz z listy rozwijanej odpowiedni identyfikator. Zostaną automatycznie wyświetlone informacje podane wcześniej dla tego ucznia w arkuszu Lista uczniów. Używając arkusza Raport obecności ucznia pierwszy raz, należy wypełnić pola Szkoła, Klasa, Nauczyciel i Sala. Te informacje nie zostaną zmienione po wybraniu innego ucznia. "]

{"sheet":"Lista uczniów","index":1,"n_rows":8,"n_cols":19,"rows_kept":8}
["LISTA UCZNIÓW"]
[]
[null,"Identyfikator ucznia","Imię ucznia","Nazwisko ucznia","Płeć","Data urodzenia","Rodzic lub opiekun 1","Rodzic/opiekun 1: pokrewieństwo","Rodzic/opiekun 1: telefon służbowy","Rodzic/opiekun 1: telefon domowy","Rodzic/opiekun 2","Rodzic/opiekun 2: pokrewieństwo","Rodzic/opiekun 2: telefon służbowy","Rodzic/opiekun 2: telefon domowy","Kontakt w razie nagłych wypadków","Kontakt w razie nagłych wypadków: pokrewieństwo","Kontakt w razie nagłych wypadków: telefon służbowy","Kontakt w razie nagłych wypadków: telefon domowy","Imię i nazwisko ucznia"]
[null,"S001","Witold","Dyszkiewicz","M","1997-03-28","Karolina Dyszkiewicz","Matka",1235550134,2345550134,"Wojciech Dyszkiewicz","Ojciec",1235550134,2345550134,"Maciej Fedorow","Dziadek",7895550189,7895550134,{"$f":"ListaUczniów[[#This Row],[Imię ucznia]]&\" \"&ListaUczniów[[#This Row],[Nazwisko ucznia]]","v":"Witold Dyszkiewicz"}]
[null,"S002","Uczeń",2,{"$nulls":14},{"$f":"ListaUczniów[[#This Row],[Imię ucznia]]&\" \"&ListaUczniów[[#This Row],[Nazwisko ucznia]]","v":"Uczeń 2"}]
[null,"S003","Uczeń",3,{"$nulls":14},{"$f":"ListaUczniów[[#This Row],[Imię ucznia]]&\" \"&ListaUczniów[[#This Row],[Nazwisko ucznia]]","v":"Uczeń 3"}]
[null,"S004","Uczeń",4,{"$nulls":14},{"$f":"ListaUczniów[[#This Row],[Imię ucznia]]&\" \"&ListaUczniów[[#This Row],[Nazwisko ucznia]]","v":"Uczeń 4"}]
[null,"S005","Uczeń",5,{"$nulls":14},{"$f":"ListaUczniów[[#This Row],[Imię ucznia]]&\" \"&ListaUczniów[[#This Row],[Nazwisko ucznia]]","v":"Uczeń 5"}]

{"sheet":"Sierpień","index":2,"n_rows":12,"n_cols":39,"rows_kept":12,"merged":[[4,34,4,38]]}
["REJESTR OBECNOŚCI UCZNIA",{"$nulls":36},"Początek roku szkolnego:",2012]
[]
[null,null,"LEGENDA KOLORÓW ","S","Spóźnienie",null,null,"U","Nieobecność usprawiedliwiona",{"$nulls":5},"N","Nieobecność nieusprawiedliwiona",{"$nulls":5},"O","Obecność",null,null,"B","Brak zajęć"]
[]
[null,{"$f":"DATE(RokKalendarzowy,8,1)","v":"2012-08-01"},null,{"$f":"TEXT(WEEKDAY(DATE(RokKalendarzowy,8,1),1),\"aaa\")","v":"Śr"},{"$f":"TEXT(WEEKDAY(DATE(RokKalendarzowy,8,2),1),\"aaa\")","v":"Cz"},{"$f":"TEXT(WEEKDAY(DATE(RokKalendarzowy,8,3),1),\"aaa\")","v":"Pt"},{"$f":"TEXT(WEEKDAY(DATE(RokKalendarzowy,8,4),1),\"aaa\")","v":"So"},{"$f":"TEXT(WEEKDAY(DATE(RokKalendarzowy,8,5),1),\"aaa\")","v":"N"},{"$f":"TEXT(WEEKDAY(DATE(RokKalendarzowy,8,6),1),\"aaa\")","v":"Pn"},{"$f":"TEXT(WEEKDAY(DATE(RokKalendarzowy,8,7),1),\"aaa\")","v":"Wt"},{"$f":"TEXT(WEEKDAY(DATE(RokKalendarzowy,8,8),1),\"aaa\")","v":"Śr"},{"$f":"TEXT(WEEKDAY(DATE(RokKalendarzowy,8,9),1),\"aaa\")","v":"Cz"},{"$f":"TEXT(WEEKDAY(DATE(RokKalendarzowy,8,10),1),\"aaa\")","v":"Pt"},{"$f":"TEXT(WEEKDAY(DATE(RokKalendarzowy,8,11),1),\"aaa\")","v":"So"},{"$f":"TEXT(WEEKDAY(DATE(RokKalendarzowy,8,12),1),\"aaa\")","v":"N"},{"$f":"TEXT(WEEKDAY(DATE(RokKalendarzowy,8,13),1),\"aaa\")","v":"Pn"},{"$f":"TEXT(WEEKDAY(DATE(RokKalendarzowy,8,14),1),\"aaa\")","v":"Wt"},{"$f":"TEXT(WEEKDAY(DATE(RokKalendarzowy,8,15),1),\"aaa\")","v":"Śr"},{"$f":"TEXT(WEEKDAY(DATE(RokKalendarzowy,8,16),1),\"aaa\")","v":"Cz"},{"$f":"TEXT(WEEKDAY(DATE(RokKalendarzowy,8,17),1),\"aaa\")","v":"Pt"},{"$f":"TEXT(WEEKDAY(DATE(RokKalendarzowy,8,18),1),\"aaa\")","v":"So"},{"$f":"TEXT(WEEKDAY(DATE(RokKalendarzowy,8,19),1),\"aaa\")","v":"N"},{"$f":"TEXT(WEEKDAY(DATE(RokKalendarzowy,8,20),1),\"aaa\")","v":"Pn"},{"$f":"TEXT(WEEKDAY(DATE(RokKalendarzowy,8,21),1),\"aaa\")","v":"Wt"},{"$f":"TEXT(WEEKDAY(DATE(RokKalendarzowy,8,22),1),\"aaa\")","v":"Śr"},{"$f":"TEXT(WEEKDAY(DATE(RokKalendarzowy,8,23),1),\"aaa\")","v":"Cz"},{"$f":"TEXT(WEEKDAY(DATE(RokKalendarzowy,8,24),1),\"aaa\")","v":"Pt"},{"$f":"TEXT(WEEKDAY(DATE(RokKalendarzowy,8,25),1),\"aaa\")","v":"So"},{"$f":"TEXT(WEEKDAY(DATE(RokKalendarzowy,8,26),1),\"aaa\")","v":"N"},{"$f":"TEXT(WEEKDAY(DATE(RokKalendarzowy,8,27),1),\"aaa\")","v":"Pn"},{"$f":"TEXT(WEEKDAY(DATE(RokKalendarzowy,8,28),1),\"aaa\")","v":"Wt"},{"$f":"TEXT(WEEKDAY(DATE(RokKalendarzowy,8,29),1),\"aaa\")","v":"Śr"},{"$f":"TEXT(WEEKDAY(DATE(RokKalendarzowy,8,30),1),\"aaa\")","v":"Cz"},{"$f":"TEXT(WEEKDAY(DATE(RokKalendarzowy,8,31),1),\"aaa\")","v":"Pt"},"Sumy"]
[null,"Identyfikator ucznia","Imię i nazwisko ucznia","1","2","3","4","5","6","7","8","9","10","11","12","13","14","15","16","17","18","19","20","21","22","23","24","25","26","27","28","29","30","31","S","U","N","O","Dni nieobecności"]
[null,"S001",{"$f":"IFERROR(VLOOKUP(Obecności_Sierpień[[#This Row],[Identyfikator ucznia]],ListaUczniów[],18,FALSE),\"\")","v":"Witold Dyszkiewicz"},"O","O","S","S","O","B","B","O","O","U","O","O","B","B","O","O","O","O","O","B","B","O","O","O","O","O","B","B","O","O","O",{"$f":"COUNTIF(Obecności_Sierpień[[#This Row],[1]:[31]],Kod_1)","v":2},{"$f":"COUNTIF(Obecności_Sierpień[[#This Row],[1]:[31]],Kod_2)","v":1},{"$f":"COUNTIF(Obecności_Sierpień[[#This Row],[1]:[31]],Kod_3)","v":0},{"$f":"COUNTIF(Obecności_Sierpień[[#This Row],[1]:[31]],Kod_4)","v":20},{"$f":"SUM(Obecności_Sierpień[[#This Row],[U]:[N]])","v":1}]
[null,"S002",{"$f":"IFERROR(VLOOKUP(Obecności_Sierpień[[#This Row],[Identyfikator ucznia]],ListaUczniów[],18,FALSE),\"\")","v":"Uczeń 2"},"O","N","O","O","O","B","B","O","U","U","U","U","B","B","O","O","O","O","O","B","B","O","O","O","S","S","B","B","O","O","O",{"$f":"COUNTIF(Obecności_Sierpień[[#This Row],[1]:[31]],Kod_1)","v":2},{"$f":"COUNTIF(Obecności_Sierpień[[#This Row],[1]:[31]],Kod_2)","v":4},{"$f":"COUNTIF(Obecności_Sierpień[[#This Row],[1]:[31]],Kod_3)","v":1},{"$f":"COUNTIF(Obecności_Sierpień[[#This Row],[1]:[31]],Kod_4)","v":16},{"$f":"SUM(Obecności_Sierpień[[#This Row],[U]:[N]])","v":5}]
[null,"S003",{"$f":"IFERROR(VLOOKUP(Obecności_Sierpień[[#This Row],[Identyfikator ucznia]],ListaUczniów[],18,FALSE),\"\")","v":"Uczeń 3"},"O","U","O","O","O","B","B","O","O","N","O","O","B","B","O","O","O","O","O","B","B","O","O","U","U","O","B","B","O","O","O",{"$f":"COUNTIF(Obecności_Sierpień[[#This Row],[1]:[31]],Kod_1)","v":0},{"$f":"COUNTIF(Obecności_Sierpień[[#This Row],[1]:[31]],Kod_2)","v":3},{"$f":"COUNTIF(Obecności_Sierpień[[#This Row],[1]:[31]],Kod_3)","v":1},{"$f":"COUNTIF(Obecności_Sierpień[[#This Row],[1]:[31]],Kod_4)","v":19},{"$f":"SUM(Obecności_Sierpień[[#This Row],[U]:[N]])","v":4}]
[null,"S004",{"$f":"IFERROR(VLOOKUP(Obecności_Sierpień[[#This Row],[Identyfikator ucznia]],ListaUczniów[],18,FALSE),\"\")","v":"Uczeń 4"},"O","O","O","O","O","B","B","O","O","O","O","O","B","B","O","O","O","O","O","B","B","O","N","O","O","U","B","B","O","U","O",{"$f":"COUNTIF(Obecności_Sierpień[[#This Row],[1]:[31]],Kod_1)","v":0},{"$f":"COUNTIF(Obecności_Sierpień[[#This Row],[1]:[31]],Kod_2)","v":2},{"$f":"COUNTIF(Obecności_Sierpień[[#This Row],[1]:[31]],Kod_3)","v":1},{"$f":"COUNTIF(Obecności_Sierpień[[#This Row],[1]:[31]],Kod_4)","v":20},{"$f":"SUM(Obecności_Sierpień[[#This Row],[U]:[N]])","v":3}]
[null,"S005",{"$f":"IFERROR(VLOOKUP(Obecności_Sierpień[[#This Row],[Identyfikator ucznia]],ListaUczniów[],18,FALSE),\"\")","v":"Uczeń 5"},"O","O","O","O","O","B","B","O","O","O","O","O","B","B","O","O","O","O","O","B","B","O","O","O","O","O","B","B","O","O","O",{"$f":"COUNTIF(Obecności_Sierpień[[#This Row],[1]:[31]],Kod_1)","v":0},{"$f":"COUNTIF(Obecności_Sierpień[[#This Row],[1]:[31]],Kod_2)","v":0},{"$f":"COUNTIF(Obecności_Sierpień[[#This Row],[1]:[31]],Kod_3)","v":0},{"$f":"COUNTIF(Obecności_Sierpień[[#This Row],[1]:[31]],Kod_4)","v":23},{"$f":"SUM(Obecności_Sierpień[[#This Row],[U]:[N]])","v":0}]
[null,null,"Łączna liczba dni nieobecności",{"$f":"COUNTIF(Obecności_Sierpień[1],\"N\")+COUNTIF(Obecności_Sierpień[1],\"U\")","v":0},{"$f":"COUNTIF(Obecności_Sierpień[2],\"N\")+COUNTIF(Obecności_Sierpień[2],\"U\")","v":2},{"$f":"COUNTIF(Obecności_Sierpień[3],\"N\")+COUNTIF(Obecności_Sierpień[3],\"U\")","v":0},{"$f":"COUNTIF(Obecności_Sierpień[4],\"N\")+COUNTIF(Obecności_Sierpień[4],\"U\")","v":0},{"$f":"COUNTIF(Obecności_Sierpień[5],\"N\")+COUNTIF(Obecności_Sierpień[5],\"U\")","v":0},{"$f":"COUNTIF(Obecności_Sierpień[6],\"N\")+COUNTIF(Obecności_Sierpień[6],\"U\")","v":0},{"$f":"COUNTIF(Obecności_Sierpień[7],\"N\")+COUNTIF(Obecności_Sierpień[7],\"U\")","v":0},{"$f":"COUNTIF(Obecności_Sierpień[8],\"N\")+COUNTIF(Obecności_Sierpień[8],\"U\")","v":0},{"$f":"COUNTIF(Obecności_Sierpień[9],\"N\")+COUNTIF(Obecności_Sierpień[9],\"U\")","v":1},{"$f":"COUNTIF(Obecności_Sierpień[10],\"N\")+COUNTIF(Obecności_Sierpień[10],\"U\")","v":3},{"$f":"COUNTIF(Obecności_Sierpień[11],\"N\")+COUNTIF(Obecności_Sierpień[11],\"U\")","v":1},{"$f":"COUNTIF(Obecności_Sierpień[12],\"N\")+COUNTIF(Obecności_Sierpień[12],\"U\")","v":1},{"$f":"COUNTIF(Obecności_Sierpień[13],\"N\")+COUNTIF(Obecności_Sierpień[13],\"U\")","v":0},{"$f":"COUNTIF(Obecności_Sierpień[14],\"N\")+COUNTIF(Obecności_Sierpień[14],\"U\")","v":0},{"$f":"COUNTIF(Obecności_Sierpień[15],\"N\")+COUNTIF(Obecności_Sierpień[15],\"U\")","v":0},{"$f":"COUNTIF(Obecności_Sierpień[16],\"N\")+COUNTIF(Obecności_Sierpień[16],\"U\")","v":0},{"$f":"COUNTIF(Obecności_Sierpień[17],\"N\")+COUNTIF(Obecności_Sierpień[17],\"U\")","v":0},{"$f":"COUNTIF(Obecności_Sierpień[18],\"N\")+COUNTIF(Obecności_Sierpień[18],\"U\")","v":0},{"$f":"COUNTIF(Obecności_Sierpień[19],\"N\")+COUNTIF(Obecności_Sierpień[19],\"U\")","v":0},{"$f":"COUNTIF(Obecności_Sierpień[20],\"N\")+COUNTIF(Obecności_Sierpień[20],\"U\")","v":0},{"$f":"COUNTIF(Obecności_Sierpień[21],\"N\")+COUNTIF(Obecności_Sierpień[21],\"U\")","v":0},{"$f":"COUNTIF(Obecności_Sierpień[22],\"N\")+COUNTIF(Obecności_Sierpień[22],\"U\")","v":0},{"$f":"COUNTIF(Obecności_Sierpień[23],\"N\")+COUNTIF(Obecności_Sierpień[23],\"U\")","v":1},{"$f":"COUNTIF(Obecności_Sierpień[24],\"N\")+COUNTIF(Obecności_Sierpień[24],\"U\")","v":1},{"$f":"COUNTIF(Obecności_Sierpień[25],\"N\")+COUNTIF(Obecności_Sierpień[25],\"U\")","v":1},{"$f":"COUNTIF(Obecności_Sierpień[26],\"N\")+COUNTIF(Obecności_Sierpień[26],\"U\")","v":1},{"$f":"COUNTIF(Obecności_Sierpień[27],\"N\")+COUNTIF(Obecności_Sierpień[27],\"U\")","v":0},{"$f":"COUNTIF(Obecności_Sierpień[28],\"N\")+COUNTIF(Obecności_Sierpień[28],\"U\")","v":0},{"$f":"COUNTIF(Obecności_Sierpień[29],\"N\")+COUNTIF(Obecności_Sierpień[29],\"U\")","v":0},{"$f":"COUNTIF(Obecności_Sierpień[30],\"N\")+COUNTIF(Obecności_Sierpień[30],\"U\")","v":1},{"$f":"COUNTIF(Obecności_Sierpień[31],\"N\")+COUNTIF(Obecności_Sierpień[31],\"U\")","v":0},{"$f":"SUBTOTAL(109,Obecności_Sierpień[S])","v":4},{"$f":"SUBTOTAL(109,Obecności_Sierpień[U])","v":10},{"$f":"SUBTOTAL(109,Obecności_Sierpień[N])","v":3},{"$f":"SUBTOTAL(109,Obecności_Sierpień[O])","v":98},{"$f":"SUBTOTAL(109,Obecności_Sierpień[Dni nieobecności])","v":13}]

{"sheet":"Wrzesień","index":3,"n_rows":12,"n_cols":39,"rows_kept":12,"merged":[[4,34,4,38]]}
["REJESTR OBECNOŚCI UCZNIA",{"$nulls":36},"Początek roku szkolnego:",{"$f":"RokKalendarzowy","v":2012}]
[]
[null,null,{"$f":"LegendaKolorów_tekst","v":"LEGENDA KOLORÓW "},{"$f":"Kod_1","v":"S"},{"$f":"Kod1_tekst","v":"Spóźnienie"},null,null,{"$f":"Kod_2","v":"U"},{"$f":"Kod2_tekst","v":"Nieobecność usprawiedliwiona"},{"$nulls":5},{"$f":"Kod_3","v":"N"},{"$f":"Kod3_tekst","v":"Nieobecność nieusprawiedliwiona"},{"$nulls":5},{"$f":"Kod_4","v":"O"},{"$f":"Kod4_tekst","v":"Obecność"},null,null,{"$f":"Kod_5","v":"B"},{"$f":"Kod5_tekst","v":"Brak zajęć"}]
[]
[null,{"$f":"DATE(RokKalendarzowy,9,1)","v":"2012-09-01"},null,{"$f":"TEXT(WEEKDAY(DATE(RokKalendarzowy,9,1),1),\"aaa\")","v":"So"},{"$f":"TEXT(WEEKDAY(DATE(RokKalendarzowy,9,2),1),\"aaa\")","v":"N"},{"$f":"TEXT(WEEKDAY(DATE(RokKalendarzowy,9,3),1),\"aaa\")","v":"Pn"},{"$f":"TEXT(WEEKDAY(DATE(RokKalendarzowy,9,4),1),\"aaa\")","v":"Wt"},{"$f":"TEXT(WEEKDAY(DATE(RokKalendarzowy,9,5),1),\"aaa\")","v":"Śr"},{"$f":"TEXT(WEEKDAY(DATE(RokKalendarzowy,9,6),1),\"aaa\")","v":"Cz"},{"$f":"TEXT(WEEKDAY(DATE(RokKalendarzowy,9,7),1),\"aaa\")","v":"Pt"},{"$f":"TEXT(WEEKDAY(DATE(RokKalendarzowy,9,8),1),\"aaa\")","v":"So"},{"$f":"TEXT(WEEKDAY(DATE(RokKalendarzowy,9,9),1),\"aaa\")","v":"N"},{"$f":"TEXT(WEEKDAY(DATE(RokKalendarzowy,9,10),1),\"aaa\")","v":"Pn"},{"$f":"TEXT(WEEKDAY(DATE(RokKalendarzowy,9,11),1),\"aaa\")","v":"Wt"},{"$f":"TEXT(WEEKDAY(DATE(RokKalendarzowy,9,12),1),\"aaa\")","v":"Śr"},{"$f":"TEXT(WEEKDAY(DATE(RokKalendarzowy,9,13),1),\"aaa\")","v":"Cz"},{"$f":"TEXT(WEEKDAY(DATE(RokKalendarzowy,9,14),1),\"aaa\")","v":"Pt"},{"$f":"TEXT(WEEKDAY(DATE(RokKalendarzowy,9,15),1),\"aaa\")","v":"So"},{"$f":"TEXT(WEEKDAY(DATE(RokKalendarzowy,9,16),1),\"aaa\")","v":"N"},{"$f":"TEXT(WEEKDAY(DATE(RokKalendarzowy,9,17),1),\"aaa\")","v":"Pn"},{"$f":"TEXT(WEEKDAY(DATE(RokKalendarzowy,9,18),1),\"aaa\")","v":"Wt"},{"$f":"TEXT(WEEKDAY(DATE(RokKalendarzowy,9,19),1),\"aaa\")","v":"Śr"},{"$f":"TEXT(WEEKDAY(DATE(RokKalendarzowy,9,20),1),\"aaa\")","v":"Cz"},{"$f":"TEXT(WEEKDAY(DATE(RokKalendarzowy,9,21),1),\"aaa\")","v":"Pt"},{"$f":"TEXT(WEEKDAY(DATE(RokKalendarzowy,9,22),1),\"aaa\")","v":"So"},{"$f":"TEXT(WEEKDAY(DATE(RokKalendarzowy,9,23),1),\"aaa\")","v":"N"},{"$f":"TEXT(WEEKDAY(DATE(RokKalendarzowy,9,24),1),\"aaa\")","v":"Pn"},{"$f":"TEXT(WEEKDAY(DATE(RokKalendarzowy,9,25),1),\"aaa\")","v":"Wt"},{"$f":"TEXT(WEEKDAY(DATE(RokKalendarzowy,9,26),1),\"aaa\")","v":"Śr"},{"$f":"TEXT(WEEKDAY(DATE(RokKalendarzowy,9,27),1),\"aaa\")","v":"Cz"},{"$f":"TEXT(WEEKDAY(DATE(RokKalendarzowy,9,28),1),\"aaa\")","v":"Pt"},{"$f":"TEXT(WEEKDAY(DATE(RokKalendarzowy,9,29),1),\"aaa\")","v":"So"},{"$f":"TEXT(WEEKDAY(DATE(RokKalendarzowy,9,30),1),\"aaa\")","v":"N"},null,"Sumy"]
[null,"Identyfikator ucznia","Imię i nazwisko ucznia","1","2","3","4","5","6","7","8","9","10","11","12","13","14","15","16","17","18","19","20","21","22","23","24","25","26","27","28","29","30"," ","S","U","N","O","Dni nieobecności"]
[null,null,{"$f":"IFERROR(VLOOKUP(Obecności_Wrzesień[[#This Row],[Identyfikator ucznia]],ListaUczniów[],18,FALSE),\"\")","v":""},{"$nulls":31},{"$f":"COUNTIF(Obecności_Wrzesień[[#This Row],[1]:[ ]],Kod_1)","v":0},{"$f":"COUNTIF(Obecności_Wrzesień[[#This Row],[1]:[ ]],Kod_2)","v":0},{"$f":"COUNTIF(Obecności_Wrzesień[[#This Row],[1]:[ ]],Kod_3)","v":0},{"$f":"COUNTIF(Obecności_Wrzesień[[#This Row],[1]:[ ]],Kod_4)","v":0},{"$f":"SUM(Obecności_Wrzesień[[#This Row],[U]:[N]])","v":0}]
[null,null,{"$f":"IFERROR(VLOOKUP(Obecności_Wrzesień[[#This Row],[Identyfikator ucznia]],ListaUczniów[],18,FALSE),\"\")","v":""},{"$nulls":31},{"$f":"COUNTIF(Obecności_Wrzesień[[#This Row],[1]:[ ]],Kod_1)","v":0},{"$f":"COUNTIF(Obecności_Wrzesień[[#This Row],[1]:[ ]],Kod_2)","v":0},{"$f":"COUNTIF(Obecności_Wrzesień[[#This Row],[1]:[ ]],Kod_3)","v":0},{"$f":"COUNTIF(Obecności_Wrzesień[[#This Row],[1]:[ ]],Kod_4)","v":0},{"$f":"SUM(Obecności_Wrzesień[[#This Row],[U]:[N]])","v":0}]
[null,null,{"$f":"IFERROR(VLOOKUP(Obecności_Wrzesień[[#This Row],[Identyfikator ucznia]],ListaUczniów[],18,FALSE),\"\")","v":""},{"$nulls":31},{"$f":"COUNTIF(Obecności_Wrzesień[[#This Row],[1]:[ ]],Kod_1)","v":0},{"$f":"COUNTIF(Obecności_Wrzesień[[#This Row],[1]:[ ]],Kod_2)","v":0},{"$f":"COUNTIF(Obecności_Wrzesień[[#This Row],[1]:[ ]],Kod_3)","v":0},{"$f":"COUNTIF(Obecności_Wrzesień[[#This Row],[1]:[ ]],Kod_4)","v":0},{"$f":"SUM(Obecności_Wrzesień[[#This Row],[U]:[N]])","v":0}]
[null,null,{"$f":"IFERROR(VLOOKUP(Obecności_Wrzesień[[#This Row],[Identyfikator ucznia]],ListaUczniów[],18,FALSE),\"\")","v":""},{"$nulls":31},{"$f":"COUNTIF(Obecności_Wrzesień[[#This Row],[1]:[ ]],Kod_1)","v":0},{"$f":"COUNTIF(Obecności_Wrzesień[[#This Row],[1]:[ ]],Kod_2)","v":0},{"$f":"COUNTIF(Obecności_Wrzesień[[#This Row],[1]:[ ]],Kod_3)","v":0},{"$f":"COUNTIF(Obecności_Wrzesień[[#This Row],[1]:[ ]],Kod_4)","v":0},{"$f":"SUM(Obecności_Wrzesień[[#This Row],[U]:[N]])","v":0}]
[null,null,{"$f":"IFERROR(VLOOKUP(Obecności_Wrzesień[[#This Row],[Identyfikator ucznia]],ListaUczniów[],18,FALSE),\"\")","v":""},{"$nulls":31},{"$f":"COUNTIF(Obecności_Wrzesień[[#This Row],[1]:[ ]],Kod_1)","v":0},{"$f":"COUNTIF(Obecności_Wrzesień[[#This Row],[1]:[ ]],Kod_2)","v":0},{"$f":"COUNTIF(Obecności_Wrzesień[[#This Row],[1]:[ ]],Kod_3)","v":0},{"$f":"COUNTIF(Obecności_Wrzesień[[#This Row],[1]:[ ]],Kod_4)","v":0},{"$f":"SUM(Obecności_Wrzesień[[#This Row],[U]:[N]])","v":0}]
[null,null,"Łączna liczba dni nieobecności",{"$f":"COUNTIF(Obecności_Wrzesień[1],\"N\")+COUNTIF(Obecności_Wrzesień[1],\"U\")","v":0},{"$f":"COUNTIF(Obecności_Wrzesień[2],\"N\")+COUNTIF(Obecności_Wrzesień[2],\"U\")","v":0},{"$f":"COUNTIF(Obecności_Wrzesień[3],\"N\")+COUNTIF(Obecności_Wrzesień[3],\"U\")","v":0},{"$f":"COUNTIF(Obecności_Wrzesień[4],\"N\")+COUNTIF(Obecności_Wrzesień[4],\"U\")","v":0},{"$f":"COUNTIF(Obecności_Wrzesień[5],\"N\")+COUNTIF(Obecności_Wrzesień[5],\"U\")","v":0},{"$f":"COUNTIF(Obecności_Wrzesień[6],\"N\")+COUNTIF(Obecności_Wrzesień[6],\"U\")","v":0},{"$f":"COUNTIF(Obecności_Wrzesień[7],\"N\")+COUNTIF(Obecności_Wrzesień[7],\"U\")","v":0},{"$f":"COUNTIF(Obecności_Wrzesień[8],\"N\")+COUNTIF(Obecności_Wrzesień[8],\"U\")","v":0},{"$f":"COUNTIF(Obecności_Wrzesień[9],\"N\")+COUNTIF(Obecności_Wrzesień[9],\"U\")","v":0},{"$f":"COUNTIF(Obecności_Wrzesień[10],\"N\")+COUNTIF(Obecności_Wrzesień[10],\"U\")","v":0},{"$f":"COUNTIF(Obecności_Wrzesień[11],\"N\")+COUNTIF(Obecności_Wrzesień[11],\"U\")","v":0},{"$f":"COUNTIF(Obecności_Wrzesień[12],\"N\")+COUNTIF(Obecności_Wrzesień[12],\"U\")","v":0},{"$f":"COUNTIF(Obecności_Wrzesień[13],\"N\")+COUNTIF(Obecności_Wrzesień[13],\"U\")","v":0},{"$f":"COUNTIF(Obecności_Wrzesień[14],\"N\")+COUNTIF(Obecności_Wrzesień[14],\"U\")","v":0},{"$f":"COUNTIF(Obecności_Wrzesień[15],\"N\")+COUNTIF(Obecności_Wrzesień[15],\"U\")","v":0},{"$f":"COUNTIF(Obecności_Wrzesień[16],\"N\")+COUNTIF(Obecności_Wrzesień[16],\"U\")","v":0},{"$f":"COUNTIF(Obecności_Wrzesień[17],\"N\")+COUNTIF(Obecności_Wrzesień[17],\"U\")","v":0},{"$f":"COUNTIF(Obecności_Wrzesień[18],\"N\")+COUNTIF(Obecności_Wrzesień[18],\"U\")","v":0},{"$f":"COUNTIF(Obecności_Wrzesień[19],\"N\")+COUNTIF(Obecności_Wrzesień[19],\"U\")","v":0},{"$f":"COUNTIF(Obecności_Wrzesień[20],\"N\")+COUNTIF(Obecności_Wrzesień[20],\"U\")","v":0},{"$f":"COUNTIF(Obecności_Wrzesień[21],\"N\")+COUNTIF(Obecności_Wrzesień[21],\"U\")","v":0},{"$f":"COUNTIF(Obecności_Wrzesień[22],\"N\")+COUNTIF(Obecności_Wrzesień[22],\"U\")","v":0},{"$f":"COUNTIF(Obecności_Wrzesień[23],\"N\")+COUNTIF(Obecności_Wrzesień[23],\"U\")","v":0},{"$f":"COUNTIF(Obecności_Wrzesień[24],\"N\")+COUNTIF(Obecności_Wrzesień[24],\"U\")","v":0},{"$f":"COUNTIF(Obecności_Wrzesień[25],\"N\")+COUNTIF(Obecności_Wrzesień[25],\"U\")","v":0},{"$f":"COUNTIF(Obecności_Wrzesień[26],\"N\")+COUNTIF(Obecności_Wrzesień[26],\"U\")","v":0},{"$f":"COUNTIF(Obecności_Wrzesień[27],\"N\")+COUNTIF(Obecności_Wrzesień[27],\"U\")","v":0},{"$f":"COUNTIF(Obecności_Wrzesień[28],\"N\")+COUNTIF(Obecności_Wrzesień[28],\"U\")","v":0},{"$f":"COUNTIF(Obecności_Wrzesień[29],\"N\")+COUNTIF(Obecności_Wrzesień[29],\"U\")","v":0},{"$f":"COUNTIF(Obecności_Wrzesień[30],\"N\")+COUNTIF(Obecności_Wrzesień[30],\"U\")","v":0},{"$f":"COUNTIF(Obecności_Wrzesień[[ ]],\"N\")+COUNTIF(Obecności_Wrzesień[[ ]],\"U\")","v":0},{"$f":"SUBTOTAL(109,Obecności_Wrzesień[S])","v":0},{"$f":"SUBTOTAL(109,Obecności_Wrzesień[U])","v":0},{"$f":"SUBTOTAL(109,Obecności_Wrzesień[N])","v":0},{"$f":"SUBTOTAL(109,Obecności_Wrzesień[O])","v":0},{"$f":"SUBTOTAL(109,Obecności_Wrzesień[Dni nieobecności])","v":0}]

{"sheet":"Październik","index":4,"n_rows":12,"n_cols":39,"rows_kept":12,"merged":[[4,34,4,38]]}
["REJESTR OBECNOŚCI UCZNIA",{"$nulls":36},"Początek roku szkolnego:",{"$f":"RokKalendarzowy","v":2012}]
[]
[null,null,{"$f":"LegendaKolorów_tekst","v":"LEGENDA KOLORÓW "},{"$f":"Kod_1","v":"S"},{"$f":"Kod1_tekst","v":"Spóźnienie"},null,null,{"$f":"Kod_2","v":"U"},{"$f":"Kod2_tekst","v":"Nieobecność usprawiedliwiona"},{"$nulls":5},{"$f":"Kod_3","v":"N"},{"$f":"Kod3_tekst","v":"Nieobecność nieusprawiedliwiona"},{"$nulls":5},{"$f":"Kod_4","v":"O"},{"$f":"Kod4_tekst","v":"Obecność"},null,null,{"$f":"Kod_5","v":"B"},{"$f":"Kod5_tekst","v":"Brak zajęć"}]
[]
[null,{"$f":"DATE(RokKalendarzowy,10,1)","v":"2012-10-01"},null,{"$f":"TEXT(WEEKDAY(DATE(RokKalendarzowy,10,1),1),\"aaa\")","v":"Pn"},{"$f":"TEXT(WEEKDAY(DATE(RokKalendarzowy,10,2),1),\"aaa\")","v":"Wt"},{"$f":"TEXT(WEEKDAY(DATE(RokKalendarzowy,10,3),1),\"aaa\")","v":"Śr"},{"$f":"TEXT(WEEKDAY(DATE(RokKalendarzowy,10,4),1),\"aaa\")","v":"Cz"},{"$f":"TEXT(WEEKDAY(DATE(RokKalendarzowy,10,5),1),\"aaa\")","v":"Pt"},{"$f":"TEXT(WEEKDAY(DATE(RokKalendarzowy,10,6),1),\"aaa\")","v":"So"},{"$f":"TEXT(WEEKDAY(DATE(RokKalendarzowy,10,7),1),\"aaa\")","v":"N"},{"$f":"TEXT(WEEKDAY(DATE(RokKalendarzowy,10,8),1),\"aaa\")","v":"Pn"},{"$f":"TEXT(WEEKDAY(DATE(RokKalendarzowy,10,9),1),\"aaa\")","v":"Wt"},{"$f":"TEXT(WEEKDAY(DATE(RokKalendarzowy,10,10),1),\"aaa\")","v":"Śr"},{"$f":"TEXT(WEEKDAY(DATE(RokKalendarzowy,10,11),1),\"aaa\")","v":"Cz"},{"$f":"TEXT(WEEKDAY(DATE(RokKalendarzowy,10,12),1),\"aaa\")","v":"Pt"},{"$f":"TEXT(WEEKDAY(DATE(RokKalendarzowy,10,13),1),\"aaa\")","v":"So"},{"$f":"TEXT(WEEKDAY(DATE(RokKalendarzowy,10,14),1),\"aaa\")","v":"N"},{"$f":"TEXT(WEEKDAY(DATE(RokKalendarzowy,10,15),1),\"aaa\")","v":"Pn"},{"$f":"TEXT(WEEKDAY(DATE(RokKalendarzowy,10,16),1),\"aaa\")","v":"Wt"},{"$f":"TEXT(WEEKDAY(DATE(RokKalendarzowy,10,17),1),\"aaa\")","v":"Śr"},{"$f":"TEXT(WEEKDAY(DATE(RokKalendarzowy,10,18),1),\"aaa\")","v":"Cz"},{"$f":"TEXT(WEEKDAY(DATE(RokKalendarzowy,10,19),1),\"aaa\")","v":"Pt"},{"$f":"TEXT(WEEKDAY(DATE(RokKalendarzowy,10,20),1),\"aaa\")","v":"So"},{"$f":"TEXT(WEEKDAY(DATE(RokKalendarzowy,10,21),1),\"aaa\")","v":"N"},{"$f":"TEXT(WEEKDAY(DATE(RokKalendarzowy,10,22),1),\"aaa\")","v":"Pn"},{"$f":"TEXT(WEEKDAY(DATE(RokKalendarzowy,10,23),1),\"aaa\")","v":"Wt"},{"$f":"TEXT(WEEKDAY(DATE(RokKalendarzowy,10,24),1),\"aaa\")","v":"Śr"},{"$f":"TEXT(WEEKDAY(DATE(RokKalendarzowy,10,25),1),\"aaa\")","v":"Cz"},{"$f":"TEXT(WEEKDAY(DATE(RokKalendarzowy,10,26),1),\"aaa\")","v":"Pt"},{"$f":"TEXT(WEEKDAY(DATE(RokKalendarzowy,10,27),1),\"aaa\")","v":"So"},{"$f":"TEXT(WEEKDAY(DATE(RokKalendarzowy,10,28),1),\"aaa\")","v":"N"},{"$f":"TEXT(WEEKDAY(DATE(RokKalendarzowy,10,29),1),\"aaa\")","v":"Pn"},{"$f":"TEXT(WEEKDAY(DATE(RokKalendarzowy,10,30),1),\"aaa\")","v":"Wt"},{"$f":"TEXT(WEEKDAY(DATE(RokKalendarzowy,10,31),1),\"aaa\")","v":"Śr"},"Sumy"]
[null,"Identyfikator ucznia","Imię i nazwisko ucznia","1","2","3","4","5","6","7","8","9","10","11","12","13","14","15","16","17","18","19","20","21","22","23","24","25","26","27","28","29","30","31","S","U","N","O","Dni nieobecności"]
[null,null,{"$f":"IFERROR(VLOOKUP(Obecności_Październik[[#This Row],[Identyfikator ucznia]],ListaUczniów[],18,FALSE),\"\")","v":""},{"$nulls":31},{"$f":"COUNTIF(Obecności_Październik[[#This Row],[1]:[31]],Kod_1)","v":0},{"$f":"COUNTIF(Obecności_Październik[[#This Row],[1]:[31]],Kod_2)","v":0},{"$f":"COUNTIF(Obecności_Październik[[#This Row],[1]:[31]],Kod_3)","v":0},{"$f":"COUNTIF(Obecności_Październik[[#This Row],[1]:[31]],Kod_4)","v":0},{"$f":"SUM(Obecności_Wrzesień[[#This Row],[U]:[N]])","v":0}]
[null,null,{"$f":"IFERROR(VLOOKUP(Obecności_Październik[[#This Row],[Identyfikator ucznia]],ListaUczniów[],18,FALSE),\"\")","v":""},{"$nulls":31},{"$f":"COUNTIF(Obecności_Październik[[#This Row],[1]:[31]],Kod_1)","v":0},{"$f":"COUNTIF(Obecności_Październik[[#This Row],[1]:[31]],Kod_2)","v":0},{"$f":"COUNTIF(Obecności_Październik[[#This Row],[1]:[31]],Kod_3)","v":0},{"$f":"COUNTIF(Obecności_Październik[[#This Row],[1]:[31]],Kod_4)","v":0},{"$f":"SUM(Obecności_Wrzesień[[#This Row],[U]:[N]])","v":0}]
[null,null,{"$f":"IFERROR(VLOOKUP(Obecności_Październik[[#This Row],[Identyfikator ucznia]],ListaUczniów[],18,FALSE),\"\")","v":""},{"$nulls":31},{"$f":"COUNTIF(Obecności_Październik[[#This Row],[1]:[31]],Kod_1)","v":0},{"$f":"COUNTIF(Obecności_Październik[[#This Row],[1]:[31]],Kod_2)","v":0},{"$f":"COUNTIF(Obecności_Październik[[#This Row],[1]:[31]],Kod_3)","v":0},{"$f":"COUNTIF(Obecności_Październik[[#This Row],[1]:[31]],Kod_4)","v":0},{"$f":"SUM(Obecności_Wrzesień[[#This Row],[U]:[N]])","v":0}]
[null,null,{"$f":"IFERROR(VLOOKUP(Obecności_Październik[[#This Row],[Identyfikator ucznia]],ListaUczniów[],18,FALSE),\"\")","v":""},{"$nulls":31},{"$f":"COUNTIF(Obecności_Październik[[#This Row],[1]:[31]],Kod_1)","v":0},{"$f":"COUNTIF(Obecności_Październik[[#This Row],[1]:[31]],Kod_2)","v":0},{"$f":"COUNTIF(Obecności_Październik[[#This Row],[1]:[31]],Kod_3)","v":0},{"$f":"COUNTIF(Obecności_Październik[[#This Row],[1]:[31]],Kod_4)","v":0},{"$f":"SUM(Obecności_Wrzesień[[#This Row],[U]:[N]])","v":0}]
[null,null,{"$f":"IFERROR(VLOOKUP(Obecności_Październik[[#This Row],[Identyfikator ucznia]],ListaUczniów[],18,FALSE),\"\")","v":""},{"$nulls":31},{"$f":"COUNTIF(Obecności_Październik[[#This Row],[1]:[31]],Kod_1)","v":0},{"$f":"COUNTIF(Obecności_Październik[[#This Row],[1]:[31]],Kod_2)","v":0},{"$f":"COUNTIF(Obecności_Październik[[#This Row],[1]:[31]],Kod_3)","v":0},{"$f":"COUNTIF(Obecności_Październik[[#This Row],[1]:[31]],Kod_4)","v":0},{"$f":"SUM(Obecności_Wrzesień[[#This Row],[U]:[N]])","v":0}]
[null,null,"Łączna liczba dni nieobecności",{"$f":"COUNTIF(Obecności_Październik[1],\"N\")+COUNTIF(Obecności_Październik[1],\"U\")","v":0},{"$f":"COUNTIF(Obecności_Październik[2],\"N\")+COUNTIF(Obecności_Październik[2],\"U\")","v":0},{"$f":"COUNTIF(Obecności_Październik[3],\"N\")+COUNTIF(Obecności_Październik[3],\"U\")","v":0},{"$f":"COUNTIF(Obecności_Październik[4],\"N\")+COUNTIF(Obecności_Październik[4],\"U\")","v":0},{"$f":"COUNTIF(Obecności_Październik[5],\"N\")+COUNTIF(Obecności_Październik[5],\"U\")","v":0},{"$f":"COUNTIF(Obecności_Październik[6],\"N\")+COUNTIF(Obecności_Październik[6],\"U\")","v":0},{"$f":"COUNTIF(Obecności_Październik[7],\"N\")+COUNTIF(Obecności_Październik[7],\"U\")","v":0},{"$f":"COUNTIF(Obecności_Październik[8],\"N\")+COUNTIF(Obecności_Październik[8],\"U\")","v":0},{"$f":"COUNTIF(Obecności_Październik[9],\"N\")+COUNTIF(Obecności_Październik[9],\"U\")","v":0},{"$f":"COUNTIF(Obecności_Październik[10],\"N\")+COUNTIF(Obecności_Październik[10],\"U\")","v":0},{"$f":"COUNTIF(Obecności_Październik[11],\"N\")+COUNTIF(Obecności_Październik[11],\"U\")","v":0},{"$f":"COUNTIF(Obecności_Październik[12],\"N\")+COUNTIF(Obecności_Październik[12],\"U\")","v":0},{"$f":"COUNTIF(Obecności_Październik[13],\"N\")+COUNTIF(Obecności_Październik[13],\"U\")","v":0},{"$f":"COUNTIF(Obecności_Październik[14],\"N\")+COUNTIF(Obecności_Październik[14],\"U\")","v":0},{"$f":"COUNTIF(Obecności_Październik[15],\"N\")+COUNTIF(Obecności_Październik[15],\"U\")","v":0},{"$f":"COUNTIF(Obecności_Październik[16],\"N\")+COUNTIF(Obecności_Październik[16],\"U\")","v":0},{"$f":"COUNTIF(Obecności_Październik[17],\"N\")+COUNTIF(Obecności_Październik[17],\"U\")","v":0},{"$f":"COUNTIF(Obecności_Październik[18],\"N\")+COUNTIF(Obecności_Październik[18],\"U\")","v":0},{"$f":"COUNTIF(Obecności_Październik[19],\"N\")+COUNTIF(Obecności_Październik[19],\"U\")","v":0},{"$f":"COUNTIF(Obecności_Październik[20],\"N\")+COUNTIF(Obecności_Październik[20],\"U\")","v":0},{"$f":"COUNTIF(Obecności_Październik[21],\"N\")+COUNTIF(Obecności_Październik[21],\"U\")","v":0},{"$f":"COUNTIF(Obecności_Październik[22],\"N\")+COUNTIF(Obecności_Październik[22],\"U\")","v":0},{"$f":"COUNTIF(Obecności_Październik[23],\"N\")+COUNTIF(Obecności_Październik[23],\"U\")","v":0},{"$f":"COUNTIF(Obecności_Październik[24],\"N\")+COUNTIF(Obecności_Październik[24],\"U\")","v":0},{"$f":"COUNTIF(Obecności_Październik[25],\"N\")+COUNTIF(Obecności_Październik[25],\"U\")","v":0},{"$f":"COUNTIF(Obecności_Październik[26],\"N\")+COUNTIF(Obecności_Październik[26],\"U\")","v":0},{"$f":"COUNTIF(Obecności_Październik[27],\"N\")+COUNTIF(Obecności_Październik[27],\"U\")","v":0},{"$f":"COUNTIF(Obecności_Październik[28],\"N\")+COUNTIF(Obecności_Październik[28],\"U\")","v":0},{"$f":"COUNTIF(Obecności_Październik[29],\"N\")+COUNTIF(Obecności_Październik[29],\"U\")","v":0},{"$f":"COUNTIF(Obecności_Październik[30],\"N\")+COUNTIF(Obecności_Październik[30],\"U\")","v":0},{"$f":"COUNTIF(Obecności_Październik[31],\"N\")+COUNTIF(Obecności_Październik[31],\"U\")","v":0},{"$f":"SUBTOTAL(109,Obecności_Październik[S])","v":0},{"$f":"SUBTOTAL(109,Obecności_Październik[U])","v":0},{"$f":"SUBTOTAL(109,Obecności_Październik[N])","v":0},{"$f":"SUBTOTAL(109,Obecności_Październik[O])","v":0},{"$f":"SUBTOTAL(109,Obecności_Październik[Dni nieobecności])","v":0}]

{"sheet":"Listopad","index":5,"n_rows":12,"n_cols":39,"rows_kept":12,"merged":[[4,34,4,38]]}
["REJESTR OBECNOŚCI UCZNIA",{"$nulls":36},"Początek roku szkolnego:",{"$f":"RokKalendarzowy","v":2012}]
[]
[null,null,{"$f":"LegendaKolorów_tekst","v":"LEGENDA KOLORÓW "},{"$f":"Kod_1","v":"S"},{"$f":"Kod1_tekst","v":"Spóźnienie"},null,null,{"$f":"Kod_2","v":"U"},{"$f":"Kod2_tekst","v":"Nieobecność usprawiedliwiona"},{"$nulls":5},{"$f":"Kod_3","v":"N"},{"$f":"Kod3_tekst","v":"Nieobecność nieusprawiedliwiona"},{"$nulls":5},{"$f":"Kod_4","v":"O"},{"$f":"Kod4_tekst","v":"Obecność"},null,null,{"$f":"Kod_5","v":"B"},{"$f":"Kod5_tekst","v":"Brak zajęć"}]
[]
[null,{"$f":"DATE(RokKalendarzowy,11,1)","v":"2012-11-01"},null,{"$f":"TEXT(WEEKDAY(DATE(RokKalendarzowy,11,1),1),\"aaa\")","v":"Cz"},{"$f":"TEXT(WEEKDAY(DATE(RokKalendarzowy,11,2),1),\"aaa\")","v":"Pt"},{"$f":"TEXT(WEEKDAY(DATE(RokKalendarzowy,11,3),1),\"aaa\")","v":"So"},{"$f":"TEXT(WEEKDAY(DATE(RokKalendarzowy,11,4),1),\"aaa\")","v":"N"},{"$f":"TEXT(WEEKDAY(DATE(RokKalendarzowy,11,5),1),\"aaa\")","v":"Pn"},{"$f":"TEXT(WEEKDAY(DATE(RokKalendarzowy,11,6),1),\"aaa\")","v":"Wt"},{"$f":"TEXT(WEEKDAY(DATE(RokKalendarzowy,11,7),1),\"aaa\")","v":"Śr"},{"$f":"TEXT(WEEKDAY(DATE(RokKalendarzowy,11,8),1),\"aaa\")","v":"Cz"},{"$f":"TEXT(WEEKDAY(DATE(RokKalendarzowy,11,9),1),\"aaa\")","v":"Pt"},{"$f":"TEXT(WEEKDAY(DATE(RokKalendarzowy,11,10),1),\"aaa\")","v":"So"},{"$f":"TEXT(WEEKDAY(DATE(RokKalendarzowy,11,11),1),\"aaa\")","v":"N"},{"$f":"TEXT(WEEKDAY(DATE(RokKalendarzowy,11,12),1),\"aaa\")","v":"Pn"},{"$f":"TEXT(WEEKDAY(DATE(RokKalendarzowy,11,13),1),\"aaa\")","v":"Wt"},{"$f":"TEXT(WEEKDAY(DATE(RokKalendarzowy,11,14),1),\"aaa\")","v":"Śr"},{"$f":"TEXT(WEEKDAY(DATE(RokKalendarzowy,11,15),1),\"aaa\")","v":"Cz"},{"$f":"TEXT(WEEKDAY(DATE(RokKalendarzowy,11,16),1),\"aaa\")","v":"Pt"},{"$f":"TEXT(WEEKDAY(DATE(RokKalendarzowy,11,17),1),\"aaa\")","v":"So"},{"$f":"TEXT(WEEKDAY(DATE(RokKalendarzowy,11,18),1),\"aaa\")","v":"N"},{"$f":"TEXT(WEEKDAY(DATE(RokKalendarzowy,11,19),1),\"aaa\")","v":"Pn"},{"$f":"TEXT(WEEKDAY(DATE(RokKalendarzowy,11,20),1),\"aaa\")","v":"Wt"},{"$f":"TEXT(WEEKDAY(DATE(RokKalendarzowy,11,21),1),\"aaa\")","v":"Śr"},{"$f":"TEXT(WEEKDAY(DATE(RokKalendarzowy,11,22),1),\"aaa\")","v":"Cz"},{"$f":"TEXT(WEEKDAY(DATE(RokKalendarzowy,11,23),1),\"aaa\")","v":"Pt"},{"$f":"TEXT(WEEKDAY(DATE(RokKalendarzowy,11,24),1),\"aaa\")","v":"So"},{"$f":"TEXT(WEEKDAY(DATE(RokKalendarzowy,11,25),1),\"aaa\")","v":"N"},{"$f":"TEXT(WEEKDAY(DATE(RokKalendarzowy,11,26),1),\"aaa\")","v":"Pn"},{"$f":"TEXT(WEEKDAY(DATE(RokKalendarzowy,11,27),1),\"aaa\")","v":"Wt"},{"$f":"TEXT(WEEKDAY(DATE(RokKalendarzowy,11,28),1),\"aaa\")","v":"Śr"},{"$f":"TEXT(WEEKDAY(DATE(RokKalendarzowy,11,29),1),\"aaa\")","v":"Cz"},{"$f":"TEXT(WEEKDAY(DATE(RokKalendarzowy,11,30),1),\"aaa\")","v":"Pt"},null,"Sumy"]
[null,"Identyfikator ucznia","Imię i nazwisko ucznia","1","2","3","4","5","6","7","8","9","10","11","12","13","14","15","16","17","18","19","20","21","22","23","24","25","26","27","28","29","30"," ","S","U","N","O","Dni nieobecności"]
[null,null,{"$f":"IFERROR(VLOOKUP(Obecności_Listopad[[#This Row],[Identyfikator ucznia]],ListaUczniów[],18,FALSE),\"\")","v":""},{"$nulls":31},{"$f":"COUNTIF(Obecności_Listopad[[#This Row],[1]:[ ]],Kod_1)","v":0},{"$f":"COUNTIF(Obecności_Listopad[[#This Row],[1]:[ ]],Kod_2)","v":0},{"$f":"COUNTIF(Obecności_Listopad[[#This Row],[1]:[ ]],Kod_3)","v":0},{"$f":"COUNTIF(Obecności_Listopad[[#This Row],[1]:[ ]],Kod_4)","v":0},{"$f":"SUM(Obecności_Wrzesień[[#This Row],[U]:[N]])","v":0}]
[null,null,{"$f":"IFERROR(VLOOKUP(Obecności_Listopad[[#This Row],[Identyfikator ucznia]],ListaUczniów[],18,FALSE),\"\")","v":""},{"$nulls":31},{"$f":"COUNTIF(Obecności_Listopad[[#This Row],[1]:[ ]],Kod_1)","v":0},{"$f":"COUNTIF(Obecności_Listopad[[#This Row],[1]:[ ]],Kod_2)","v":0},{"$f":"COUNTIF(Obecności_Listopad[[#This Row],[1]:[ ]],Kod_3)","v":0},{"$f":"COUNTIF(Obecności_Listopad[[#This Row],[1]:[ ]],Kod_4)","v":0},{"$f":"SUM(Obecności_Wrzesień[[#This Row],[U]:[N]])","v":0}]
[null,null,{"$f":"IFERROR(VLOOKUP(Obecności_Listopad[[#This Row],[Identyfikator ucznia]],ListaUczniów[],18,FALSE),\"\")","v":""},{"$nulls":31},{"$f":"COUNTIF(Obecności_Listopad[[#This Row],[1]:[ ]],Kod_1)","v":0},{"$f":"COUNTIF(Obecności_Listopad[[#This Row],[1]:[ ]],Kod_2)","v":0},{"$f":"COUNTIF(Obecności_Listopad[[#This Row],[1]:[ ]],Kod_3)","v":0},{"$f":"COUNTIF(Obecności_Listopad[[#This Row],[1]:[ ]],Kod_4)","v":0},{"$f":"SUM(Obecności_Wrzesień[[#This Row],[U]:[N]])","v":0}]
[null,null,{"$f":"IFERROR(VLOOKUP(Obecności_Listopad[[#This Row],[Identyfikator ucznia]],ListaUczniów[],18,FALSE),\"\")","v":""},{"$nulls":31},{"$f":"COUNTIF(Obecności_Listopad[[#This Row],[1]:[ ]],Kod_1)","v":0},{"$f":"COUNTIF(Obecności_Listopad[[#This Row],[1]:[ ]],Kod_2)","v":0},{"$f":"COUNTIF(Obecności_Listopad[[#This Row],[1]:[ ]],Kod_3)","v":0},{"$f":"COUNTIF(Obecności_Listopad[[#This Row],[1]:[ ]],Kod_4)","v":0},{"$f":"SUM(Obecności_Wrzesień[[#This Row],[U]:[N]])","v":0}]
[null,null,{"$f":"IFERROR(VLOOKUP(Obecności_Listopad[[#This Row],[Identyfikator ucznia]],ListaUczniów[],18,FALSE),\"\")","v":""},{"$nulls":31},{"$f":"COUNTIF(Obecności_Listopad[[#This Row],[1]:[ ]],Kod_1)","v":0},{"$f":"COUNTIF(Obecności_Listopad[[#This Row],[1]:[ ]],Kod_2)","v":0},{"$f":"COUNTIF(Obecności_Listopad[[#This Row],[1]:[ ]],Kod_3)","v":0},{"$f":"COUNTIF(Obecności_Listopad[[#This Row],[1]:[ ]],Kod_4)","v":0},{"$f":"SUM(Obecności_Wrzesień[[#This Row],[U]:[N]])","v":0}]
[null,null,"Łączna liczba dni nieobecności",{"$f":"COUNTIF(Obecności_Listopad[1],\"N\")+COUNTIF(Obecności_Listopad[1],\"U\")","v":0},{"$f":"COUNTIF(Obecności_Listopad[2],\"N\")+COUNTIF(Obecności_Listopad[2],\"U\")","v":0},{"$f":"COUNTIF(Obecności_Listopad[3],\"N\")+COUNTIF(Obecności_Listopad[3],\"U\")","v":0},{"$f":"COUNTIF(Obecności_Listopad[4],\"N\")+COUNTIF(Obecności_Listopad[4],\"U\")","v":0},{"$f":"COUNTIF(Obecności_Listopad[5],\"N\")+COUNTIF(Obecności_Listopad[5],\"U\")","v":0},{"$f":"COUNTIF(Obecności_Listopad[6],\"N\")+COUNTIF(Obecności_Listopad[6],\"U\")","v":0},{"$f":"COUNTIF(Obecności_Listopad[7],\"N\")+COUNTIF(Obecności_Listopad[7],\"U\")","v":0},{"$f":"COUNTIF(Obecności_Listopad[8],\"N\")+COUNTIF(Obecności_Listopad[8],\"U\")","v":0},{"$f":"COUNTIF(Obecności_Listopad[9],\"N\")+COUNTIF(Obecności_Listopad[9],\"U\")","v":0},{"$f":"COUNTIF(Obecności_Listopad[10],\"N\")+COUNTIF(Obecności_Listopad[10],\"U\")","v":0},{"$f":"COUNTIF(Obecności_Listopad[11],\"N\")+COUNTIF(Obecności_Listopad[11],\"U\")","v":0},{"$f":"COUNTIF(Obecności_Listopad[12],\"N\")+COUNTIF(Obecności_Listopad[12],\"U\")","v":0},{"$f":"COUNTIF(Obecności_Listopad[13],\"N\")+COUNTIF(Obecności_Listopad[13],\"U\")","v":0},{"$f":"COUNTIF(Obecności_Listopad[14],\"N\")+COUNTIF(Obecności_Listopad[14],\"U\")","v":0},{"$f":"COUNTIF(Obecności_Listopad[15],\"N\")+COUNTIF(Obecności_Listopad[15],\"U\")","v":0},{"$f":"COUNTIF(Obecności_Listopad[16],\"N\")+COUNTIF(Obecności_Listopad[16],\"U\")","v":0},{"$f":"COUNTIF(Obecności_Listopad[17],\"N\")+COUNTIF(Obecności_Listopad[17],\"U\")","v":0},{"$f":"COUNTIF(Obecności_Listopad[18],\"N\")+COUNTIF(Obecności_Listopad[18],\"U\")","v":0},{"$f":"COUNTIF(Obecności_Listopad[19],\"N\")+COUNTIF(Obecności_Listopad[19],\"U\")","v":0},{"$f":"COUNTIF(Obecności_Listopad[20],\"N\")+COUNTIF(Obecności_Listopad[20],\"U\")","v":0},{"$f":"COUNTIF(Obecności_Listopad[21],\"N\")+COUNTIF(Obecności_Listopad[21],\"U\")","v":0},{"$f":"COUNTIF(Obecności_Listopad[22],\"N\")+COUNTIF(Obecności_Listopad[22],\"U\")","v":0},{"$f":"COUNTIF(Obecności_Listopad[23],\"N\")+COUNTIF(Obecności_Listopad[23],\"U\")","v":0},{"$f":"COUNTIF(Obecności_Listopad[24],\"N\")+COUNTIF(Obecności_Listopad[24],\"U\")","v":0},{"$f":"COUNTIF(Obecności_Listopad[25],\"N\")+COUNTIF(Obecności_Listopad[25],\"U\")","v":0},{"$f":"COUNTIF(Obecności_Listopad[26],\"N\")+COUNTIF(Obecności_Listopad[26],\"U\")","v":0},{"$f":"COUNTIF(Obecności_Listopad[27],\"N\")+COUNTIF(Obecności_Listopad[27],\"U\")","v":0},{"$f":"COUNTIF(Obecności_Listopad[28],\"N\")+COUNTIF(Obecności_Listopad[28],\"U\")","v":0},{"$f":"COUNTIF(Obecności_Listopad[29],\"N\")+COUNTIF(Obecności_Listopad[29],\"U\")","v":0},{"$f":"COUNTIF(Obecności_Listopad[30],\"N\")+COUNTIF(Obecności_Listopad[30],\"U\")","v":0},{"$f":"COUNTIF(Obecności_Listopad[[ ]],\"N\")+COUNTIF(Obecności_Listopad[[ ]],\"U\")","v":0},{"$f":"SUBTOTAL(109,Obecności_Listopad[S])","v":0},{"$f":"SUBTOTAL(109,Obecności_Listopad[U])","v":0},{"$f":"SUBTOTAL(109,Obecności_Listopad[N])","v":0},{"$f":"SUBTOTAL(109,Obecności_Listopad[O])","v":0},{"$f":"SUBTOTAL(109,Obecności_Listopad[Dni nieobecności])","v":0}]

{"sheet":"Grudzień","index":6,"n_rows":12,"n_cols":39,"rows_kept":12,"merged":[[4,34,4,38]]}
["REJESTR OBECNOŚCI UCZNIA",{"$nulls":36},"Początek roku szkolnego:",{"$f":"RokKalendarzowy","v":2012}]
[]
[null,null,{"$f":"LegendaKolorów_tekst","v":"LEGENDA KOLORÓW "},{"$f":"Kod_1","v":"S"},{"$f":"Kod1_tekst","v":"Spóźnienie"},null,null,{"$f":"Kod_2","v":"U"},{"$f":"Kod2_tekst","v":"Nieobecność usprawiedliwiona"},{"$nulls":5},{"$f":"Kod_3","v":"N"},{"$f":"Kod3_tekst","v":"Nieobecność nieusprawiedliwiona"},{"$nulls":5},{"$f":"Kod_4","v":"O"},{"$f":"Kod4_tekst","v":"Obecność"},null,null,{"$f":"Kod_5","v":"B"},{"$f":"Kod5_tekst","v":"Brak zajęć"}]
[]
[null,{"$f":"DATE(RokKalendarzowy,12,1)","v":"2012-12-01"},null,{"$f":"TEXT(WEEKDAY(DATE(RokKalendarzowy,12,1),1),\"aaa\")","v":"So"},{"$f":"TEXT(WEEKDAY(DATE(RokKalendarzowy,12,2),1),\"aaa\")","v":"N"},{"$f":"TEXT(WEEKDAY(DATE(RokKalendarzowy,12,3),1),\"aaa\")","v":"Pn"},{"$f":"TEXT(WEEKDAY(DATE(RokKalendarzowy,12,4),1),\"aaa\")","v":"Wt"},{"$f":"TEXT(WEEKDAY(DATE(RokKalendarzowy,12,5),1),\"aaa\")","v":"Śr"},{"$f":"TEXT(WEEKDAY(DATE(RokKalendarzowy,12,6),1),\"aaa\")","v":"Cz"},{"$f":"TEXT(WEEKDAY(DATE(RokKalendarzowy,12,7),1),\"aaa\")","v":"Pt"},{"$f":"TEXT(WEEKDAY(DATE(RokKalendarzowy,12,8),1),\"aaa\")","v":"So"},{"$f":"TEXT(WEEKDAY(DATE(RokKalendarzowy,12,9),1),\"aaa\")","v":"N"},{"$f":"TEXT(WEEKDAY(DATE(RokKalendarzowy,12,10),1),\"aaa\")","v":"Pn"},{"$f":"TEXT(WEEKDAY(DATE(RokKalendarzowy,12,11),1),\"aaa\")","v":"Wt"},{"$f":"TEXT(WEEKDAY(DATE(RokKalendarzowy,12,12),1),\"aaa\")","v":"Śr"},{"$f":"TEXT(WEEKDAY(DATE(RokKalendarzowy,12,13),1),\"aaa\")","v":"Cz"},{"$f":"TEXT(WEEKDAY(DATE(RokKalendarzowy,12,14),1),\"aaa\")","v":"Pt"},{"$f":"TEXT(WEEKDAY(DATE(RokKalendarzowy,12,15),1),\"aaa\")","v":"So"},{"$f":"TEXT(WEEKDAY(DATE(RokKalendarzowy,12,16),1),\"aaa\")","v":"N"},{"$f":"TEXT(WEEKDAY(DATE(RokKalendarzowy,12,17),1),\"aaa\")","v":"Pn"},{"$f":"TEXT(WEEKDAY(DATE(RokKalendarzowy,12,18),1),\"aaa\")","v":"Wt"},{"$f":"TEXT(WEEKDAY(DATE(RokKalendarzowy,12,19),1),\"aaa\")","v":"Śr"},{"$f":"TEXT(WEEKDAY(DATE(RokKalendarzowy,12,20),1),\"aaa\")","v":"Cz"},{"$f":"TEXT(WEEKDAY(DATE(RokKalendarzowy,12,21),1),\"aaa\")","v":"Pt"},{"$f":"TEXT(WEEKDAY(DATE(RokKalendarzowy,12,22),1),\"aaa\")","v":"So"},{"$f":"TEXT(WEEKDAY(DATE(RokKalendarzowy,12,23),1),\"aaa\")","v":"N"},{"$f":"TEXT(WEEKDAY(DATE(RokKalendarzowy,12,24),1),\"aaa\")","v":"Pn"},{"$f":"TEXT(WEEKDAY(DATE(RokKalendarzowy,12,25),1),\"aaa\")","v":"Wt"},{"$f":"TEXT(WEEKDAY(DATE(RokKalendarzowy,12,26),1),\"aaa\")","v":"Śr"},{"$f":"TEXT(WEEKDAY(DATE(RokKalendarzowy,12,27),1),\"aaa\")","v":"Cz"},{"$f":"TEXT(WEEKDAY(DATE(RokKalendarzowy,12,28),1),\"aaa\")","v":"Pt"},{"$f":"TEXT(WEEKDAY(DATE(RokKalendarzowy,12,29),1),\"aaa\")","v":"So"},{"$f":"TEXT(WEEKDAY(DATE(RokKalendarzowy,12,30),1),\"aaa\")","v":"N"},{"$f":"TEXT(WEEKDAY(DATE(RokKalendarzowy,12,31),1),\"aaa\")","v":"Pn"},"Sumy"]
[null,"Identyfikator ucznia","Imię i nazwisko ucznia","1","2","3","4","5","6","7","8","9","10","11","12","13","14","15","16","17","18","19","20","21","22","23","24","25","26","27","28","29","30","31","S","U","N","O","Dni nieobecności"]
[null,null,{"$f":"IFERROR(VLOOKUP(Obecności_Grudzień[[#This Row],[Identyfikator ucznia]],ListaUczniów[],18,FALSE),\"\")","v":""},{"$nulls":31},{"$f":"COUNTIF(Obecności_Grudzień[[#This Row],[1]:[31]],Kod_1)","v":0},{"$f":"COUNTIF(Obecności_Grudzień[[#This Row],[1]:[31]],Kod_2)","v":0},{"$f":"COUNTIF(Obecności_Grudzień[[#This Row],[1]:[31]],Kod_3)","v":0},{"$f":"COUNTIF(Obecności_Grudzień[[#This Row],[1]:[31]],Kod_4)","v":0},{"$f":"SUM(Obecności_Wrzesień[[#This Row],[U]:[N]])","v":0}]
[null,null,{"$f":"IFERROR(VLOOKUP(Obecności_Grudzień[[#This Row],[Identyfikator ucznia]],ListaUczniów[],18,FALSE),\"\")","v":""},{"$nulls":31},{"$f":"COUNTIF(Obecności_Grudzień[[#This Row],[1]:[31]],Kod_1)","v":0},{"$f":"COUNTIF(Obecności_Grudzień[[#This Row],[1]:[31]],Kod_2)","v":0},{"$f":"COUNTIF(Obecności_Grudzień[[#This Row],[1]:[31]],Kod_3)","v":0},{"$f":"COUNTIF(Obecności_Grudzień[[#This Row],[1]:[31]],Kod_4)","v":0},{"$f":"SUM(Obecności_Wrzesień[[#This Row],[U]:[N]])","v":0}]
[null,null,{"$f":"IFERROR(VLOOKUP(Obecności_Grudzień[[#This Row],[Identyfikator ucznia]],ListaUczniów[],18,FALSE),\"\")","v":""},{"$nulls":31},{"$f":"COUNTIF(Obecności_Grudzień[[#This Row],[1]:[31]],Kod_1)","v":0},{"$f":"COUNTIF(Obecności_Grudzień[[#This Row],[1]:[31]],Kod_2)","v":0},{"$f":"COUNTIF(Obecności_Grudzień[[#This Row],[1]:[31]],Kod_3)","v":0},{"$f":"COUNTIF(Obecności_Grudzień[[#This Row],[1]:[31]],Kod_4)","v":0},{"$f":"SUM(Obecności_Wrzesień[[#This Row],[U]:[N]])","v":0}]
[null,null,{"$f":"IFERROR(VLOOKUP(Obecności_Grudzień[[#This Row],[Identyfikator ucznia]],ListaUczniów[],18,FALSE),\"\")","v":""},{"$nulls":31},{"$f":"COUNTIF(Obecności_Grudzień[[#This Row],[1]:[31]],Kod_1)","v":0},{"$f":"COUNTIF(Obecności_Grudzień[[#This Row],[1]:[31]],Kod_2)","v":0},{"$f":"COUNTIF(Obecności_Grudzień[[#This Row],[1]:[31]],Kod_3)","v":0},{"$f":"COUNTIF(Obecności_Grudzień[[#This Row],[1]:[31]],Kod_4)","v":0},{"$f":"SUM(Obecności_Wrzesień[[#This Row],[U]:[N]])","v":0}]
[null,null,{"$f":"IFERROR(VLOOKUP(Obecności_Grudzień[[#This Row],[Identyfikator ucznia]],ListaUczniów[],18,FALSE),\"\")","v":""},{"$nulls":31},{"$f":"COUNTIF(Obecności_Grudzień[[#This Row],[1]:[31]],Kod_1)","v":0},{"$f":"COUNTIF(Obecności_Grudzień[[#This Row],[1]:[31]],Kod_2)","v":0},{"$f":"COUNTIF(Obecności_Grudzień[[#This Row],[1]:[31]],Kod_3)","v":0},{"$f":"COUNTIF(Obecności_Grudzień[[#This Row],[1]:[31]],Kod_4)","v":0},{"$f":"SUM(Obecności_Wrzesień[[#This Row],[U]:[N]])","v":0}]
[null,null,"Łączna liczba dni nieobecności",{"$f":"COUNTIF(Obecności_Grudzień[1],\"N\")+COUNTIF(Obecności_Grudzień[1],\"U\")","v":0},{"$f":"COUNTIF(Obecności_Grudzień[2],\"N\")+COUNTIF(Obecności_Grudzień[2],\"U\")","v":0},{"$f":"COUNTIF(Obecności_Grudzień[3],\"N\")+COUNTIF(Obecności_Grudzień[3],\"U\")","v":0},{"$f":"COUNTIF(Obecności_Grudzień[4],\"N\")+COUNTIF(Obecności_Grudzień[4],\"U\")","v":0},{"$f":"COUNTIF(Obecności_Grudzień[5],\"N\")+COUNTIF(Obecności_Grudzień[5],\"U\")","v":0},{"$f":"COUNTIF(Obecności_Grudzień[6],\"N\")+COUNTIF(Obecności_Grudzień[6],\"U\")","v":0},{"$f":"COUNTIF(Obecności_Grudzień[7],\"N\")+COUNTIF(Obecności_Grudzień[7],\"U\")","v":0},{"$f":"COUNTIF(Obecności_Grudzień[8],\"N\")+COUNTIF(Obecności_Grudzień[8],\"U\")","v":0},{"$f":"COUNTIF(Obecności_Grudzień[9],\"N\")+COUNTIF(Obecności_Grudzień[9],\"U\")","v":0},{"$f":"COUNTIF(Obecności_Grudzień[10],\"N\")+COUNTIF(Obecności_Grudzień[10],\"U\")","v":0},{"$f":"COUNTIF(Obecności_Grudzień[11],\"N\")+COUNTIF(Obecności_Grudzień[11],\"U\")","v":0},{"$f":"COUNTIF(Obecności_Grudzień[12],\"N\")+COUNTIF(Obecności_Grudzień[12],\"U\")","v":0},{"$f":"COUNTIF(Obecności_Grudzień[13],\"N\")+COUNTIF(Obecności_Grudzień[13],\"U\")","v":0},{"$f":"COUNTIF(Obecności_Grudzień[14],\"N\")+COUNTIF(Obecności_Grudzień[14],\"U\")","v":0},{"$f":"COUNTIF(Obecności_Grudzień[15],\"N\")+COUNTIF(Obecności_Grudzień[15],\"U\")","v":0},{"$f":"COUNTIF(Obecności_Grudzień[16],\"N\")+COUNTIF(Obecności_Grudzień[16],\"U\")","v":0},{"$f":"COUNTIF(Obecności_Grudzień[17],\"N\")+COUNTIF(Obecności_Grudzień[17],\"U\")","v":0},{"$f":"COUNTIF(Obecności_Grudzień[18],\"N\")+COUNTIF(Obecności_Grudzień[18],\"U\")","v":0},{"$f":"COUNTIF(Obecności_Grudzień[19],\"N\")+COUNTIF(Obecności_Grudzień[19],\"U\")","v":0},{"$f":"COUNTIF(Obecności_Grudzień[20],\"N\")+COUNTIF(Obecności_Grudzień[20],\"U\")","v":0},{"$f":"COUNTIF(Obecności_Grudzień[21],\"N\")+COUNTIF(Obecności_Grudzień[21],\"U\")","v":0},{"$f":"COUNTIF(Obecności_Grudzień[22],\"N\")+COUNTIF(Obecności_Grudzień[22],\"U\")","v":0},{"$f":"COUNTIF(Obecności_Grudzień[23],\"N\")+COUNTIF(Obecności_Grudzień[23],\"U\")","v":0},{"$f":"COUNTIF(Obecności_Grudzień[24],\"N\")+COUNTIF(Obecności_Grudzień[24],\"U\")","v":0},{"$f":"COUNTIF(Obecności_Grudzień[25],\"N\")+COUNTIF(Obecności_Grudzień[25],\"U\")","v":0},{"$f":"COUNTIF(Obecności_Grudzień[26],\"N\")+COUNTIF(Obecności_Grudzień[26],\"U\")","v":0},{"$f":"COUNTIF(Obecności_Grudzień[27],\"N\")+COUNTIF(Obecności_Grudzień[27],\"U\")","v":0},{"$f":"COUNTIF(Obecności_Grudzień[28],\"N\")+COUNTIF(Obecności_Grudzień[28],\"U\")","v":0},{"$f":"COUNTIF(Obecności_Grudzień[29],\"N\")+COUNTIF(Obecności_Grudzień[29],\"U\")","v":0},{"$f":"COUNTIF(Obecności_Grudzień[30],\"N\")+COUNTIF(Obecności_Grudzień[30],\"U\")","v":0},{"$f":"COUNTIF(Obecności_Grudzień[31],\"N\")+COUNTIF(Obecności_Grudzień[31],\"U\")","v":0},{"$f":"SUBTOTAL(109,Obecności_Grudzień[S])","v":0},{"$f":"SUBTOTAL(109,Obecności_Grudzień[U])","v":0},{"$f":"SUBTOTAL(109,Obecności_Grudzień[N])","v":0},{"$f":"SUBTOTAL(109,Obecności_Grudzień[O])","v":0},{"$f":"SUBTOTAL(109,Obecności_Grudzień[Dni nieobecności])","v":0}]

{"sheet":"Styczeń","index":7,"n_rows":12,"n_cols":39,"rows_kept":12,"merged":[[4,34,4,38]]}
["REJESTR OBECNOŚCI UCZNIA",{"$nulls":36},"Początek roku szkolnego:",{"$f":"RokKalendarzowy","v":2012}]
[]
[null,null,{"$f":"LegendaKolorów_tekst","v":"LEGENDA KOLORÓW "},{"$f":"Kod_1","v":"S"},{"$f":"Kod1_tekst","v":"Spóźnienie"},null,null,{"$f":"Kod_2","v":"U"},{"$f":"Kod2_tekst","v":"Nieobecność usprawiedliwiona"},{"$nulls":5},{"$f":"Kod_3","v":"N"},{"$f":"Kod3_tekst","v":"Nieobecność nieusprawiedliwiona"},{"$nulls":5},{"$f":"Kod_4","v":"O"},{"$f":"Kod4_tekst","v":"Obecność"},null,null,{"$f":"Kod_5","v":"B"},{"$f":"Kod5_tekst","v":"Brak zajęć"}]
[]
[null,{"$f":"DATE(RokKalendarzowy+1,1,1)","v":"2013-01-01"},null,{"$f":"TEXT(WEEKDAY(DATE(RokKalendarzowy+1,1,1),1),\"aaa\")","v":"Wt"},{"$f":"TEXT(WEEKDAY(DATE(RokKalendarzowy+1,1,2),1),\"aaa\")","v":"Śr"},{"$f":"TEXT(WEEKDAY(DATE(RokKalendarzowy+1,1,3),1),\"aaa\")","v":"Cz"},{"$f":"TEXT(WEEKDAY(DATE(RokKalendarzowy+1,1,4),1),\"aaa\")","v":"Pt"},{"$f":"TEXT(WEEKDAY(DATE(RokKalendarzowy+1,1,5),1),\"aaa\")","v":"So"},{"$f":"TEXT(WEEKDAY(DATE(RokKalendarzowy+1,1,6),1),\"aaa\")","v":"N"},{"$f":"TEXT(WEEKDAY(DATE(RokKalendarzowy+1,1,7),1),\"aaa\")","v":"Pn"},{"$f":"TEXT(WEEKDAY(DATE(RokKalendarzowy+1,1,8),1),\"aaa\")","v":"Wt"},{"$f":"TEXT(WEEKDAY(DATE(RokKalendarzowy+1,1,9),1),\"aaa\")","v":"Śr"},{"$f":"TEXT(WEEKDAY(DATE(RokKalendarzowy+1,1,10),1),\"aaa\")","v":"Cz"},{"$f":"TEXT(WEEKDAY(DATE(RokKalendarzowy+1,1,11),1),\"aaa\")","v":"Pt"},{"$f":"TEXT(WEEKDAY(DATE(RokKalendarzowy+1,1,12),1),\"aaa\")","v":"So"},{"$f":"TEXT(WEEKDAY(DATE(RokKalendarzowy+1,1,13),1),\"aaa\")","v":"N"},{"$f":"TEXT(WEEKDAY(DATE(RokKalendarzowy+1,1,14),1),\"aaa\")","v":"Pn"},{"$f":"TEXT(WEEKDAY(DATE(RokKalendarzowy+1,1,15),1),\"aaa\")","v":"Wt"},{"$f":"TEXT(WEEKDAY(DATE(RokKalendarzowy+1,1,16),1),\"aaa\")","v":"Śr"},{"$f":"TEXT(WEEKDAY(DATE(RokKalendarzowy+1,1,17),1),\"aaa\")","v":"Cz"},{"$f":"TEXT(WEEKDAY(DATE(RokKalendarzowy+1,1,18),1),\"aaa\")","v":"Pt"},{"$f":"TEXT(WEEKDAY(DATE(RokKalendarzowy+1,1,19),1),\"aaa\")","v":"So"},{"$f":"TEXT(WEEKDAY(DATE(RokKalendarzowy+1,1,20),1),\"aaa\")","v":"N"},{"$f":"TEXT(WEEKDAY(DATE(RokKalendarzowy+1,1,21),1),\"aaa\")","v":"Pn"},{"$f":"TEXT(WEEKDAY(DATE(RokKalendarzowy+1,1,22),1),\"aaa\")","v":"Wt"},{"$f":"TEXT(WEEKDAY(DATE(RokKalendarzowy+1,1,23),1),\"aaa\")","v":"Śr"},{"$f":"TEXT(WEEKDAY(DATE(RokKalendarzowy+1,1,24),1),\"aaa\")","v":"Cz"},{"$f":"TEXT(WEEKDAY(DATE(RokKalendarzowy+1,1,25),1),\"aaa\")","v":"Pt"},{"$f":"TEXT(WEEKDAY(DATE(RokKalendarzowy+1,1,26),1),\"aaa\")","v":"So"},{"$f":"TEXT(WEEKDAY(DATE(RokKalendarzowy+1,1,27),1),\"aaa\")","v":"N"},{"$f":"TEXT(WEEKDAY(DATE(RokKalendarzowy+1,1,28),1),\"aaa\")","v":"Pn"},{"$f":"TEXT(WEEKDAY(DATE(RokKalendarzowy+1,1,29),1),\"aaa\")","v":"Wt"},{"$f":"TEXT(WEEKDAY(DATE(RokKalendarzowy+1,1,30),1),\"aaa\")","v":"Śr"},{"$f":"TEXT(WEEKDAY(DATE(RokKalendarzowy+1,1,31),1),\"aaa\")","v":"Cz"},"Sumy"]
[null,"Identyfikator ucznia","Imię i nazwisko ucznia","1","2","3","4","5","6","7","8","9","10","11","12","13","14","15","16","17","18","19","20","21","22","23","24","25","26","27","28","29","30","31","S","U","N","O","Dni nieobecności"]
[null,null,{"$f":"IFERROR(VLOOKUP(Obecności_Styczeń[[#This Row],[Identyfikator ucznia]],ListaUczniów[],18,FALSE),\"\")","v":""},{"$nulls":31},{"$f":"COUNTIF(Obecności_Styczeń[[#This Row],[1]:[31]],Kod_1)","v":0},{"$f":"COUNTIF(Obecności_Styczeń[[#This Row],[1]:[31]],Kod_2)","v":0},{"$f":"COUNTIF(Obecności_Styczeń[[#This Row],[1]:[31]],Kod_3)","v":0},{"$f":"COUNTIF(Obecności_Styczeń[[#This Row],[1]:[31]],Kod_4)","v":0},{"$f":"SUM(Obecności_Wrzesień[[#This Row],[U]:[N]])","v":0}]
[null,null,{"$f":"IFERROR(VLOOKUP(Obecności_Styczeń[[#This Row],[Identyfikator ucznia]],ListaUczniów[],18,FALSE),\"\")","v":""},{"$nulls":31},{"$f":"COUNTIF(Obecności_Styczeń[[#This Row],[1]:[31]],Kod_1)","v":0},{"$f":"COUNTIF(Obecności_Styczeń[[#This Row],[1]:[31]],Kod_2)","v":0},{"$f":"COUNTIF(Obecności_Styczeń[[#This Row],[1]:[31]],Kod_3)","v":0},{"$f":"COUNTIF(Obecności_Styczeń[[#This Row],[1]:[31]],Kod_4)","v":0},{"$f":"SUM(Obecności_Wrzesień[[#This Row],[U]:[N]])","v":0}]
[null,null,{"$f":"IFERROR(VLOOKUP(Obecności_Styczeń[[#This Row],[Identyfikator ucznia]],ListaUczniów[],18,FALSE),\"\")","v":""},{"$nulls":31},{"$f":"COUNTIF(Obecności_Styczeń[[#This Row],[1]:[31]],Kod_1)","v":0},{"$f":"COUNTIF(Obecności_Styczeń[[#This Row],[1]:[31]],Kod_2)","v":0},{"$f":"COUNTIF(Obecności_Styczeń[[#This Row],[1]:[31]],Kod_3)","v":0},{"$f":"COUNTIF(Obecności_Styczeń[[#This Row],[1]:[31]],Kod_4)","v":0},{"$f":"SUM(Obecności_Wrzesień[[#This Row],[U]:[N]])","v":0}]
[null,null,{"$f":"IFERROR(VLOOKUP(Obecności_Styczeń[[#This Row],[Identyfikator ucznia]],ListaUczniów[],18,FALSE),\"\")","v":""},{"$nulls":31},{"$f":"COUNTIF(Obecności_Styczeń[[#This Row],[1]:[31]],Kod_1)","v":0},{"$f":"COUNTIF(Obecności_Styczeń[[#This Row],[1]:[31]],Kod_2)","v":0},{"$f":"COUNTIF(Obecności_Styczeń[[#This Row],[1]:[31]],Kod_3)","v":0},{"$f":"COUNTIF(Obecności_Styczeń[[#This Row],[1]:[31]],Kod_4)","v":0},{"$f":"SUM(Obecności_Wrzesień[[#This Row],[U]:[N]])","v":0}]
[null,null,{"$f":"IFERROR(VLOOKUP(Obecności_Styczeń[[#This Row],[Identyfikator ucznia]],ListaUczniów[],18,FALSE),\"\")","v":""},{"$nulls":31},{"$f":"COUNTIF(Obecności_Styczeń[[#This Row],[1]:[31]],Kod_1)","v":0},{"$f":"COUNTIF(Obecności_Styczeń[[#This Row],[1]:[31]],Kod_2)","v":0},{"$f":"COUNTIF(Obecności_Styczeń[[#This Row],[1]:[31]],Kod_3)","v":0},{"$f":"COUNTIF(Obecności_Styczeń[[#This Row],[1]:[31]],Kod_4)","v":0},{"$f":"SUM(Obecności_Wrzesień[[#This Row],[U]:[N]])","v":0}]
[null,null,"Łączna liczba dni nieobecności",{"$f":"COUNTIF(Obecności_Styczeń[1],\"N\")+COUNTIF(Obecności_Styczeń[1],\"U\")","v":0},{"$f":"COUNTIF(Obecności_Styczeń[2],\"N\")+COUNTIF(Obecności_Styczeń[2],\"U\")","v":0},{"$f":"COUNTIF(Obecności_Styczeń[3],\"N\")+COUNTIF(Obecności_Styczeń[3],\"U\")","v":0},{"$f":"COUNTIF(Obecności_Styczeń[4],\"N\")+COUNTIF(Obecności_Styczeń[4],\"U\")","v":0},{"$f":"COUNTIF(Obecności_Styczeń[5],\"N\")+COUNTIF(Obecności_Styczeń[5],\"U\")","v":0},{"$f":"COUNTIF(Obecności_Styczeń[6],\"N\")+COUNTIF(Obecności_Styczeń[6],\"U\")","v":0},{"$f":"COUNTIF(Obecności_Styczeń[7],\"N\")+COUNTIF(Obecności_Styczeń[7],\"U\")","v":0},{"$f":"COUNTIF(Obecności_Styczeń[8],\"N\")+COUNTIF(Obecności_Styczeń[8],\"U\")","v":0},{"$f":"COUNTIF(Obecności_Styczeń[9],\"N\")+COUNTIF(Obecności_Styczeń[9],\"U\")","v":0},{"$f":"COUNTIF(Obecności_Styczeń[10],\"N\")+COUNTIF(Obecności_Styczeń[10],\"U\")","v":0},{"$f":"COUNTIF(Obecności_Styczeń[11],\"N\")+COUNTIF(Obecności_Styczeń[11],\"U\")","v":0},{"$f":"COUNTIF(Obecności_Styczeń[12],\"N\")+COUNTIF(Obecności_Styczeń[12],\"U\")","v":0},{"$f":"COUNTIF(Obecności_Styczeń[13],\"N\")+COUNTIF(Obecności_Styczeń[13],\"U\")","v":0},{"$f":"COUNTIF(Obecności_Styczeń[14],\"N\")+COUNTIF(Obecności_Styczeń[14],\"U\")","v":0},{"$f":"COUNTIF(Obecności_Styczeń[15],\"N\")+COUNTIF(Obecności_Styczeń[15],\"U\")","v":0},{"$f":"COUNTIF(Obecności_Styczeń[16],\"N\")+COUNTIF(Obecności_Styczeń[16],\"U\")","v":0},{"$f":"COUNTIF(Obecności_Styczeń[17],\"N\")+COUNTIF(Obecności_Styczeń[17],\"U\")","v":0},{"$f":"COUNTIF(Obecności_Styczeń[18],\"N\")+COUNTIF(Obecności_Styczeń[18],\"U\")","v":0},{"$f":"COUNTIF(Obecności_Styczeń[19],\"N\")+COUNTIF(Obecności_Styczeń[19],\"U\")","v":0},{"$f":"COUNTIF(Obecności_Styczeń[20],\"N\")+COUNTIF(Obecności_Styczeń[20],\"U\")","v":0},{"$f":"COUNTIF(Obecności_Styczeń[21],\"N\")+COUNTIF(Obecności_Styczeń[21],\"U\")","v":0},{"$f":"COUNTIF(Obecności_Styczeń[22],\"N\")+COUNTIF(Obecności_Styczeń[22],\"U\")","v":0},{"$f":"COUNTIF(Obecności_Styczeń[23],\"N\")+COUNTIF(Obecności_Styczeń[23],\"U\")","v":0},{"$f":"COUNTIF(Obecności_Styczeń[24],\"N\")+COUNTIF(Obecności_Styczeń[24],\"U\")","v":0},{"$f":"COUNTIF(Obecności_Styczeń[25],\"N\")+COUNTIF(Obecności_Styczeń[25],\"U\")","v":0},{"$f":"COUNTIF(Obecności_Styczeń[26],\"N\")+COUNTIF(Obecności_Styczeń[26],\"U\")","v":0},{"$f":"COUNTIF(Obecności_Styczeń[27],\"N\")+COUNTIF(Obecności_Styczeń[27],\"U\")","v":0},{"$f":"COUNTIF(Obecności_Styczeń[28],\"N\")+COUNTIF(Obecności_Styczeń[28],\"U\")","v":0},{"$f":"COUNTIF(Obecności_Styczeń[29],\"N\")+COUNTIF(Obecności_Styczeń[29],\"U\")","v":0},{"$f":"COUNTIF(Obecności_Styczeń[30],\"N\")+COUNTIF(Obecności_Styczeń[30],\"U\")","v":0},{"$f":"COUNTIF(Obecności_Styczeń[31],\"N\")+COUNTIF(Obecności_Styczeń[31],\"U\")","v":0},{"$f":"SUBTOTAL(109,Obecności_Styczeń[S])","v":0},{"$f":"SUBTOTAL(109,Obecności_Styczeń[U])","v":0},{"$f":"SUBTOTAL(109,Obecności_Styczeń[N])","v":0},{"$f":"SUBTOTAL(109,Obecności_Styczeń[O])","v":0},{"$f":"SUBTOTAL(109,Obecności_Styczeń[Dni nieobecności])","v":0}]

{"sheet":"Luty","index":8,"n_rows":12,"n_cols":39,"rows_kept":12,"merged":[[4,34,4,38]]}
["REJESTR OBECNOŚCI UCZNIA",{"$nulls":36},"Początek roku szkolnego:",{"$f":"RokKalendarzowy","v":2012}]
[]
[null,null,{"$f":"LegendaKolorów_tekst","v":"LEGENDA KOLORÓW "},{"$f":"Kod_1","v":"S"},{"$f":"Kod1_tekst","v":"Spóźnienie"},null,null,{"$f":"Kod_2","v":"U"},{"$f":"Kod2_tekst","v":"Nieobecność usprawiedliwiona"},{"$nulls":5},{"$f":"Kod_3","v":"N"},{"$f":"Kod3_tekst","v":"Nieobecność nieusprawiedliwiona"},{"$nulls":5},{"$f":"Kod_4","v":"O"},{"$f":"Kod4_tekst","v":"Obecność"},null,null,{"$f":"Kod_5","v":"B"},{"$f":"Kod5_tekst","v":"Brak zajęć"}]
[]
[null,{"$f":"DATE(RokKalendarzowy+1,2,1)","v":"2013-02-01"},null,{"$f":"TEXT(WEEKDAY(DATE(RokKalendarzowy+1,2,1),1),\"aaa\")","v":"Pt"},{"$f":"TEXT(WEEKDAY(DATE(RokKalendarzowy+1,2,2),1),\"aaa\")","v":"So"},{"$f":"TEXT(WEEKDAY(DATE(RokKalendarzowy+1,2,3),1),\"aaa\")","v":"N"},{"$f":"TEXT(WEEKDAY(DATE(RokKalendarzowy+1,2,4),1),\"aaa\")","v":"Pn"},{"$f":"TEXT(WEEKDAY(DATE(RokKalendarzowy+1,2,5),1),\"aaa\")","v":"Wt"},{"$f":"TEXT(WEEKDAY(DATE(RokKalendarzowy+1,2,6),1),\"aaa\")","v":"Śr"},{"$f":"TEXT(WEEKDAY(DATE(RokKalendarzowy+1,2,7),1),\"aaa\")","v":"Cz"},{"$f":"TEXT(WEEKDAY(DATE(RokKalendarzowy+1,2,8),1),\"aaa\")","v":"Pt"},{"$f":"TEXT(WEEKDAY(DATE(RokKalendarzowy+1,2,9),1),\"aaa\")","v":"So"},{"$f":"TEXT(WEEKDAY(DATE(RokKalendarzowy+1,2,10),1),\"aaa\")","v":"N"},{"$f":"TEXT(WEEKDAY(DATE(RokKalendarzowy+1,2,11),1),\"aaa\")","v":"Pn"},{"$f":"TEXT(WEEKDAY(DATE(RokKalendarzowy+1,2,12),1),\"aaa\")","v":"Wt"},{"$f":"TEXT(WEEKDAY(DATE(RokKalendarzowy+1,2,13),1),\"aaa\")","v":"Śr"},{"$f":"TEXT(WEEKDAY(DATE(RokKalendarzowy+1,2,14),1),\"aaa\")","v":"Cz"},{"$f":"TEXT(WEEKDAY(DATE(RokKalendarzowy+1,2,15),1),\"aaa\")","v":"Pt"},{"$f":"TEXT(WEEKDAY(DATE(RokKalendarzowy+1,2,16),1),\"aaa\")","v":"So"},{"$f":"TEXT(WEEKDAY(DATE(RokKalendarzowy+1,2,17),1),\"aaa\")","v":"N"},{"$f":"TEXT(WEEKDAY(DATE(RokKalendarzowy+1,2,18),1),\"aaa\")","v":"Pn"},{"$f":"TEXT(WEEKDAY(DATE(RokKalendarzowy+1,2,19),1),\"aaa\")","v":"Wt"},{"$f":"TEXT(WEEKDAY(DATE(RokKalendarzowy+1,2,20),1),\"aaa\")","v":"Śr"},{"$f":"TEXT(WEEKDAY(DATE(RokKalendarzowy+1,2,21),1),\"aaa\")","v":"Cz"},{"$f":"TEXT(WEEKDAY(DATE(RokKalendarzowy+1,2,22),1),\"aaa\")","v":"Pt"},{"$f":"TEXT(WEEKDAY(DATE(RokKalendarzowy+1,2,23),1),\"aaa\")","v":"So"},{"$f":"TEXT(WEEKDAY(DATE(RokKalendarzowy+1,2,24),1),\"aaa\")","v":"N"},{"$f":"TEXT(WEEKDAY(DATE(RokKalendarzowy+1,2,25),1),\"aaa\")","v":"Pn"},{"$f":"TEXT(WEEKDAY(DATE(RokKalendarzowy+1,2,26),1),\"aaa\")","v":"Wt"},{"$f":"TEXT(WEEKDAY(DATE(RokKalendarzowy+1,2,27),1),\"aaa\")","v":"Śr"},{"$f":"TEXT(WEEKDAY(DATE(RokKalendarzowy+1,2,28),1),\"aaa\")","v":"Cz"},{"$f":"TEXT(WEEKDAY(DATE(RokKalendarzowy+1,2,29),1),\"aaa\")","v":"Pt"},null,null,"Sumy"]
[null,"Identyfikator ucznia","Imię i nazwisko ucznia","1","2","3","4","5","6","7","8","9","10","11","12","13","14","15","16","17","18","19","20","21","22","23","24","25","26","27","28","29","30","31","S","U","N","O","Dni nieobecności"]
[null,null,{"$f":"IFERROR(VLOOKUP(Obecności_Luty[[#This Row],[Identyfikator ucznia]],ListaUczniów[],18,FALSE),\"\")","v":""},{"$nulls":31},{"$f":"COUNTIF(Obecności_Luty[[#This Row],[1]:[31]],Kod_1)","v":0},{"$f":"COUNTIF(Obecności_Luty[[#This Row],[1]:[31]],Kod_2)","v":0},{"$f":"COUNTIF(Obecności_Luty[[#This Row],[1]:[31]],Kod_3)","v":0},{"$f":"COUNTIF(Obecności_Luty[[#This Row],[1]:[31]],Kod_4)","v":0},{"$f":"SUM(Obecności_Wrzesień[[#This Row],[U]:[N]])","v":0}]
[null,null,{"$f":"IFERROR(VLOOKUP(Obecności_Luty[[#This Row],[Identyfikator ucznia]],ListaUczniów[],18,FALSE),\"\")","v":""},{"$nulls":31},{"$f":"COUNTIF(Obecności_Luty[[#This Row],[1]:[31]],Kod_1)","v":0},{"$f":"COUNTIF(Obecności_Luty[[#This Row],[1]:[31]],Kod_2)","v":0},{"$f":"COUNTIF(Obecności_Luty[[#This Row],[1]:[31]],Kod_3)","v":0},{"$f":"COUNTIF(Obecności_Luty[[#This Row],[1]:[31]],Kod_4)","v":0},{"$f":"SUM(Obecności_Wrzesień[[#This Row],[U]:[N]])","v":0}]
[null,null,{"$f":"IFERROR(VLOOKUP(Obecności_Luty[[#This Row],[Identyfikator ucznia]],ListaUczniów[],18,FALSE),\"\")","v":""},{"$nulls":31},{"$f":"COUNTIF(Obecności_Luty[[#This Row],[1]:[31]],Kod_1)","v":0},{"$f":"COUNTIF(Obecności_Luty[[#This Row],[1]:[31]],Kod_2)","v":0},{"$f":"COUNTIF(Obecności_Luty[[#This Row],[1]:[31]],Kod_3)","v":0},{"$f":"COUNTIF(Obecności_Luty[[#This Row],[1]:[31]],Kod_4)","v":0},{"$f":"SUM(Obecności_Wrzesień[[#This Row],[U]:[N]])","v":0}]
[null,null,{"$f":"IFERROR(VLOOKUP(Obecności_Luty[[#This Row],[Identyfikator ucznia]],ListaUczniów[],18,FALSE),\"\")","v":""},{"$nulls":31},{"$f":"COUNTIF(Obecności_Luty[[#This Row],[1]:[31]],Kod_1)","v":0},{"$f":"COUNTIF(Obecności_Luty[[#This Row],[1]:[31]],Kod_2)","v":0},{"$f":"COUNTIF(Obecności_Luty[[#This Row],[1]:[31]],Kod_3)","v":0},{"$f":"COUNTIF(Obecności_Luty[[#This Row],[1]:[31]],Kod_4)","v":0},{"$f":"SUM(Obecności_Wrzesień[[#This Row],[U]:[N]])","v":0}]
[null,null,{"$f":"IFERROR(VLOOKUP(Obecności_Luty[[#This Row],[Identyfikator ucznia]],ListaUczniów[],18,FALSE),\"\")","v":""},{"$nulls":31},{"$f":"COUNTIF(Obecności_Luty[[#This Row],[1]:[31]],Kod_1)","v":0},{"$f":"COUNTIF(Obecności_Luty[[#This Row],[1]:[31]],Kod_2)","v":0},{"$f":"COUNTIF(Obecności_Luty[[#This Row],[1]:[31]],Kod_3)","v":0},{"$f":"COUNTIF(Obecności_Luty[[#This Row],[1]:[31]],Kod_4)","v":0},{"$f":"SUM(Obecności_Wrzesień[[#This Row],[U]:[N]])","v":0}]
[null,null,"Łączna liczba dni nieobecności",{"$f":"COUNTIF(Obecności_Luty[1],\"N\")+COUNTIF(Obecności_Luty[1],\"U\")","v":0},{"$f":"COUNTIF(Obecności_Luty[2],\"N\")+COUNTIF(Obecności_Luty[2],\"U\")","v":0},{"$f":"COUNTIF(Obecności_Luty[3],\"N\")+COUNTIF(Obecności_Luty[3],\"U\")","v":0},{"$f":"COUNTIF(Obecności_Luty[4],\"N\")+COUNTIF(Obecności_Luty[4],\"U\")","v":0},{"$f":"COUNTIF(Obecności_Luty[5],\"N\")+COUNTIF(Obecności_Luty[5],\"U\")","v":0},{"$f":"COUNTIF(Obecności_Luty[6],\"N\")+COUNTIF(Obecności_Luty[6],\"U\")","v":0},{"$f":"COUNTIF(Obecności_Luty[7],\"N\")+COUNTIF(Obecności_Luty[7],\"U\")","v":0},{"$f":"COUNTIF(Obecności_Luty[8],\"N\")+COUNTIF(Obecności_Luty[8],\"U\")","v":0},{"$f":"COUNTIF(Obecności_Luty[9],\"N\")+COUNTIF(Obecności_Luty[9],\"U\")","v":0},{"$f":"COUNTIF(Obecności_Luty[10],\"N\")+COUNTIF(Obecności_Luty[10],\"U\")","v":0},{"$f":"COUNTIF(Obecności_Luty[11],\"N\")+COUNTIF(Obecności_Luty[11],\"U\")","v":0},{"$f":"COUNTIF(Obecności_Luty[12],\"N\")+COUNTIF(Obecności_Luty[12],\"U\")","v":0},{"$f":"COUNTIF(Obecności_Luty[13],\"N\")+COUNTIF(Obecności_Luty[13],\"U\")","v":0},{"$f":"COUNTIF(Obecności_Luty[14],\"N\")+COUNTIF(Obecności_Luty[14],\"U\")","v":0},{"$f":"COUNTIF(Obecności_Luty[15],\"N\")+COUNTIF(Obecności_Luty[15],\"U\")","v":0},{"$f":"COUNTIF(Obecności_Luty[16],\"N\")+COUNTIF(Obecności_Luty[16],\"U\")","v":0},{"$f":"COUNTIF(Obecności_Luty[17],\"N\")+COUNTIF(Obecności_Luty[17],\"U\")","v":0},{"$f":"COUNTIF(Obecności_Luty[18],\"N\")+COUNTIF(Obecności_Luty[18],\"U\")","v":0},{"$f":"COUNTIF(Obecności_Luty[19],\"N\")+COUNTIF(Obecności_Luty[19],\"U\")","v":0},{"$f":"COUNTIF(Obecności_Luty[20],\"N\")+COUNTIF(Obecności_Luty[20],\"U\")","v":0},{"$f":"COUNTIF(Obecności_Luty[21],\"N\")+COUNTIF(Obecności_Luty[21],\"U\")","v":0},{"$f":"COUNTIF(Obecności_Luty[22],\"N\")+COUNTIF(Obecności_Luty[22],\"U\")","v":0},{"$f":"COUNTIF(Obecności_Luty[23],\"N\")+COUNTIF(Obecności_Luty[23],\"U\")","v":0},{"$f":"COUNTIF(Obecności_Luty[24],\"N\")+COUNTIF(Obecności_Luty[24],\"U\")","v":0},{"$f":"COUNTIF(Obecności_Luty[25],\"N\")+COUNTIF(Obecności_Luty[25],\"U\")","v":0},{"$f":"COUNTIF(Obecności_Luty[26],\"N\")+COUNTIF(Obecności_Luty[26],\"U\")","v":0},{"$f":"COUNTIF(Obecności_Luty[27],\"N\")+COUNTIF(Obecności_Luty[27],\"U\")","v":0},{"$f":"COUNTIF(Obecności_Luty[28],\"N\")+COUNTIF(Obecności_Luty[28],\"U\")","v":0},{"$f":"COUNTIF(Obecności_Luty[29],\"N\")+COUNTIF(Obecności_Luty[29],\"U\")","v":0},{"$f":"COUNTIF(Obecności_Luty[30],\"N\")+COUNTIF(Obecności_Luty[30],\"U\")","v":0},{"$f":"COUNTIF(Obecności_Luty[31],\"N\")+COUNTIF(Obecności_Luty[31],\"U\")","v":0},{"$f":"SUBTOTAL(109,Obecności_Luty[S])","v":0},{"$f":"SUBTOTAL(109,Obecności_Luty[U])","v":0},{"$f":"SUBTOTAL(109,Obecności_Luty[N])","v":0},{"$f":"SUBTOTAL(109,Obecności_Luty[O])","v":0},{"$f":"SUBTOTAL(109,Obecności_Luty[Dni nieobecności])","v":0}]

{"sheet":"Marzec","index":9,"n_rows":12,"n_cols":40,"rows_kept":12,"merged":[[4,34,4,38]]}
["REJESTR OBECNOŚCI UCZNIA",{"$nulls":36},"Początek roku szkolnego:",{"$f":"RokKalendarzowy","v":2012}]
[]
[null,null,{"$f":"LegendaKolorów_tekst","v":"LEGENDA KOLORÓW "},{"$f":"Kod_1","v":"S"},{"$f":"Kod1_tekst","v":"Spóźnienie"},null,null,{"$f":"Kod_2","v":"U"},{"$f":"Kod2_tekst","v":"Nieobecność usprawiedliwiona"},{"$nulls":5},{"$f":"Kod_3","v":"N"},{"$f":"Kod3_tekst","v":"Nieobecność nieusprawiedliwiona"},{"$nulls":5},{"$f":"Kod_4","v":"O"},{"$f":"Kod4_tekst","v":"Obecność"},null,null,{"$f":"Kod_5","v":"B"},{"$f":"Kod5_tekst","v":"Brak zajęć"}]
[]
[null,{"$f":"DATE(RokKalendarzowy+1,3,1)","v":"2013-03-01"},null,{"$f":"TEXT(WEEKDAY(DATE(RokKalendarzowy+1,3,1),1),\"aaa\")","v":"Pt"},{"$f":"TEXT(WEEKDAY(DATE(RokKalendarzowy+1,3,2),1),\"aaa\")","v":"So"},{"$f":"TEXT(WEEKDAY(DATE(RokKalendarzowy+1,3,3),1),\"aaa\")","v":"N"},{"$f":"TEXT(WEEKDAY(DATE(RokKalendarzowy+1,3,4),1),\"aaa\")","v":"Pn"},{"$f":"TEXT(WEEKDAY(DATE(RokKalendarzowy+1,3,5),1),\"aaa\")","v":"Wt"},{"$f":"TEXT(WEEKDAY(DATE(RokKalendarzowy+1,3,6),1),\"aaa\")","v":"Śr"},{"$f":"TEXT(WEEKDAY(DATE(RokKalendarzowy+1,3,7),1),\"aaa\")","v":"Cz"},{"$f":"TEXT(WEEKDAY(DATE(RokKalendarzowy+1,3,8),1),\"aaa\")","v":"Pt"},{"$f":"TEXT(WEEKDAY(DATE(RokKalendarzowy+1,3,9),1),\"aaa\")","v":"So"},{"$f":"TEXT(WEEKDAY(DATE(RokKalendarzowy+1,3,10),1),\"aaa\")","v":"N"},{"$f":"TEXT(WEEKDAY(DATE(RokKalendarzowy+1,3,11),1),\"aaa\")","v":"Pn"},{"$f":"TEXT(WEEKDAY(DATE(RokKalendarzowy+1,3,12),1),\"aaa\")","v":"Wt"},{"$f":"TEXT(WEEKDAY(DATE(RokKalendarzowy+1,3,13),1),\"aaa\")","v":"Śr"},{"$f":"TEXT(WEEKDAY(DATE(RokKalendarzowy+1,3,14),1),\"aaa\")","v":"Cz"},{"$f":"TEXT(WEEKDAY(DATE(RokKalendarzowy+1,3,15),1),\"aaa\")","v":"Pt"},{"$f":"TEXT(WEEKDAY(DATE(RokKalendarzowy+1,3,16),1),\"aaa\")","v":"So"},{"$f":"TEXT(WEEKDAY(DATE(RokKalendarzowy+1,3,17),1),\"aaa\")","v":"N"},{"$f":"TEXT(WEEKDAY(DATE(RokKalendarzowy+1,3,18),1),\"aaa\")","v":"Pn"},{"$f":"TEXT(WEEKDAY(DATE(RokKalendarzowy+1,3,19),1),\"aaa\")","v":"Wt"},{"$f":"TEXT(WEEKDAY(DATE(RokKalendarzowy+1,3,20),1),\"aaa\")","v":"Śr"},{"$f":"TEXT(WEEKDAY(DATE(RokKalendarzowy+1,3,21),1),\"aaa\")","v":"Cz"},{"$f":"TEXT(WEEKDAY(DATE(RokKalendarzowy+1,3,22),1),\"aaa\")","v":"Pt"},{"$f":"TEXT(WEEKDAY(DATE(RokKalendarzowy+1,3,23),1),\"aaa\")","v":"So"},{"$f":"TEXT(WEEKDAY(DATE(RokKalendarzowy+1,3,24),1),\"aaa\")","v":"N"},{"$f":"TEXT(WEEKDAY(DATE(RokKalendarzowy+1,3,25),1),\"aaa\")","v":"Pn"},{"$f":"TEXT(WEEKDAY(DATE(RokKalendarzowy+1,3,26),1),\"aaa\")","v":"Wt"},{"$f":"TEXT(WEEKDAY(DATE(RokKalendarzowy+1,3,27),1),\"aaa\")","v":"Śr"},{"$f":"TEXT(WEEKDAY(DATE(RokKalendarzowy+1,3,28),1),\"aaa\")","v":"Cz"},{"$f":"TEXT(WEEKDAY(DATE(RokKalendarzowy+1,3,29),1),\"aaa\")","v":"Pt"},{"$f":"TEXT(WEEKDAY(DATE(RokKalendarzowy+1,3,30),1),\"aaa\")","v":"So"},{"$f":"TEXT(WEEKDAY(DATE(RokKalendarzowy+1,3,31),1),\"aaa\")","v":"N"},"Sumy"]
[null,"Identyfikator ucznia","Imię i nazwisko ucznia","1","2","3","4","5","6","7","8","9","10","11","12","13","14","15","16","17","18","19","20","21","22","23","24","25","26","27","28","29","30","31","S","U","N","O","Dni nieobecności"]
[null,null,{"$f":"IFERROR(VLOOKUP(Obecności_Marzec[[#This Row],[Identyfikator ucznia]],ListaUczniów[],18,FALSE),\"\")","v":""},{"$nulls":31},{"$f":"COUNTIF(Obecności_Marzec[[#This Row],[1]:[31]],Kod_1)","v":0},{"$f":"COUNTIF(Obecności_Marzec[[#This Row],[1]:[31]],Kod_2)","v":0},{"$f":"COUNTIF(Obecności_Marzec[[#This Row],[1]:[31]],Kod_3)","v":0},{"$f":"COUNTIF(Obecności_Marzec[[#This Row],[1]:[31]],Kod_4)","v":0},{"$f":"SUM(Obecności_Wrzesień[[#This Row],[U]:[N]])","v":0}]
[null,null,{"$f":"IFERROR(VLOOKUP(Obecności_Marzec[[#This Row],[Identyfikator ucznia]],ListaUczniów[],18,FALSE),\"\")","v":""},{"$nulls":31},{"$f":"COUNTIF(Obecności_Marzec[[#This Row],[1]:[31]],Kod_1)","v":0},{"$f":"COUNTIF(Obecności_Marzec[[#This Row],[1]:[31]],Kod_2)","v":0},{"$f":"COUNTIF(Obecności_Marzec[[#This Row],[1]:[31]],Kod_3)","v":0},{"$f":"COUNTIF(Obecności_Marzec[[#This Row],[1]:[31]],Kod_4)","v":0},{"$f":"SUM(Obecności_Wrzesień[[#This Row],[U]:[N]])","v":0}]
[null,null,{"$f":"IFERROR(VLOOKUP(Obecności_Marzec[[#This Row],[Identyfikator ucznia]],ListaUczniów[],18,FALSE),\"\")","v":""},{"$nulls":31},{"$f":"COUNTIF(Obecności_Marzec[[#This Row],[1]:[31]],Kod_1)","v":0},{"$f":"COUNTIF(Obecności_Marzec[[#This Row],[1]:[31]],Kod_2)","v":0},{"$f":"COUNTIF(Obecności_Marzec[[#This Row],[1]:[31]],Kod_3)","v":0},{"$f":"COUNTIF(Obecności_Marzec[[#This Row],[1]:[31]],Kod_4)","v":0},{"$f":"SUM(Obecności_Wrzesień[[#This Row],[U]:[N]])","v":0}]
[null,null,{"$f":"IFERROR(VLOOKUP(Obecności_Marzec[[#This Row],[Identyfikator ucznia]],ListaUczniów[],18,FALSE),\"\")","v":""},{"$nulls":31},{"$f":"COUNTIF(Obecności_Marzec[[#This Row],[1]:[31]],Kod_1)","v":0},{"$f":"COUNTIF(Obecności_Marzec[[#This Row],[1]:[31]],Kod_2)","v":0},{"$f":"COUNTIF(Obecności_Marzec[[#This Row],[1]:[31]],Kod_3)","v":0},{"$f":"COUNTIF(Obecności_Marzec[[#This Row],[1]:[31]],Kod_4)","v":0},{"$f":"SUM(Obecności_Wrzesień[[#This Row],[U]:[N]])","v":0}]
[null,null,{"$f":"IFERROR(VLOOKUP(Obecności_Marzec[[#This Row],[Identyfikator ucznia]],ListaUczniów[],18,FALSE),\"\")","v":""},{"$nulls":31},{"$f":"COUNTIF(Obecności_Marzec[[#This Row],[1]:[31]],Kod_1)","v":0},{"$f":"COUNTIF(Obecności_Marzec[[#This Row],[1]:[31]],Kod_2)","v":0},{"$f":"COUNTIF(Obecności_Marzec[[#This Row],[1]:[31]],Kod_3)","v":0},{"$f":"COUNTIF(Obecności_Marzec[[#This Row],[1]:[31]],Kod_4)","v":0},{"$f":"SUM(Obecności_Wrzesień[[#This Row],[U]:[N]])","v":0}]
[null,null,"Łączna liczba dni nieobecności",{"$f":"COUNTIF(Obecności_Marzec[1],\"N\")+COUNTIF(Obecności_Marzec[1],\"U\")","v":0},{"$f":"COUNTIF(Obecności_Marzec[2],\"N\")+COUNTIF(Obecności_Marzec[2],\"U\")","v":0},{"$f":"COUNTIF(Obecności_Marzec[3],\"N\")+COUNTIF(Obecności_Marzec[3],\"U\")","v":0},{"$f":"COUNTIF(Obecności_Marzec[4],\"N\")+COUNTIF(Obecności_Marzec[4],\"U\")","v":0},{"$f":"COUNTIF(Obecności_Marzec[5],\"N\")+COUNTIF(Obecności_Marzec[5],\"U\")","v":0},{"$f":"COUNTIF(Obecności_Marzec[6],\"N\")+COUNTIF(Obecności_Marzec[6],\"U\")","v":0},{"$f":"COUNTIF(Obecności_Marzec[7],\"N\")+COUNTIF(Obecności_Marzec[7],\"U\")","v":0},{"$f":"COUNTIF(Obecności_Marzec[8],\"N\")+COUNTIF(Obecności_Marzec[8],\"U\")","v":0},{"$f":"COUNTIF(Obecności_Marzec[9],\"N\")+COUNTIF(Obecności_Marzec[9],\"U\")","v":0},{"$f":"COUNTIF(Obecności_Marzec[10],\"N\")+COUNTIF(Obecności_Marzec[10],\"U\")","v":0},{"$f":"COUNTIF(Obecności_Marzec[11],\"N\")+COUNTIF(Obecności_Marzec[11],\"U\")","v":0},{"$f":"COUNTIF(Obecności_Marzec[12],\"N\")+COUNTIF(Obecności_Marzec[12],\"U\")","v":0},{"$f":"COUNTIF(Obecności_Marzec[13],\"N\")+COUNTIF(Obecności_Marzec[13],\"U\")","v":0},{"$f":"COUNTIF(Obecności_Marzec[14],\"N\")+COUNTIF(Obecności_Marzec[14],\"U\")","v":0},{"$f":"COUNTIF(Obecności_Marzec[15],\"N\")+COUNTIF(Obecności_Marzec[15],\"U\")","v":0},{"$f":"COUNTIF(Obecności_Marzec[16],\"N\")+COUNTIF(Obecności_Marzec[16],\"U\")","v":0},{"$f":"COUNTIF(Obecności_Marzec[17],\"N\")+COUNTIF(Obecności_Marzec[17],\"U\")","v":0},{"$f":"COUNTIF(Obecności_Marzec[18],\"N\")+COUNTIF(Obecności_Marzec[18],\"U\")","v":0},{"$f":"COUNTIF(Obecności_Marzec[19],\"N\")+COUNTIF(Obecności_Marzec[19],\"U\")","v":0},{"$f":"COUNTIF(Obecności_Marzec[20],\"N\")+COUNTIF(Obecności_Marzec[20],\"U\")","v":0},{"$f":"COUNTIF(Obecności_Marzec[21],\"N\")+COUNTIF(Obecności_Marzec[21],\"U\")","v":0},{"$f":"COUNTIF(Obecności_Marzec[22],\"N\")+COUNTIF(Obecności_Marzec[22],\"U\")","v":0},{"$f":"COUNTIF(Obecności_Marzec[23],\"N\")+COUNTIF(Obecności_Marzec[23],\"U\")","v":0},{"$f":"COUNTIF(Obecności_Marzec[24],\"N\")+COUNTIF(Obecności_Marzec[24],\"U\")","v":0},{"$f":"COUNTIF(Obecności_Marzec[25],\"N\")+COUNTIF(Obecności_Marzec[25],\"U\")","v":0},{"$f":"COUNTIF(Obecności_Marzec[26],\"N\")+COUNTIF(Obecności_Marzec[26],\"U\")","v":0},{"$f":"COUNTIF(Obecności_Marzec[27],\"N\")+COUNTIF(Obecności_Marzec[27],\"U\")","v":0},{"$f":"COUNTIF(Obecności_Marzec[28],\"N\")+COUNTIF(Obecności_Marzec[28],\"U\")","v":0},{"$f":"COUNTIF(Obecności_Marzec[29],\"N\")+COUNTIF(Obecności_Marzec[29],\"U\")","v":0},{"$f":"COUNTIF(Obecności_Marzec[30],\"N\")+COUNTIF(Obecności_Marzec[30],\"U\")","v":0},{"$f":"COUNTIF(Obecności_Marzec[31],\"N\")+COUNTIF(Obecności_Marzec[31],\"U\")","v":0},{"$f":"SUBTOTAL(109,Obecności_Marzec[S])","v":0},{"$f":"SUBTOTAL(109,Obecności_Marzec[U])","v":0},{"$f":"SUBTOTAL(109,Obecności_Marzec[N])","v":0},{"$f":"SUBTOTAL(109,Obecności_Marzec[O])","v":0},{"$f":"SUBTOTAL(109,Obecności_Marzec[Dni nieobecności])","v":0},{"$f":"SUBTOTAL(109,Obecności_Marzec[Identyfikator ucznia])","v":0}]

{"sheet":"Kwiecień","index":10,"n_rows":12,"n_cols":39,"rows_kept":12,"merged":[[4,34,4,38]]}
["REJESTR OBECNOŚCI UCZNIA",{"$nulls":36},"Początek roku szkolnego:",{"$f":"RokKalendarzowy","v":2012}]
[]
[null,null,{"$f":"LegendaKolorów_tekst","v":"LEGENDA KOLORÓW "},{"$f":"Kod_1","v":"S"},{"$f":"Kod1_tekst","v":"Spóźnienie"},null,null,{"$f":"Kod_2","v":"U"},{"$f":"Kod2_tekst","v":"Nieobecność usprawiedliwiona"},{"$nulls":5},{"$f":"Kod_3","v":"N"},{"$f":"Kod3_tekst","v":"Nieobecność nieusprawiedliwiona"},{"$nulls":5},{"$f":"Kod_4","v":"O"},{"$f":"Kod4_tekst","v":"Obecność"},null,null,{"$f":"Kod_5","v":"B"},{"$f":"Kod5_tekst","v":"Brak zajęć"}]
[]
[null,{"$f":"DATE(RokKalendarzowy+1,4,1)","v":"2013-04-01"},null,{"$f":"TEXT(WEEKDAY(DATE(RokKalendarzowy+1,4,1),1),\"aaa\")","v":"Pn"},{"$f":"TEXT(WEEKDAY(DATE(RokKalendarzowy+1,4,2),1),\"aaa\")","v":"Wt"},{"$f":"TEXT(WEEKDAY(DATE(RokKalendarzowy+1,4,3),1),\"aaa\")","v":"Śr"},{"$f":"TEXT(WEEKDAY(DATE(RokKalendarzowy+1,4,4),1),\"aaa\")","v":"Cz"},{"$f":"TEXT(WEEKDAY(DATE(RokKalendarzowy+1,4,5),1),\"aaa\")","v":"Pt"},{"$f":"TEXT(WEEKDAY(DATE(RokKalendarzowy+1,4,6),1),\"aaa\")","v":"So"},{"$f":"TEXT(WEEKDAY(DATE(RokKalendarzowy+1,4,7),1),\"aaa\")","v":"N"},{"$f":"TEXT(WEEKDAY(DATE(RokKalendarzowy+1,4,8),1),\"aaa\")","v":"Pn"},{"$f":"TEXT(WEEKDAY(DATE(RokKalendarzowy+1,4,9),1),\"aaa\")","v":"Wt"},{"$f":"TEXT(WEEKDAY(DATE(RokKalendarzowy+1,4,10),1),\"aaa\")","v":"Śr"},{"$f":"TEXT(WEEKDAY(DATE(RokKalendarzowy+1,4,11),1),\"aaa\")","v":"Cz"},{"$f":"TEXT(WEEKDAY(DATE(RokKalendarzowy+1,4,12),1),\"aaa\")","v":"Pt"},{"$f":"TEXT(WEEKDAY(DATE(RokKalendarzowy+1,4,13),1),\"aaa\")","v":"So"},{"$f":"TEXT(WEEKDAY(DATE(RokKalendarzowy+1,4,14),1),\"aaa\")","v":"N"},{"$f":"TEXT(WEEKDAY(DATE(RokKalendarzowy+1,4,15),1),\"aaa\")","v":"Pn"},{"$f":"TEXT(WEEKDAY(DATE(RokKalendarzowy+1,4,16),1),\"aaa\")","v":"Wt"},{"$f":"TEXT(WEEKDAY(DATE(RokKalendarzowy+1,4,17),1),\"aaa\")","v":"Śr"},{"$f":"TEXT(WEEKDAY(DATE(RokKalendarzowy+1,4,18),1),\"aaa\")","v":"Cz"},{"$f":"TEXT(WEEKDAY(DATE(RokKalendarzowy+1,4,19),1),\"aaa\")","v":"Pt"},{"$f":"TEXT(WEEKDAY(DATE(RokKalendarzowy+1,4,20),1),\"aaa\")","v":"So"},{"$f":"TEXT(WEEKDAY(DATE(RokKalendarzowy+1,4,21),1),\"aaa\")","v":"N"},{"$f":"TEXT(WEEKDAY(DATE(RokKalendarzowy+1,4,22),1),\"aaa\")","v":"Pn"},{"$f":"TEXT(WEEKDAY(DATE(RokKalendarzowy+1,4,23),1),\"aaa\")","v":"Wt"},{"$f":"TEXT(WEEKDAY(DATE(RokKalendarzowy+1,4,24),1),\"aaa\")","v":"Śr"},{"$f":"TEXT(WEEKDAY(DATE(RokKalendarzowy+1,4,25),1),\"aaa\")","v":"Cz"},{"$f":"TEXT(WEEKDAY(DATE(RokKalendarzowy+1,4,26),1),\"aaa\")","v":"Pt"},{"$f":"TEXT(WEEKDAY(DATE(RokKalendarzowy+1,4,27),1),\"aaa\")","v":"So"},{"$f":"TEXT(WEEKDAY(DATE(RokKalendarzowy+1,4,28),1),\"aaa\")","v":"N"},{"$f":"TEXT(WEEKDAY(DATE(RokKalendarzowy+1,4,29),1),\"aaa\")","v":"Pn"},{"$f":"TEXT(WEEKDAY(DATE(RokKalendarzowy+1,4,30),1),\"aaa\")","v":"Wt"},null,"Sumy"]
[null,"Identyfikator ucznia","Imię i nazwisko ucznia","1","2","3","4","5","6","7","8","9","10","11","12","13","14","15","16","17","18","19","20","21","22","23","24","25","26","27","28","29","30"," ","S","U","N","O","Dni nieobecności"]
[null,null,{"$f":"IFERROR(VLOOKUP(Obecności_Kwiecień[[#This Row],[Identyfikator ucznia]],ListaUczniów[],18,FALSE),\"\")","v":""},{"$nulls":31},{"$f":"COUNTIF(Obecności_Kwiecień[[#This Row],[1]:[ ]],Kod_1)","v":0},{"$f":"COUNTIF(Obecności_Kwiecień[[#This Row],[1]:[ ]],Kod_2)","v":0},{"$f":"COUNTIF(Obecności_Kwiecień[[#This Row],[1]:[ ]],Kod_3)","v":0},{"$f":"COUNTIF(Obecności_Kwiecień[[#This Row],[1]:[ ]],Kod_4)","v":0},{"$f":"SUM(Obecności_Wrzesień[[#This Row],[U]:[N]])","v":0}]
[null,null,{"$f":"IFERROR(VLOOKUP(Obecności_Kwiecień[[#This Row],[Identyfikator ucznia]],ListaUczniów[],18,FALSE),\"\")","v":""},{"$nulls":31},{"$f":"COUNTIF(Obecności_Kwiecień[[#This Row],[1]:[ ]],Kod_1)","v":0},{"$f":"COUNTIF(Obecności_Kwiecień[[#This Row],[1]:[ ]],Kod_2)","v":0},{"$f":"COUNTIF(Obecności_Kwiecień[[#This Row],[1]:[ ]],Kod_3)","v":0},{"$f":"COUNTIF(Obecności_Kwiecień[[#This Row],[1]:[ ]],Kod_4)","v":0},{"$f":"SUM(Obecności_Wrzesień[[#This Row],[U]:[N]])","v":0}]
[null,null,{"$f":"IFERROR(VLOOKUP(Obecności_Kwiecień[[#This Row],[Identyfikator ucznia]],ListaUczniów[],18,FALSE),\"\")","v":""},{"$nulls":31},{"$f":"COUNTIF(Obecności_Kwiecień[[#This Row],[1]:[ ]],Kod_1)","v":0},{"$f":"COUNTIF(Obecności_Kwiecień[[#This Row],[1]:[ ]],Kod_2)","v":0},{"$f":"COUNTIF(Obecności_Kwiecień[[#This Row],[1]:[ ]],Kod_3)","v":0},{"$f":"COUNTIF(Obecności_Kwiecień[[#This Row],[1]:[ ]],Kod_4)","v":0},{"$f":"SUM(Obecności_Wrzesień[[#This Row],[U]:[N]])","v":0}]
[null,null,{"$f":"IFERROR(VLOOKUP(Obecności_Kwiecień[[#This Row],[Identyfikator ucznia]],ListaUczniów[],18,FALSE),\"\")","v":""},{"$nulls":31},{"$f":"COUNTIF(Obecności_Kwiecień[[#This Row],[1]:[ ]],Kod_1)","v":0},{"$f":"COUNTIF(Obecności_Kwiecień[[#This Row],[1]:[ ]],Kod_2)","v":0},{"$f":"COUNTIF(Obecności_Kwiecień[[#This Row],[1]:[ ]],Kod_3)","v":0},{"$f":"COUNTIF(Obecności_Kwiecień[[#This Row],[1]:[ ]],Kod_4)","v":0},{"$f":"SUM(Obecności_Wrzesień[[#This Row],[U]:[N]])","v":0}]
[null,null,{"$f":"IFERROR(VLOOKUP(Obecności_Kwiecień[[#This Row],[Identyfikator ucznia]],ListaUczniów[],18,FALSE),\"\")","v":""},{"$nulls":31},{"$f":"COUNTIF(Obecności_Kwiecień[[#This Row],[1]:[ ]],Kod_1)","v":0},{"$f":"COUNTIF(Obecności_Kwiecień[[#This Row],[1]:[ ]],Kod_2)","v":0},{"$f":"COUNTIF(Obecności_Kwiecień[[#This Row],[1]:[ ]],Kod_3)","v":0},{"$f":"COUNTIF(Obecności_Kwiecień[[#This Row],[1]:[ ]],Kod_4)","v":0},{"$f":"SUM(Obecności_Wrzesień[[#This Row],[U]:[N]])","v":0}]
[null,null,"Łączna liczba dni nieobecności",{"$f":"COUNTIF(Obecności_Kwiecień[1],\"N\")+COUNTIF(Obecności_Kwiecień[1],\"U\")","v":0},{"$f":"COUNTIF(Obecności_Kwiecień[2],\"N\")+COUNTIF(Obecności_Kwiecień[2],\"U\")","v":0},{"$f":"COUNTIF(Obecności_Kwiecień[3],\"N\")+COUNTIF(Obecności_Kwiecień[3],\"U\")","v":0},{"$f":"COUNTIF(Obecności_Kwiecień[4],\"N\")+COUNTIF(Obecności_Kwiecień[4],\"U\")","v":0},{"$f":"COUNTIF(Obecności_Kwiecień[5],\"N\")+COUNTIF(Obecności_Kwiecień[5],\"U\")","v":0},{"$f":"COUNTIF(Obecności_Kwiecień[6],\"N\")+COUNTIF(Obecności_Kwiecień[6],\"U\")","v":0},{"$f":"COUNTIF(Obecności_Kwiecień[7],\"N\")+COUNTIF(Obecności_Kwiecień[7],\"U\")","v":0},{"$f":"COUNTIF(Obecności_Kwiecień[8],\"N\")+COUNTIF(Obecności_Kwiecień[8],\"U\")","v":0},{"$f":"COUNTIF(Obecności_Kwiecień[9],\"N\")+COUNTIF(Obecności_Kwiecień[9],\"U\")","v":0},{"$f":"COUNTIF(Obecności_Kwiecień[10],\"N\")+COUNTIF(Obecności_Kwiecień[10],\"U\")","v":0},{"$f":"COUNTIF(Obecności_Kwiecień[11],\"N\")+COUNTIF(Obecności_Kwiecień[11],\"U\")","v":0},{"$f":"COUNTIF(Obecności_Kwiecień[12],\"N\")+COUNTIF(Obecności_Kwiecień[12],\"U\")","v":0},{"$f":"COUNTIF(Obecności_Kwiecień[13],\"N\")+COUNTIF(Obecności_Kwiecień[13],\"U\")","v":0},{"$f":"COUNTIF(Obecności_Kwiecień[14],\"N\")+COUNTIF(Obecności_Kwiecień[14],\"U\")","v":0},{"$f":"COUNTIF(Obecności_Kwiecień[15],\"N\")+COUNTIF(Obecności_Kwiecień[15],\"U\")","v":0},{"$f":"COUNTIF(Obecności_Kwiecień[16],\"N\")+COUNTIF(Obecności_Kwiecień[16],\"U\")","v":0},{"$f":"COUNTIF(Obecności_Kwiecień[17],\"N\")+COUNTIF(Obecności_Kwiecień[17],\"U\")","v":0},{"$f":"COUNTIF(Obecności_Kwiecień[18],\"N\")+COUNTIF(Obecności_Kwiecień[18],\"U\")","v":0},{"$f":"COUNTIF(Obecności_Kwiecień[19],\"N\")+COUNTIF(Obecności_Kwiecień[19],\"U\")","v":0},{"$f":"COUNTIF(Obecności_Kwiecień[20],\"N\")+COUNTIF(Obecności_Kwiecień[20],\"U\")","v":0},{"$f":"COUNTIF(Obecności_Kwiecień[21],\"N\")+COUNTIF(Obecności_Kwiecień[21],\"U\")","v":0},{"$f":"COUNTIF(Obecności_Kwiecień[22],\"N\")+COUNTIF(Obecności_Kwiecień[22],\"U\")","v":0},{"$f":"COUNTIF(Obecności_Kwiecień[23],\"N\")+COUNTIF(Obecności_Kwiecień[23],\"U\")","v":0},{"$f":"COUNTIF(Obecności_Kwiecień[24],\"N\")+COUNTIF(Obecności_Kwiecień[24],\"U\")","v":0},{"$f":"COUNTIF(Obecności_Kwiecień[25],\"N\")+COUNTIF(Obecności_Kwiecień[25],\"U\")","v":0},{"$f":"COUNTIF(Obecności_Kwiecień[26],\"N\")+COUNTIF(Obecności_Kwiecień[26],\"U\")","v":0},{"$f":"COUNTIF(Obecności_Kwiecień[27],\"N\")+COUNTIF(Obecności_Kwiecień[27],\"U\")","v":0},{"$f":"COUNTIF(Obecności_Kwiecień[28],\"N\")+COUNTIF(Obecności_Kwiecień[28],\"U\")","v":0},{"$f":"COUNTIF(Obecności_Kwiecień[29],\"N\")+COUNTIF(Obecności_Kwiecień[29],\"U\")","v":0},{"$f":"COUNTIF(Obecności_Kwiecień[30],\"N\")+COUNTIF(Obecności_Kwiecień[30],\"U\")","v":0},{"$f":"COUNTIF(Obecności_Kwiecień[[ ]],\"N\")+COUNTIF(Obecności_Kwiecień[[ ]],\"U\")","v":0},{"$f":"SUBTOTAL(109,Obecności_Kwiecień[S])","v":0},{"$f":"SUBTOTAL(109,Obecności_Kwiecień[U])","v":0},{"$f":"SUBTOTAL(109,Obecności_Kwiecień[N])","v":0},{"$f":"SUBTOTAL(109,Obecności_Kwiecień[O])","v":0},{"$f":"SUBTOTAL(109,Obecności_Kwiecień[Dni nieobecności])","v":0}]

{"sheet":"Maj","index":11,"n_rows":12,"n_cols":39,"rows_kept":12,"merged":[[4,34,4,38]]}
["REJESTR OBECNOŚCI UCZNIA",{"$nulls":36},"Początek roku szkolnego:",{"$f":"RokKalendarzowy","v":2012}]
[]
[null,null,{"$f":"LegendaKolorów_tekst","v":"LEGENDA KOLORÓW "},{"$f":"Kod_1","v":"S"},{"$f":"Kod1_tekst","v":"Spóźnienie"},null,null,{"$f":"Kod_2","v":"U"},{"$f":"Kod2_tekst","v":"Nieobecność usprawiedliwiona"},{"$nulls":5},{"$f":"Kod_3","v":"N"},{"$f":"Kod3_tekst","v":"Nieobecność nieusprawiedliwiona"},{"$nulls":5},{"$f":"Kod_4","v":"O"},{"$f":"Kod4_tekst","v":"Obecność"},null,null,{"$f":"Kod_5","v":"B"},{"$f":"Kod5_tekst","v":"Brak zajęć"}]
[]
[null,{"$f":"DATE(RokKalendarzowy+1,5,1)","v":"2013-05-01"},null,{"$f":"TEXT(WEEKDAY(DATE(RokKalendarzowy+1,5,1),1),\"aaa\")","v":"Śr"},{"$f":"TEXT(WEEKDAY(DATE(RokKalendarzowy+1,5,2),1),\"aaa\")","v":"Cz"},{"$f":"TEXT(WEEKDAY(DATE(RokKalendarzowy+1,5,3),1),\"aaa\")","v":"Pt"},{"$f":"TEXT(WEEKDAY(DATE(RokKalendarzowy+1,5,4),1),\"aaa\")","v":"So"},{"$f":"TEXT(WEEKDAY(DATE(RokKalendarzowy+1,5,5),1),\"aaa\")","v":"N"},{"$f":"TEXT(WEEKDAY(DATE(RokKalendarzowy+1,5,6),1),\"aaa\")","v":"Pn"},{"$f":"TEXT(WEEKDAY(DATE(RokKalendarzowy+1,5,7),1),\"aaa\")","v":"Wt"},{"$f":"TEXT(WEEKDAY(DATE(RokKalendarzowy+1,5,8),1),\"aaa\")","v":"Śr"},{"$f":"TEXT(WEEKDAY(DATE(RokKalendarzowy+1,5,9),1),\"aaa\")","v":"Cz"},{"$f":"TEXT(WEEKDAY(DATE(RokKalendarzowy+1,5,10),1),\"aaa\")","v":"Pt"},{"$f":"TEXT(WEEKDAY(DATE(RokKalendarzowy+1,5,11),1),\"aaa\")","v":"So"},{"$f":"TEXT(WEEKDAY(DATE(RokKalendarzowy+1,5,12),1),\"aaa\")","v":"N"},{"$f":"TEXT(WEEKDAY(DATE(RokKalendarzowy+1,5,13),1),\"aaa\")","v":"Pn"},{"$f":"TEXT(WEEKDAY(DATE(RokKalendarzowy+1,5,14),1),\"aaa\")","v":"Wt"},{"$f":"TEXT(WEEKDAY(DATE(RokKalendarzowy+1,5,15),1),\"aaa\")","v":"Śr"},{"$f":"TEXT(WEEKDAY(DATE(RokKalendarzowy+1,5,16),1),\"aaa\")","v":"Cz"},{"$f":"TEXT(WEEKDAY(DATE(RokKalendarzowy+1,5,17),1),\"aaa\")","v":"Pt"},{"$f":"TEXT(WEEKDAY(DATE(RokKalendarzowy+1,5,18),1),\"aaa\")","v":"So"},{"$f":"TEXT(WEEKDAY(DATE(RokKalendarzowy+1,5,19),1),\"aaa\")","v":"N"},{"$f":"TEXT(WEEKDAY(DATE(RokKalendarzowy+1,5,20),1),\"aaa\")","v":"Pn"},{"$f":"TEXT(WEEKDAY(DATE(RokKalendarzowy+1,5,21),1),\"aaa\")","v":"Wt"},{"$f":"TEXT(WEEKDAY(DATE(RokKalendarzowy+1,5,22),1),\"aaa\")","v":"Śr"},{"$f":"TEXT(WEEKDAY(DATE(RokKalendarzowy+1,5,23),1),\"aaa\")","v":"Cz"},{"$f":"TEXT(WEEKDAY(DATE(RokKalendarzowy+1,5,24),1),\"aaa\")","v":"Pt"},{"$f":"TEXT(WEEKDAY(DATE(RokKalendarzowy+1,5,25),1),\"aaa\")","v":"So"},{"$f":"TEXT(WEEKDAY(DATE(RokKalendarzowy+1,5,26),1),\"aaa\")","v":"N"},{"$f":"TEXT(WEEKDAY(DATE(RokKalendarzowy+1,5,27),1),\"aaa\")","v":"Pn"},{"$f":"TEXT(WEEKDAY(DATE(RokKalendarzowy+1,5,28),1),\"aaa\")","v":"Wt"},{"$f":"TEXT(WEEKDAY(DATE(RokKalendarzowy+1,5,29),1),\"aaa\")","v":"Śr"},{"$f":"TEXT(WEEKDAY(DATE(RokKalendarzowy+1,5,30),1),\"aaa\")","v":"Cz"},{"$f":"TEXT(WEEKDAY(DATE(RokKalendarzowy+1,5,31),1),\"aaa\")","v":"Pt"},"Sumy"]
[null,"Identyfikator ucznia","Imię i nazwisko ucznia","1","2","3","4","5","6","7","8","9","10","11","12","13","14","15","16","17","18","19","20","21","22","23","24","25","26","27","28","29","30","31","S","U","N","O","Dni nieobecności"]
[null,null,{"$f":"IFERROR(VLOOKUP(Obecności_Maj[[#This Row],[Identyfikator ucznia]],ListaUczniów[],18,FALSE),\"\")","v":""},{"$nulls":31},{"$f":"COUNTIF(Obecności_Maj[[#This Row],[1]:[31]],Kod_1)","v":0},{"$f":"COUNTIF(Obecności_Maj[[#This Row],[1]:[31]],Kod_2)","v":0},{"$f":"COUNTIF(Obecności_Maj[[#This Row],[1]:[31]],Kod_3)","v":0},{"$f":"COUNTIF(Obecności_Maj[[#This Row],[1]:[31]],Kod_4)","v":0},{"$f":"SUM(Obecności_Wrzesień[[#This Row],[U]:[N]])","v":0}]
[null,null,{"$f":"IFERROR(VLOOKUP(Obecności_Maj[[#This Row],[Identyfikator ucznia]],ListaUczniów[],18,FALSE),\"\")","v":""},{"$nulls":31},{"$f":"COUNTIF(Obecności_Maj[[#This Row],[1]:[31]],Kod_1)","v":0},{"$f":"COUNTIF(Obecności_Maj[[#This Row],[1]:[31]],Kod_2)","v":0},{"$f":"COUNTIF(Obecności_Maj[[#This Row],[1]:[31]],Kod_3)","v":0},{"$f":"COUNTIF(Obecności_Maj[[#This Row],[1]:[31]],Kod_4)","v":0},{"$f":"SUM(Obecności_Wrzesień[[#This Row],[U]:[N]])","v":0}]
[null,null,{"$f":"IFERROR(VLOOKUP(Obecności_Maj[[#This Row],[Identyfikator ucznia]],ListaUczniów[],18,FALSE),\"\")","v":""},{"$nulls":31},{"$f":"COUNTIF(Obecności_Maj[[#This Row],[1]:[31]],Kod_1)","v":0},{"$f":"COUNTIF(Obecności_Maj[[#This Row],[1]:[31]],Kod_2)","v":0},{"$f":"COUNTIF(Obecności_Maj[[#This Row],[1]:[31]],Kod_3)","v":0},{"$f":"COUNTIF(Obecności_Maj[[#This Row],[1]:[31]],Kod_4)","v":0},{"$f":"SUM(Obecności_Wrzesień[[#This Row],[U]:[N]])","v":0}]
[null,null,{"$f":"IFERROR(VLOOKUP(Obecności_Maj[[#This Row],[Identyfikator ucznia]],ListaUczniów[],18,FALSE),\"\")","v":""},{"$nulls":31},{"$f":"COUNTIF(Obecności_Maj[[#This Row],[1]:[31]],Kod_1)","v":0},{"$f":"COUNTIF(Obecności_Maj[[#This Row],[1]:[31]],Kod_2)","v":0},{"$f":"COUNTIF(Obecności_Maj[[#This Row],[1]:[31]],Kod_3)","v":0},{"$f":"COUNTIF(Obecności_Maj[[#This Row],[1]:[31]],Kod_4)","v":0},{"$f":"SUM(Obecności_Wrzesień[[#This Row],[U]:[N]])","v":0}]
[null,null,{"$f":"IFERROR(VLOOKUP(Obecności_Maj[[#This Row],[Identyfikator ucznia]],ListaUczniów[],18,FALSE),\"\")","v":""},{"$nulls":31},{"$f":"COUNTIF(Obecności_Maj[[#This Row],[1]:[31]],Kod_1)","v":0},{"$f":"COUNTIF(Obecności_Maj[[#This Row],[1]:[31]],Kod_2)","v":0},{"$f":"COUNTIF(Obecności_Maj[[#This Row],[1]:[31]],Kod_3)","v":0},{"$f":"COUNTIF(Obecności_Maj[[#This Row],[1]:[31]],Kod_4)","v":0},{"$f":"SUM(Obecności_Wrzesień[[#This Row],[U]:[N]])","v":0}]
[null,null,"Łączna liczba dni nieobecności",{"$f":"COUNTIF(Obecności_Maj[1],\"N\")+COUNTIF(Obecności_Maj[1],\"U\")","v":0},{"$f":"COUNTIF(Obecności_Maj[2],\"N\")+COUNTIF(Obecności_Maj[2],\"U\")","v":0},{"$f":"COUNTIF(Obecności_Maj[3],\"N\")+COUNTIF(Obecności_Maj[3],\"U\")","v":0},{"$f":"COUNTIF(Obecności_Maj[4],\"N\")+COUNTIF(Obecności_Maj[4],\"U\")","v":0},{"$f":"COUNTIF(Obecności_Maj[5],\"N\")+COUNTIF(Obecności_Maj[5],\"U\")","v":0},{"$f":"COUNTIF(Obecności_Maj[6],\"N\")+COUNTIF(Obecności_Maj[6],\"U\")","v":0},{"$f":"COUNTIF(Obecności_Maj[7],\"N\")+COUNTIF(Obecności_Maj[7],\"U\")","v":0},{"$f":"COUNTIF(Obecności_Maj[8],\"N\")+COUNTIF(Obecności_Maj[8],\"U\")","v":0},{"$f":"COUNTIF(Obecności_Maj[9],\"N\")+COUNTIF(Obecności_Maj[9],\"U\")","v":0},{"$f":"COUNTIF(Obecności_Maj[10],\"N\")+COUNTIF(Obecności_Maj[10],\"U\")","v":0},{"$f":"COUNTIF(Obecności_Maj[11],\"N\")+COUNTIF(Obecności_Maj[11],\"U\")","v":0},{"$f":"COUNTIF(Obecności_Maj[12],\"N\")+COUNTIF(Obecności_Maj[12],\"U\")","v":0},{"$f":"COUNTIF(Obecności_Maj[13],\"N\")+COUNTIF(Obecności_Maj[13],\"U\")","v":0},{"$f":"COUNTIF(Obecności_Maj[14],\"N\")+COUNTIF(Obecności_Maj[14],\"U\")","v":0},{"$f":"COUNTIF(Obecności_Maj[15],\"N\")+COUNTIF(Obecności_Maj[15],\"U\")","v":0},{"$f":"COUNTIF(Obecności_Maj[16],\"N\")+COUNTIF(Obecności_Maj[16],\"U\")","v":0},{"$f":"COUNTIF(Obecności_Maj[17],\"N\")+COUNTIF(Obecności_Maj[17],\"U\")","v":0},{"$f":"COUNTIF(Obecności_Maj[18],\"N\")+COUNTIF(Obecności_Maj[18],\"U\")","v":0},{"$f":"COUNTIF(Obecności_Maj[19],\"N\")+COUNTIF(Obecności_Maj[19],\"U\")","v":0},{"$f":"COUNTIF(Obecności_Maj[20],\"N\")+COUNTIF(Obecności_Maj[20],\"U\")","v":0},{"$f":"COUNTIF(Obecności_Maj[21],\"N\")+COUNTIF(Obecności_Maj[21],\"U\")","v":0},{"$f":"COUNTIF(Obecności_Maj[22],\"N\")+COUNTIF(Obecności_Maj[22],\"U\")","v":0},{"$f":"COUNTIF(Obecności_Maj[23],\"N\")+COUNTIF(Obecności_Maj[23],\"U\")","v":0},{"$f":"COUNTIF(Obecności_Maj[24],\"N\")+COUNTIF(Obecności_Maj[24],\"U\")","v":0},{"$f":"COUNTIF(Obecności_Maj[25],\"N\")+COUNTIF(Obecności_Maj[25],\"U\")","v":0},{"$f":"COUNTIF(Obecności_Maj[26],\"N\")+COUNTIF(Obecności_Maj[26],\"U\")","v":0},{"$f":"COUNTIF(Obecności_Maj[27],\"N\")+COUNTIF(Obecności_Maj[27],\"U\")","v":0},{"$f":"COUNTIF(Obecności_Maj[28],\"N\")+COUNTIF(Obecności_Maj[28],\"U\")","v":0},{"$f":"COUNTIF(Obecności_Maj[29],\"N\")+COUNTIF(Obecności_Maj[29],\"U\")","v":0},{"$f":"COUNTIF(Obecności_Maj[30],\"N\")+COUNTIF(Obecności_Maj[30],\"U\")","v":0},{"$f":"COUNTIF(Obecności_Maj[31],\"N\")+COUNTIF(Obecności_Maj[31],\"U\")","v":0},{"$f":"SUBTOTAL(109,Obecności_Maj[S])","v":0},{"$f":"SUBTOTAL(109,Obecności_Maj[U])","v":0},{"$f":"SUBTOTAL(109,Obecności_Maj[N])","v":0},{"$f":"SUBTOTAL(109,Obecności_Maj[O])","v":0},{"$f":"SUBTOTAL(109,Obecności_Maj[Dni nieobecności])","v":0}]

{"sheet":"Czerwiec","index":12,"n_rows":12,"n_cols":39,"rows_kept":12,"merged":[[4,34,4,38]]}
["REJESTR OBECNOŚCI UCZNIA",{"$nulls":36},"Początek roku szkolnego:",{"$f":"RokKalendarzowy","v":2012}]
[]
[null,null,{"$f":"LegendaKolorów_tekst","v":"LEGENDA KOLORÓW "},{"$f":"Kod_1","v":"S"},{"$f":"Kod1_tekst","v":"Spóźnienie"},null,null,{"$f":"Kod_2","v":"U"},{"$f":"Kod2_tekst","v":"Nieobecność usprawiedliwiona"},{"$nulls":5},{"$f":"Kod_3","v":"N"},{"$f":"Kod3_tekst","v":"Nieobecność nieusprawiedliwiona"},{"$nulls":5},{"$f":"Kod_4","v":"O"},{"$f":"Kod4_tekst","v":"Obecność"},null,null,{"$f":"Kod_5","v":"B"},{"$f":"Kod5_tekst","v":"Brak zajęć"}]
[]
[null,{"$f":"DATE(RokKalendarzowy+1,6,1)","v":"2013-06-01"},null,{"$f":"TEXT(WEEKDAY(DATE(RokKalendarzowy+1,6,1),1),\"aaa\")","v":"So"},{"$f":"TEXT(WEEKDAY(DATE(RokKalendarzowy+1,6,2),1),\"aaa\")","v":"N"},{"$f":"TEXT(WEEKDAY(DATE(RokKalendarzowy+1,6,3),1),\"aaa\")","v":"Pn"},{"$f":"TEXT(WEEKDAY(DATE(RokKalendarzowy+1,6,4),1),\"aaa\")","v":"Wt"},{"$f":"TEXT(WEEKDAY(DATE(RokKalendarzowy+1,6,5),1),\"aaa\")","v":"Śr"},{"$f":"TEXT(WEEKDAY(DATE(RokKalendarzowy+1,6,6),1),\"aaa\")","v":"Cz"},{"$f":"TEXT(WEEKDAY(DATE(RokKalendarzowy+1,6,7),1),\"aaa\")","v":"Pt"},{"$f":"TEXT(WEEKDAY(DATE(RokKalendarzowy+1,6,8),1),\"aaa\")","v":"So"},{"$f":"TEXT(WEEKDAY(DATE(RokKalendarzowy+1,6,9),1),\"aaa\")","v":"N"},{"$f":"TEXT(WEEKDAY(DATE(RokKalendarzowy+1,6,10),1),\"aaa\")","v":"Pn"},{"$f":"TEXT(WEEKDAY(DATE(RokKalendarzowy+1,6,11),1),\"aaa\")","v":"Wt"},{"$f":"TEXT(WEEKDAY(DATE(RokKalendarzowy+1,6,12),1),\"aaa\")","v":"Śr"},{"$f":"TEXT(WEEKDAY(DATE(RokKalendarzowy+1,6,13),1),\"aaa\")","v":"Cz"},{"$f":"TEXT(WEEKDAY(DATE(RokKalendarzowy+1,6,14),1),\"aaa\")","v":"Pt"},{"$f":"TEXT(WEEKDAY(DATE(RokKalendarzowy+1,6,15),1),\"aaa\")","v":"So"},{"$f":"TEXT(WEEKDAY(DATE(RokKalendarzowy+1,6,16),1),\"aaa\")","v":"N"},{"$f":"TEXT(WEEKDAY(DATE(RokKalendarzowy+1,6,17),1),\"aaa\")","v":"Pn"},{"$f":"TEXT(WEEKDAY(DATE(RokKalendarzowy+1,6,18),1),\"aaa\")","v":"Wt"},{"$f":"TEXT(WEEKDAY(DATE(RokKalendarzowy+1,6,19),1),\"aaa\")","v":"Śr"},{"$f":"TEXT(WEEKDAY(DATE(RokKalendarzowy+1,6,20),1),\"aaa\")","v":"Cz"},{"$f":"TEXT(WEEKDAY(DATE(RokKalendarzowy+1,6,21),1),\"aaa\")","v":"Pt"},{"$f":"TEXT(WEEKDAY(DATE(RokKalendarzowy+1,6,22),1),\"aaa\")","v":"So"},{"$f":"TEXT(WEEKDAY(DATE(RokKalendarzowy+1,6,23),1),\"aaa\")","v":"N"},{"$f":"TEXT(WEEKDAY(DATE(RokKalendarzowy+1,6,24),1),\"aaa\")","v":"Pn"},{"$f":"TEXT(WEEKDAY(DATE(RokKalendarzowy+1,6,25),1),\"aaa\")","v":"Wt"},{"$f":"TEXT(WEEKDAY(DATE(RokKalendarzowy+1,6,26),1),\"aaa\")","v":"Śr"},{"$f":"TEXT(WEEKDAY(DATE(RokKalendarzowy+1,6,27),1),\"aaa\")","v":"Cz"},{"$f":"TEXT(WEEKDAY(DATE(RokKalendarzowy+1,6,28),1),\"aaa\")","v":"Pt"},{"$f":"TEXT(WEEKDAY(DATE(RokKalendarzowy+1,6,29),1),\"aaa\")","v":"So"},{"$f":"TEXT(WEEKDAY(DATE(RokKalendarzowy+1,6,30),1),\"aaa\")","v":"N"},null,"Sumy"]
[null,"Identyfikator ucznia","Imię i nazwisko ucznia","1","2","3","4","5","6","7","8","9","10","11","12","13","14","15","16","17","18","19","20","21","22","23","24","25","26","27","28","29","30"," ","S","U","N","O","Dni nieobecności"]
[null,null,{"$f":"IFERROR(VLOOKUP(Obecności_Czerwiec[[#This Row],[Identyfikator ucznia]],ListaUczniów[],18,FALSE),\"\")","v":""},{"$nulls":31},{"$f":"COUNTIF(Obecności_Czerwiec[[#This Row],[1]:[ ]],Kod_1)","v":0},{"$f":"COUNTIF(Obecności_Czerwiec[[#This Row],[1]:[ ]],Kod_2)","v":0},{"$f":"COUNTIF(Obecności_Czerwiec[[#This Row],[1]:[ ]],Kod_3)","v":0},{"$f":"COUNTIF(Obecności_Czerwiec[[#This Row],[1]:[ ]],Kod_4)","v":0},{"$f":"SUM(Obecności_Wrzesień[[#This Row],[U]:[N]])","v":0}]
[null,null,{"$f":"IFERROR(VLOOKUP(Obecności_Czerwiec[[#This Row],[Identyfikator ucznia]],ListaUczniów[],18,FALSE),\"\")","v":""},{"$nulls":31},{"$f":"COUNTIF(Obecności_Czerwiec[[#This Row],[1]:[ ]],Kod_1)","v":0},{"$f":"COUNTIF(Obecności_Czerwiec[[#This Row],[1]:[ ]],Kod_2)","v":0},{"$f":"COUNTIF(Obecności_Czerwiec[[#This Row],[1]:[ ]],Kod_3)","v":0},{"$f":"COUNTIF(Obecności_Czerwiec[[#This Row],[1]:[ ]],Kod_4)","v":0},{"$f":"SUM(Obecności_Wrzesień[[#This Row],[U]:[N]])","v":0}]
[null,null,{"$f":"IFERROR(VLOOKUP(Obecności_Czerwiec[[#This Row],[Identyfikator ucznia]],ListaUczniów[],18,FALSE),\"\")","v":""},{"$nulls":31},{"$f":"COUNTIF(Obecności_Czerwiec[[#This Row],[1]:[ ]],Kod_1)","v":0},{"$f":"COUNTIF(Obecności_Czerwiec[[#This Row],[1]:[ ]],Kod_2)","v":0},{"$f":"COUNTIF(Obecności_Czerwiec[[#This Row],[1]:[ ]],Kod_3)","v":0},{"$f":"COUNTIF(Obecności_Czerwiec[[#This Row],[1]:[ ]],Kod_4)","v":0},{"$f":"SUM(Obecności_Wrzesień[[#This Row],[U]:[N]])","v":0}]
[null,null,{"$f":"IFERROR(VLOOKUP(Obecności_Czerwiec[[#This Row],[Identyfikator ucznia]],ListaUczniów[],18,FALSE),\"\")","v":""},{"$nulls":31},{"$f":"COUNTIF(Obecności_Czerwiec[[#This Row],[1]:[ ]],Kod_1)","v":0},{"$f":"COUNTIF(Obecności_Czerwiec[[#This Row],[1]:[ ]],Kod_2)","v":0},{"$f":"COUNTIF(Obecności_Czerwiec[[#This Row],[1]:[ ]],Kod_3)","v":0},{"$f":"COUNTIF(Obecności_Czerwiec[[#This Row],[1]:[ ]],Kod_4)","v":0},{"$f":"SUM(Obecności_Wrzesień[[#This Row],[U]:[N]])","v":0}]
[null,null,{"$f":"IFERROR(VLOOKUP(Obecności_Czerwiec[[#This Row],[Identyfikator ucznia]],ListaUczniów[],18,FALSE),\"\")","v":""},{"$nulls":31},{"$f":"COUNTIF(Obecności_Czerwiec[[#This Row],[1]:[ ]],Kod_1)","v":0},{"$f":"COUNTIF(Obecności_Czerwiec[[#This Row],[1]:[ ]],Kod_2)","v":0},{"$f":"COUNTIF(Obecności_Czerwiec[[#This Row],[1]:[ ]],Kod_3)","v":0},{"$f":"COUNTIF(Obecności_Czerwiec[[#This Row],[1]:[ ]],Kod_4)","v":0},{"$f":"SUM(Obecności_Wrzesień[[#This Row],[U]:[N]])","v":0}]
[null,null,"Łączna liczba dni nieobecności",{"$f":"COUNTIF(Obecności_Czerwiec[1],\"N\")+COUNTIF(Obecności_Czerwiec[1],\"U\")","v":0},{"$f":"COUNTIF(Obecności_Czerwiec[2],\"N\")+COUNTIF(Obecności_Czerwiec[2],\"U\")","v":0},{"$f":"COUNTIF(Obecności_Czerwiec[3],\"N\")+COUNTIF(Obecności_Czerwiec[3],\"U\")","v":0},{"$f":"COUNTIF(Obecności_Czerwiec[4],\"N\")+COUNTIF(Obecności_Czerwiec[4],\"U\")","v":0},{"$f":"COUNTIF(Obecności_Czerwiec[5],\"N\")+COUNTIF(Obecności_Czerwiec[5],\"U\")","v":0},{"$f":"COUNTIF(Obecności_Czerwiec[6],\"N\")+COUNTIF(Obecności_Czerwiec[6],\"U\")","v":0},{"$f":"COUNTIF(Obecności_Czerwiec[7],\"N\")+COUNTIF(Obecności_Czerwiec[7],\"U\")","v":0},{"$f":"COUNTIF(Obecności_Czerwiec[8],\"N\")+COUNTIF(Obecności_Czerwiec[8],\"U\")","v":0},{"$f":"COUNTIF(Obecności_Czerwiec[9],\"N\")+COUNTIF(Obecności_Czerwiec[9],\"U\")","v":0},{"$f":"COUNTIF(Obecności_Czerwiec[10],\"N\")+COUNTIF(Obecności_Czerwiec[10],\"U\")","v":0},{"$f":"COUNTIF(Obecności_Czerwiec[11],\"N\")+COUNTIF(Obecności_Czerwiec[11],\"U\")","v":0},{"$f":"COUNTIF(Obecności_Czerwiec[12],\"N\")+COUNTIF(Obecności_Czerwiec[12],\"U\")","v":0},{"$f":"COUNTIF(Obecności_Czerwiec[13],\"N\")+COUNTIF(Obecności_Czerwiec[13],\"U\")","v":0},{"$f":"COUNTIF(Obecności_Czerwiec[14],\"N\")+COUNTIF(Obecności_Czerwiec[14],\"U\")","v":0},{"$f":"COUNTIF(Obecności_Czerwiec[15],\"N\")+COUNTIF(Obecności_Czerwiec[15],\"U\")","v":0},{"$f":"COUNTIF(Obecności_Czerwiec[16],\"N\")+COUNTIF(Obecności_Czerwiec[16],\"U\")","v":0},{"$f":"COUNTIF(Obecności_Czerwiec[17],\"N\")+COUNTIF(Obecności_Czerwiec[17],\"U\")","v":0},{"$f":"COUNTIF(Obecności_Czerwiec[18],\"N\")+COUNTIF(Obecności_Czerwiec[18],\"U\")","v":0},{"$f":"COUNTIF(Obecności_Czerwiec[19],\"N\")+COUNTIF(Obecności_Czerwiec[19],\"U\")","v":0},{"$f":"COUNTIF(Obecności_Czerwiec[20],\"N\")+COUNTIF(Obecności_Czerwiec[20],\"U\")","v":0},{"$f":"COUNTIF(Obecności_Czerwiec[21],\"N\")+COUNTIF(Obecności_Czerwiec[21],\"U\")","v":0},{"$f":"COUNTIF(Obecności_Czerwiec[22],\"N\")+COUNTIF(Obecności_Czerwiec[22],\"U\")","v":0},{"$f":"COUNTIF(Obecności_Czerwiec[23],\"N\")+COUNTIF(Obecności_Czerwiec[23],\"U\")","v":0},{"$f":"COUNTIF(Obecności_Czerwiec[24],\"N\")+COUNTIF(Obecności_Czerwiec[24],\"U\")","v":0},{"$f":"COUNTIF(Obecności_Czerwiec[25],\"N\")+COUNTIF(Obecności_Czerwiec[25],\"U\")","v":0},{"$f":"COUNTIF(Obecności_Czerwiec[26],\"N\")+COUNTIF(Obecności_Czerwiec[26],\"U\")","v":0},{"$f":"COUNTIF(Obecności_Czerwiec[27],\"N\")+COUNTIF(Obecności_Czerwiec[27],\"U\")","v":0},{"$f":"COUNTIF(Obecności_Czerwiec[28],\"N\")+COUNTIF(Obecności_Czerwiec[28],\"U\")","v":0},{"$f":"COUNTIF(Obecności_Czerwiec[29],\"N\")+COUNTIF(Obecności_Czerwiec[29],\"U\")","v":0},{"$f":"COUNTIF(Obecności_Czerwiec[30],\"N\")+COUNTIF(Obecności_Czerwiec[30],\"U\")","v":0},{"$f":"COUNTIF(Obecności_Czerwiec[[ ]],\"N\")+COUNTIF(Obecności_Czerwiec[[ ]],\"U\")","v":0},{"$f":"SUBTOTAL(109,Obecności_Czerwiec[S])","v":0},{"$f":"SUBTOTAL(109,Obecności_Czerwiec[U])","v":0},{"$f":"SUBTOTAL(109,Obecności_Czerwiec[N])","v":0},{"$f":"SUBTOTAL(109,Obecności_Czerwiec[O])","v":0},{"$f":"SUBTOTAL(109,Obecności_Czerwiec[Dni nieobecności])","v":0}]

{"sheet":"Lipiec","index":13,"n_rows":12,"n_cols":39,"rows_kept":12,"merged":[[4,34,4,38]]}
["REJESTR OBECNOŚCI UCZNIA",{"$nulls":36},"Początek roku szkolnego:",{"$f":"RokKalendarzowy","v":2012}]
[]
[null,null,{"$f":"LegendaKolorów_tekst","v":"LEGENDA KOLORÓW "},{"$f":"Kod_1","v":"S"},{"$f":"Kod1_tekst","v":"Spóźnienie"},null,null,{"$f":"Kod_2","v":"U"},{"$f":"Kod2_tekst","v":"Nieobecność usprawiedliwiona"},{"$nulls":5},{"$f":"Kod_3","v":"N"},{"$f":"Kod3_tekst","v":"Nieobecność nieusprawiedliwiona"},{"$nulls":5},{"$f":"Kod_4","v":"O"},{"$f":"Kod4_tekst","v":"Obecność"},null,null,{"$f":"Kod_5","v":"B"},{"$f":"Kod5_tekst","v":"Brak zajęć"}]
[]
[null,{"$f":"DATE(RokKalendarzowy+1,7,1)","v":"2013-07-01"},null,{"$f":"TEXT(WEEKDAY(DATE(RokKalendarzowy+1,7,1),1),\"aaa\")","v":"Pn"},{"$f":"TEXT(WEEKDAY(DATE(RokKalendarzowy+1,7,2),1),\"aaa\")","v":"Wt"},{"$f":"TEXT(WEEKDAY(DATE(RokKalendarzowy+1,7,3),1),\"aaa\")","v":"Śr"},{"$f":"TEXT(WEEKDAY(DATE(RokKalendarzowy+1,7,4),1),\"aaa\")","v":"Cz"},{"$f":"TEXT(WEEKDAY(DATE(RokKalendarzowy+1,7,5),1),\"aaa\")","v":"Pt"},{"$f":"TEXT(WEEKDAY(DATE(RokKalendarzowy+1,7,6),1),\"aaa\")","v":"So"},{"$f":"TEXT(WEEKDAY(DATE(RokKalendarzowy+1,7,7),1),\"aaa\")","v":"N"},{"$f":"TEXT(WEEKDAY(DATE(RokKalendarzowy+1,7,8),1),\"aaa\")","v":"Pn"},{"$f":"TEXT(WEEKDAY(DATE(RokKalendarzowy+1,7,9),1),\"aaa\")","v":"Wt"},{"$f":"TEXT(WEEKDAY(DATE(RokKalendarzowy+1,7,10),1),\"aaa\")","v":"Śr"},{"$f":"TEXT(WEEKDAY(DATE(RokKalendarzowy+1,7,11),1),\"aaa\")","v":"Cz"},{"$f":"TEXT(WEEKDAY(DATE(RokKalendarzowy+1,7,12),1),\"aaa\")","v":"Pt"},{"$f":"TEXT(WEEKDAY(DATE(RokKalendarzowy+1,7,13),1),\"aaa\")","v":"So"},{"$f":"TEXT(WEEKDAY(DATE(RokKalendarzowy+1,7,14),1),\"aaa\")","v":"N"},{"$f":"TEXT(WEEKDAY(DATE(RokKalendarzowy+1,7,15),1),\"aaa\")","v":"Pn"},{"$f":"TEXT(WEEKDAY(DATE(RokKalendarzowy+1,7,16),1),\"aaa\")","v":"Wt"},{"$f":"TEXT(WEEKDAY(DATE(RokKalendarzowy+1,7,17),1),\"aaa\")","v":"Śr"},{"$f":"TEXT(WEEKDAY(DATE(RokKalendarzowy+1,7,18),1),\"aaa\")","v":"Cz"},{"$f":"TEXT(WEEKDAY(DATE(RokKalendarzowy+1,7,19),1),\"aaa\")","v":"Pt"},{"$f":"TEXT(WEEKDAY(DATE(RokKalendarzowy+1,7,20),1),\"aaa\")","v":"So"},{"$f":"TEXT(WEEKDAY(DATE(RokKalendarzowy+1,7,21),1),\"aaa\")","v":"N"},{"$f":"TEXT(WEEKDAY(DATE(RokKalendarzowy+1,7,22),1),\"aaa\")","v":"Pn"},{"$f":"TEXT(WEEKDAY(DATE(RokKalendarzowy+1,7,23),1),\"aaa\")","v":"Wt"},{"$f":"TEXT(WEEKDAY(DATE(RokKalendarzowy+1,7,24),1),\"aaa\")","v":"Śr"},{"$f":"TEXT(WEEKDAY(DATE(RokKalendarzowy+1,7,25),1),\"aaa\")","v":"Cz"},{"$f":"TEXT(WEEKDAY(DATE(RokKalendarzowy+1,7,26),1),\"aaa\")","v":"Pt"},{"$f":"TEXT(WEEKDAY(DATE(RokKalendarzowy+1,7,27),1),\"aaa\")","v":"So"},{"$f":"TEXT(WEEKDAY(DATE(RokKalendarzowy+1,7,28),1),\"aaa\")","v":"N"},{"$f":"TEXT(WEEKDAY(DATE(RokKalendarzowy+1,7,29),1),\"aaa\")","v":"Pn"},{"$f":"TEXT(WEEKDAY(DATE(RokKalendarzowy+1,7,30),1),\"aaa\")","v":"Wt"},{"$f":"TEXT(WEEKDAY(DATE(RokKalendarzowy+1,7,31),1),\"aaa\")","v":"Śr"},"Sumy"]
[null,"Identyfikator ucznia","Imię i nazwisko ucznia","1","2","3","4","5","6","7","8","9","10","11","12","13","14","15","16","17","18","19","20","21","22","23","24","25","26","27","28","29","30","31","S","U","N","O","Dni nieobecności"]
[null,null,{"$f":"IFERROR(VLOOKUP(Obecności_Lipiec[[#This Row],[Identyfikator ucznia]],ListaUczniów[],18,FALSE),\"\")","v":""},{"$nulls":31},{"$f":"COUNTIF(Obecności_Lipiec[[#This Row],[1]:[31]],Kod_1)","v":0},{"$f":"COUNTIF(Obecności_Lipiec[[#This Row],[1]:[31]],Kod_2)","v":0},{"$f":"COUNTIF(Obecności_Lipiec[[#This Row],[1]:[31]],Kod_3)","v":0},{"$f":"COUNTIF(Obecności_Lipiec[[#This Row],[1]:[31]],Kod_4)","v":0},{"$f":"SUM(Obecności_Wrzesień[[#This Row],[U]:[N]])","v":0}]
[null,null,{"$f":"IFERROR(VLOOKUP(Obecności_Lipiec[[#This Row],[Identyfikator ucznia]],ListaUczniów[],18,FALSE),\"\")","v":""},{"$nulls":31},{"$f":"COUNTIF(Obecności_Lipiec[[#This Row],[1]:[31]],Kod_1)","v":0},{"$f":"COUNTIF(Obecności_Lipiec[[#This Row],[1]:[31]],Kod_2)","v":0},{"$f":"COUNTIF(Obecności_Lipiec[[#This Row],[1]:[31]],Kod_3)","v":0},{"$f":"COUNTIF(Obecności_Lipiec[[#This Row],[1]:[31]],Kod_4)","v":0},{"$f":"SUM(Obecności_Wrzesień[[#This Row],[U]:[N]])","v":0}]
[null,null,{"$f":"IFERROR(VLOOKUP(Obecności_Lipiec[[#This Row],[Identyfikator ucznia]],ListaUczniów[],18,FALSE),\"\")","v":""},{"$nulls":31},{"$f":"COUNTIF(Obecności_Lipiec[[#This Row],[1]:[31]],Kod_1)","v":0},{"$f":"COUNTIF(Obecności_Lipiec[[#This Row],[1]:[31]],Kod_2)","v":0},{"$f":"COUNTIF(Obecności_Lipiec[[#This Row],[1]:[31]],Kod_3)","v":0},{"$f":"COUNTIF(Obecności_Lipiec[[#This Row],[1]:[31]],Kod_4)","v":0},{"$f":"SUM(Obecności_Wrzesień[[#This Row],[U]:[N]])","v":0}]
[null,null,{"$f":"IFERROR(VLOOKUP(Obecności_Lipiec[[#This Row],[Identyfikator ucznia]],ListaUczniów[],18,FALSE),\"\")","v":""},{"$nulls":31},{"$f":"COUNTIF(Obecności_Lipiec[[#This Row],[1]:[31]],Kod_1)","v":0},{"$f":"COUNTIF(Obecności_Lipiec[[#This Row],[1]:[31]],Kod_2)","v":0},{"$f":"COUNTIF(Obecności_Lipiec[[#This Row],[1]:[31]],Kod_3)","v":0},{"$f":"COUNTIF(Obecności_Lipiec[[#This Row],[1]:[31]],Kod_4)","v":0},{"$f":"SUM(Obecności_Wrzesień[[#This Row],[U]:[N]])","v":0}]
[null,null,{"$f":"IFERROR(VLOOKUP(Obecności_Lipiec[[#This Row],[Identyfikator ucznia]],ListaUczniów[],18,FALSE),\"\")","v":""},{"$nulls":31},{"$f":"COUNTIF(Obecności_Lipiec[[#This Row],[1]:[31]],Kod_1)","v":0},{"$f":"COUNTIF(Obecności_Lipiec[[#This Row],[1]:[31]],Kod_2)","v":0},{"$f":"COUNTIF(Obecności_Lipiec[[#This Row],[1]:[31]],Kod_3)","v":0},{"$f":"COUNTIF(Obecności_Lipiec[[#This Row],[1]:[31]],Kod_4)","v":0},{"$f":"SUM(Obecności_Wrzesień[[#This Row],[U]:[N]])","v":0}]
[null,null,"Łączna liczba dni nieobecności",{"$f":"COUNTIF(Obecności_Lipiec[1],\"N\")+COUNTIF(Obecności_Lipiec[1],\"U\")","v":0},{"$f":"COUNTIF(Obecności_Lipiec[2],\"N\")+COUNTIF(Obecności_Lipiec[2],\"U\")","v":0},{"$f":"COUNTIF(Obecności_Lipiec[3],\"N\")+COUNTIF(Obecności_Lipiec[3],\"U\")","v":0},{"$f":"COUNTIF(Obecności_Lipiec[4],\"N\")+COUNTIF(Obecności_Lipiec[4],\"U\")","v":0},{"$f":"COUNTIF(Obecności_Lipiec[5],\"N\")+COUNTIF(Obecności_Lipiec[5],\"U\")","v":0},{"$f":"COUNTIF(Obecności_Lipiec[6],\"N\")+COUNTIF(Obecności_Lipiec[6],\"U\")","v":0},{"$f":"COUNTIF(Obecności_Lipiec[7],\"N\")+COUNTIF(Obecności_Lipiec[7],\"U\")","v":0},{"$f":"COUNTIF(Obecności_Lipiec[8],\"N\")+COUNTIF(Obecności_Lipiec[8],\"U\")","v":0},{"$f":"COUNTIF(Obecności_Lipiec[9],\"N\")+COUNTIF(Obecności_Lipiec[9],\"U\")","v":0},{"$f":"COUNTIF(Obecności_Lipiec[10],\"N\")+COUNTIF(Obecności_Lipiec[10],\"U\")","v":0},{"$f":"COUNTIF(Obecności_Lipiec[11],\"N\")+COUNTIF(Obecności_Lipiec[11],\"U\")","v":0},{"$f":"COUNTIF(Obecności_Lipiec[12],\"N\")+COUNTIF(Obecności_Lipiec[12],\"U\")","v":0},{"$f":"COUNTIF(Obecności_Lipiec[13],\"N\")+COUNTIF(Obecności_Lipiec[13],\"U\")","v":0},{"$f":"COUNTIF(Obecności_Lipiec[14],\"N\")+COUNTIF(Obecności_Lipiec[14],\"U\")","v":0},{"$f":"COUNTIF(Obecności_Lipiec[15],\"N\")+COUNTIF(Obecności_Lipiec[15],\"U\")","v":0},{"$f":"COUNTIF(Obecności_Lipiec[16],\"N\")+COUNTIF(Obecności_Lipiec[16],\"U\")","v":0},{"$f":"COUNTIF(Obecności_Lipiec[17],\"N\")+COUNTIF(Obecności_Lipiec[17],\"U\")","v":0},{"$f":"COUNTIF(Obecności_Lipiec[18],\"N\")+COUNTIF(Obecności_Lipiec[18],\"U\")","v":0},{"$f":"COUNTIF(Obecności_Lipiec[19],\"N\")+COUNTIF(Obecności_Lipiec[19],\"U\")","v":0},{"$f":"COUNTIF(Obecności_Lipiec[20],\"N\")+COUNTIF(Obecności_Lipiec[20],\"U\")","v":0},{"$f":"COUNTIF(Obecności_Lipiec[21],\"N\")+COUNTIF(Obecności_Lipiec[21],\"U\")","v":0},{"$f":"COUNTIF(Obecności_Lipiec[22],\"N\")+COUNTIF(Obecności_Lipiec[22],\"U\")","v":0},{"$f":"COUNTIF(Obecności_Lipiec[23],\"N\")+COUNTIF(Obecności_Lipiec[23],\"U\")","v":0},{"$f":"COUNTIF(Obecności_Lipiec[24],\"N\")+COUNTIF(Obecności_Lipiec[24],\"U\")","v":0},{"$f":"COUNTIF(Obecności_Lipiec[25],\"N\")+COUNTIF(Obecności_Lipiec[25],\"U\")","v":0},{"$f":"COUNTIF(Obecności_Lipiec[26],\"N\")+COUNTIF(Obecności_Lipiec[26],\"U\")","v":0},{"$f":"COUNTIF(Obecności_Lipiec[27],\"N\")+COUNTIF(Obecności_Lipiec[27],\"U\")","v":0},{"$f":"COUNTIF(Obecności_Lipiec[28],\"N\")+COUNTIF(Obecności_Lipiec[28],\"U\")","v":0},{"$f":"COUNTIF(Obecności_Lipiec[29],\"N\")+COUNTIF(Obecności_Lipiec[29],\"U\")","v":0},{"$f":"COUNTIF(Obecności_Lipiec[30],\"N\")+COUNTIF(Obecności_Lipiec[30],\"U\")","v":0},{"$f":"COUNTIF(Obecności_Lipiec[31],\"N\")+COUNTIF(Obecności_Lipiec[31],\"U\")","v":0},{"$f":"SUBTOTAL(109,Obecności_Lipiec[S])","v":0},{"$f":"SUBTOTAL(109,Obecności_Lipiec[U])","v":0},{"$f":"SUBTOTAL(109,Obecności_Lipiec[N])","v":0},{"$f":"SUBTOTAL(109,Obecności_Lipiec[O])","v":0},{"$f":"SUBTOTAL(109,Obecności_Lipiec[Dni nieobecności])","v":0}]

{"sheet":"Raport obecności ucznia","index":14,"n_rows":40,"n_cols":37,"rows_kept":40,"merged":[[2,3,2,14],[2,15,2,17],[2,18,2,21],[2,22,2,29],[2,30,2,31],[2,32,2,35],[3,1,3,2],[3,3,3,14],[3,15,3,17],[3,18,3,21],[3,22,3,29],[3,30,3,31],[3,32,3,35],[4,1,4,9],[4,10,4,21],[4,22,4,29],[4,30,4,36],[5,1,5,9],[5,10,5,21],[5,22,5,29],[5,30,5,36],[6,1,6,9],[6,10,6,21],[6,22,6,29],[6,30,6,36],[7,1,7,9],[7,10,7,21],[7,22,7,29],[7,30,7,36],[8,1,8,9],[8,10,8,21],[8,22,8,29],[8,30,8,36],[9,1,9,9],[9,10,9,21],[9,22,9,29],[9,30,9,36],[13,1,14,32],[13,33,13,36],[15,1,16,1],[15,33,16,33],[15,34,16,34],[15,35,16,35],[15,36,16,36],[17,1,18,1],[17,33,18,33],[17,34,18,34],[17,35,18,35],[17,36,18,36],[19,1,20,1],[19,33,20,33],[19,34,20,34],[19,35,20,35],[19,36,20,36],[21,1,22,1],[21,33,22,33],[21,34,22,34],[21,35,22,35],[21,36,22,36],[23,1,24,1],[23,33,24,33],[23,34,24,34],[23,35,24,35],[23,36,24,36],[25,1,26,1],[25,33,26,33],[25,34,26,34],[25,35,26,35],[25,36,26,36],[27,1,28,1],[27,33,28,33],[27,34,28,34],[27,35,28,35],[27,36,28,36],[29,1,30,1],[29,33,30,33],[29,34,30,34],[29,35,30,35],[29,36,30,36],[31,1,32,1],[31,33,32,33],[31,34,32,34],[31,35,32,35],[31,36,32,36],[33,1,34,1],[33,33,34,33],[33,34,34,34],[33,35,34,35],[33,36,34,36],[35,1,36,1],[35,33,36,33],[35,34,36,34],[35,35,36,35],[35,36,36,36],[37,1,38,1],[37,33,38,33],[37,34,38,34],[37,35,38,35],[37,36,38,36],[39,30,39,32]]}
[{"$f":"\"Rejestr obecności dla: \"","v":"Rejestr obecności dla: "},{"$nulls":7},{"$f":"D4","v":"Witold Dyszkiewicz"}]
[]
[null,"Identyfikator ucznia",null,"Imię i nazwisko ucznia",{"$nulls":11},"Płeć",null,null,"Data urodzenia",{"$nulls":3},"Szkoła",{"$nulls":7},"Klasa",null,"Nauczyciel",{"$nulls":3},"Sala"]
[null,"S001",null,{"$f":"IFERROR(VLOOKUP(OdnośnikDoUcznia,ListaUczniów[],18,FALSE),\"\")","v":"Witold Dyszkiewicz"},{"$nulls":11},{"$f":"IFERROR(VLOOKUP(OdnośnikDoUcznia,ListaUczniów[],4,FALSE),\"\")","v":"M"},null,null,{"$f":"IFERROR(VLOOKUP(OdnośnikDoUcznia,ListaUczniów[],5,FALSE),\"\")","v":"1997-03-28"},{"$nulls":3},"Liceum plastyczne",{"$nulls":7},7,null,"Krzysztof Florczak",{"$nulls":3},123]
[null,"Imię i nazwisko rodzica lub opiekuna 1",{"$nulls":8},"Pokrewieństwo",{"$nulls":11},"Telefon służbowy",{"$nulls":7},"Telefon domowy"]
[null,{"$f":"IFERROR(VLOOKUP(OdnośnikDoUcznia,ListaUczniów[],6,FALSE),\"\")","v":"Karolina Dyszkiewicz"},{"$nulls":8},{"$f":"IFERROR(VLOOKUP(OdnośnikDoUcznia,ListaUczniów[],7,FALSE),\"\")","v":"Matka"},{"$nulls":11},{"$f":"IFERROR(VLOOKUP(OdnośnikDoUcznia,ListaUczniów[],8,FALSE),\"\")","v":1235550134},{"$nulls":7},{"$f":"IFERROR(VLOOKUP(OdnośnikDoUcznia,ListaUczniów[],9,FALSE),\"\")","v":2345550134}]
[null,"Imię i nazwisko rodzica lub opiekuna 2",{"$nulls":8},"Pokrewieństwo",{"$nulls":11},"Telefon służbowy",{"$nulls":7},"Telefon domowy"]
[null,{"$f":"IFERROR(VLOOKUP(OdnośnikDoUcznia,ListaUczniów[],10,FALSE),\"\")","v":"Wojciech Dyszkiewicz"},{"$nulls":8},{"$f":"IFERROR(VLOOKUP(OdnośnikDoUcznia,ListaUczniów[],11,FALSE),\"\")","v":"Ojciec"},{"$nulls":11},{"$f":"IFERROR(VLOOKUP(OdnośnikDoUcznia,ListaUczniów[],12,FALSE),\"\")","v":1235550134},{"$nulls":7},{"$f":"IFERROR(VLOOKUP(OdnośnikDoUcznia,ListaUczniów[],13,FALSE),\"\")","v":2345550134}]
[null,"Kontakt alarmowy",{"$nulls":8},"Pokrewieństwo",{"$nulls":11},"Telefon służbowy",{"$nulls":7},"Telefon domowy"]
[null,{"$f":"IFERROR(VLOOKUP(OdnośnikDoUcznia,ListaUczniów[],14,FALSE),\"\")","v":"Maciej Fedorow"},{"$nulls":8},{"$f":"IFERROR(VLOOKUP(OdnośnikDoUcznia,ListaUczniów[],15,FALSE),\"\")","v":"Dziadek"},{"$nulls":11},{"$f":"IFERROR(VLOOKUP(OdnośnikDoUcznia,ListaUczniów[],16,FALSE),\"\")","v":7895550189},{"$nulls":7},{"$f":"IFERROR(VLOOKUP(OdnośnikDoUcznia,ListaUczniów[],17,FALSE),\"\")","v":7895550134}]
[]
[null,{"$f":"Sierpień!C3","v":"LEGENDA KOLORÓW "},null,null,{"$f":"Sierpień!D3","v":"S"},{"$f":"Sierpień!E3","v":"Spóźnienie"},null,null,{"$f":"Sierpień!H3","v":"U"},{"$f":"Sierpień!I3","v":"Nieobecność usprawiedliwiona"},{"$nulls":7},{"$f":"Sierpień!O3","v":"N"},{"$f":"Sierpień!P3","v":"Nieobecność nieusprawiedliwiona"},{"$nulls":7},{"$f":"Sierpień!V3","v":"O"},{"$f":"Sierpień!W3","v":"Obecność"},null,null,{"$f":"Sierpień!Z3","v":"B"},{"$f":"Sierpień!AA3","v":"Brak zajęć"}]
[]
[null,"Obecność",{"$nulls":31},"Suma obecności"]
[{"$nulls":33},"S","U","N","O"]
[null,"Sierpień",1,2,3,4,5,6,7,8,9,10,11,12,13,14,15,16,17,18,19,20,21,22,23,24,25,26,27,28,29,30,31,{"$f":"COUNTIF($D17:$AH17,Kod_1)","v":2},{"$f":"COUNTIF($D17:$AH17,Kod_2)","v":1},{"$f":"COUNTIF($D17:$AH17,Kod_3)","v":0},{"$f":"COUNTIF($D17:$AH17,Kod_4)","v":19}]
[null,null,{"$f":"IFERROR(VLOOKUP(OdnośnikDoUcznia,Obecności_Sierpień[],3,FALSE),\"\")","v":"O"},{"$f":"IFERROR(VLOOKUP(OdnośnikDoUcznia,Obecności_Sierpień[],4,FALSE),\"\")","v":"O"},{"$f":"IFERROR(VLOOKUP(OdnośnikDoUcznia,Obecności_Sierpień[],5,FALSE),\"\")","v":"S"},{"$f":"IFERROR(VLOOKUP(OdnośnikDoUcznia,Obecności_Sierpień[],6,FALSE),\"\")","v":"S"},{"$f":"IFERROR(VLOOKUP(OdnośnikDoUcznia,Obecności_Sierpień[],7,FALSE),\"\")","v":"O"},{"$f":"IFERROR(VLOOKUP(OdnośnikDoUcznia,Obecności_Sierpień[],8,FALSE),\"\")","v":"B"},{"$f":"IFERROR(VLOOKUP(OdnośnikDoUcznia,Obecności_Sierpień[],9,FALSE),\"\")","v":"B"},{"$f":"IFERROR(VLOOKUP(OdnośnikDoUcznia,Obecności_Sierpień[],10,FALSE),\"\")","v":"O"},{"$f":"IFERROR(VLOOKUP(OdnośnikDoUcznia,Obecności_Sierpień[],11,FALSE),\"\")","v":"O"},{"$f":"IFERROR(VLOOKUP(OdnośnikDoUcznia,Obecności_Sierpień[],12,FALSE),\"\")","v":"U"},{"$f":"IFERROR(VLOOKUP(OdnośnikDoUcznia,Obecności_Sierpień[],13,FALSE),\"\")","v":"O"},{"$f":"IFERROR(VLOOKUP(OdnośnikDoUcznia,Obecności_Sierpień[],14,FALSE),\"\")","v":"O"},{"$f":"IFERROR(VLOOKUP(OdnośnikDoUcznia,Obecności_Sierpień[],15,FALSE),\"\")","v":"B"},{"$f":"IFERROR(VLOOKUP(OdnośnikDoUcznia,Obecności_Sierpień[],16,FALSE),\"\")","v":"B"},{"$f":"IFERROR(VLOOKUP(OdnośnikDoUcznia,Obecności_Sierpień[],17,FALSE),\"\")","v":"O"},{"$f":"IFERROR(VLOOKUP(OdnośnikDoUcznia,Obecności_Sierpień[],18,FALSE),\"\")","v":"O"},{"$f":"IFERROR(VLOOKUP(OdnośnikDoUcznia,Obecności_Sierpień[],19,FALSE),\"\")","v":"O"},{"$f":"IFERROR(VLOOKUP(OdnośnikDoUcznia,Obecności_Sierpień[],20,FALSE),\"\")","v":"O"},{"$f":"IFERROR(VLOOKUP(OdnośnikDoUcznia,Obecności_Sierpień[],21,FALSE),\"\")","v":"O"},{"$f":"IFERROR(VLOOKUP(OdnośnikDoUcznia,Obecności_Sierpień[],22,FALSE),\"\")","v":"B"},{"$f":"IFERROR(VLOOKUP(OdnośnikDoUcznia,Obecności_Sierpień[],23,FALSE),\"\")","v":"B"},{"$f":"IFERROR(VLOOKUP(OdnośnikDoUcznia,Obecności_Sierpień[],24,FALSE),\"\")","v":"O"},{"$f":"IFERROR(VLOOKUP(OdnośnikDoUcznia,Obecności_Sierpień[],25,FALSE),\"\")","v":"O"},{"$f":"IFERROR(VLOOKUP(OdnośnikDoUcznia,Obecności_Sierpień[],26,FALSE),\"\")","v":"O"},{"$f":"IFERROR(VLOOKUP(OdnośnikDoUcznia,Obecności_Sierpień[],27,FALSE),\"\")","v":"O"},{"$f":"IFERROR(VLOOKUP(OdnośnikDoUcznia,Obecności_Sierpień[],28,FALSE),\"\")","v":"O"},{"$f":"IFERROR(VLOOKUP(OdnośnikDoUcznia,Obecności_Sierpień[],29,FALSE),\"\")","v":"B"},{"$f":"IFERROR(VLOOKUP(OdnośnikDoUcznia,Obecności_Sierpień[],30,FALSE),\"\")","v":"B"},{"$f":"IFERROR(VLOOKUP(OdnośnikDoUcznia,Obecności_Sierpień[],31,FALSE),\"\")","v":"O"},{"$f":"IFERROR(VLOOKUP(OdnośnikDoUcznia,Obecności_Sierpień[],32,FALSE),\"\")","v":"O"},{"$f":"IFERROR(VLOOKUP(OdnośnikDoUcznia,Obecności_Sierpień[],33,FALSE),\"\")","v":"O"}]
[null,"Wrzesień",1,2,3,4,5,6,7,8,9,10,11,12,13,14,15,16,17,18,19,20,21,22,23,24,25,26,27,28,29,30,null,{"$f":"COUNTIF($D19:$AH19,Kod_1)","v":0},{"$f":"COUNTIF($D19:$AH19,Kod_2)","v":0},{"$f":"COUNTIF($D19:$AH19,Kod_3)","v":0},{"$f":"COUNTIF($D19:$AH19,Kod_4)","v":0}]
[null,null,{"$f":"IFERROR(VLOOKUP(OdnośnikDoUcznia,Obecności_Wrzesień[],3,FALSE),\"\")","v":""},{"$f":"IFERROR(VLOOKUP(OdnośnikDoUcznia,Obecności_Wrzesień[],4,FALSE),\"\")","v":""},{"$f":"IFERROR(VLOOKUP(OdnośnikDoUcznia,Obecności_Wrzesień[],5,FALSE),\"\")","v":""},{"$f":"IFERROR(VLOOKUP(OdnośnikDoUcznia,Obecności_Wrzesień[],6,FALSE),\"\")","v":""},{"$f":"IFERROR(VLOOKUP(OdnośnikDoUcznia,Obecności_Wrzesień[],7,FALSE),\"\")","v":""},{"$f":"IFERROR(VLOOKUP(OdnośnikDoUcznia,Obecności_Wrzesień[],8,FALSE),\"\")","v":""},{"$f":"IFERROR(VLOOKUP(OdnośnikDoUcznia,Obecności_Wrzesień[],9,FALSE),\"\")","v":""},{"$f":"IFERROR(VLOOKUP(OdnośnikDoUcznia,Obecności_Wrzesień[],10,FALSE),\"\")","v":""},{"$f":"IFERROR(VLOOKUP(OdnośnikDoUcznia,Obecności_Wrzesień[],11,FALSE),\"\")","v":""},{"$f":"IFERROR(VLOOKUP(OdnośnikDoUcznia,Obecności_Wrzesień[],12,FALSE),\"\")","v":""},{"$f":"IFERROR(VLOOKUP(OdnośnikDoUcznia,Obecności_Wrzesień[],13,FALSE),\"\")","v":""},{"$f":"IFERROR(VLOOKUP(OdnośnikDoUcznia,Obecności_Wrzesień[],14,FALSE),\"\")","v":""},{"$f":"IFERROR(VLOOKUP(OdnośnikDoUcznia,Obecności_Wrzesień[],15,FALSE),\"\")","v":""},{"$f":"IFERROR(VLOOKUP(OdnośnikDoUcznia,Obecności_Wrzesień[],16,FALSE),\"\")","v":""},{"$f":"IFERROR(VLOOKUP(OdnośnikDoUcznia,Obecności_Wrzesień[],17,FALSE),\"\")","v":""},{"$f":"IFERROR(VLOOKUP(OdnośnikDoUcznia,Obecności_Wrzesień[],18,FALSE),\"\")","v":""},{"$f":"IFERROR(VLOOKUP(OdnośnikDoUcznia,Obecności_Wrzesień[],19,FALSE),\"\")","v":""},{"$f":"IFERROR(VLOOKUP(OdnośnikDoUcznia,Obecności_Wrzesień[],20,FALSE),\"\")","v":""},{"$f":"IFERROR(VLOOKUP(OdnośnikDoUcznia,Obecności_Wrzesień[],21,FALSE),\"\")","v":""},{"$f":"IFERROR(VLOOKUP(OdnośnikDoUcznia,Obecności_Wrzesień[],22,FALSE),\"\")","v":""},{"$f":"IFERROR(VLOOKUP(OdnośnikDoUcznia,Obecności_Wrzesień[],23,FALSE),\"\")","v":""},{"$f":"IFERROR(VLOOKUP(OdnośnikDoUcznia,Obecności_Wrzesień[],24,FALSE),\"\")","v":""},{"$f":"IFERROR(VLOOKUP(OdnośnikDoUcznia,Obecności_Wrzesień[],25,FALSE),\"\")","v":""},{"$f":"IFERROR(VLOOKUP(OdnośnikDoUcznia,Obecności_Wrzesień[],26,FALSE),\"\")","v":""},{"$f":"IFERROR(VLOOKUP(OdnośnikDoUcznia,Obecności_Wrzesień[],27,FALSE),\"\")","v":""},{"$f":"IFERROR(VLOOKUP(OdnośnikDoUcznia,Obecności_Wrzesień[],28,FALSE),\"\")","v":""},{"$f":"IFERROR(VLOOKUP(OdnośnikDoUcznia,Obecności_Wrzesień[],29,FALSE),\"\")","v":""},{"$f":"IFERROR(VLOOKUP(OdnośnikDoUcznia,Obecności_Wrzesień[],30,FALSE),\"\")","v":""},{"$f":"IFERROR(VLOOKUP(OdnośnikDoUcznia,Obecności_Wrzesień[],31,FALSE),\"\")","v":""},{"$f":"IFERROR(VLOOKUP(OdnośnikDoUcznia,Obecności_Wrzesień[],32,FALSE),\"\")","v":""}]
[null,"Październik",1,2,3,4,5,6,7,8,9,10,11,12,13,14,15,16,17,18,19,20,21,22,23,24,25,26,27,28,29,30,31,{"$f":"COUNTIF($D21:$AH21,Kod_1)","v":0},{"$f":"COUNTIF($D21:$AH21,Kod_2)","v":0},{"$f":"COUNTIF($D21:$AH21,Kod_3)","v":0},{"$f":"COUNTIF($D21:$AH21,Kod_4)","v":0}]
[null,null,{"$f":"IFERROR(VLOOKUP(OdnośnikDoUcznia,Obecności_Październik[],3,FALSE),\"\")","v":""},{"$f":"IFERROR(VLOOKUP(OdnośnikDoUcznia,Obecności_Październik[],4,FALSE),\"\")","v":""},{"$f":"IFERROR(VLOOKUP(OdnośnikDoUcznia,Obecności_Październik[],5,FALSE),\"\")","v":""},{"$f":"IFERROR(VLOOKUP(OdnośnikDoUcznia,Obecności_Październik[],6,FALSE),\"\")","v":""},{"$f":"IFERROR(VLOOKUP(OdnośnikDoUcznia,Obecności_Październik[],7,FALSE),\"\")","v":""},{"$f":"IFERROR(VLOOKUP(OdnośnikDoUcznia,Obecności_Październik[],8,FALSE),\"\")","v":""},{"$f":"IFERROR(VLOOKUP(OdnośnikDoUcznia,Obecności_Październik[],9,FALSE),\"\")","v":""},{"$f":"IFERROR(VLOOKUP(OdnośnikDoUcznia,Obecności_Październik[],10,FALSE),\"\")","v":""},{"$f":"IFERROR(VLOOKUP(OdnośnikDoUcznia,Obecności_Październik[],11,FALSE),\"\")","v":""},{"$f":"IFERROR(VLOOKUP(OdnośnikDoUcznia,Obecności_Październik[],12,FALSE),\"\")","v":""},{"$f":"IFERROR(VLOOKUP(OdnośnikDoUcznia,Obecności_Październik[],13,FALSE),\"\")","v":""},{"$f":"IFERROR(VLOOKUP(OdnośnikDoUcznia,Obecności_Październik[],14,FALSE),\"\")","v":""},{"$f":"IFERROR(VLOOKUP(OdnośnikDoUcznia,Obecności_Październik[],15,FALSE),\"\")","v":""},{"$f":"IFERROR(VLOOKUP(OdnośnikDoUcznia,Obecności_Październik[],16,FALSE),\"\")","v":""},{"$f":"IFERROR(VLOOKUP(OdnośnikDoUcznia,Obecności_Październik[],17,FALSE),\"\")","v":""},{"$f":"IFERROR(VLOOKUP(OdnośnikDoUcznia,Obecności_Październik[],18,FALSE),\"\")","v":""},{"$f":"IFERROR(VLOOKUP(OdnośnikDoUcznia,Obecności_Październik[],19,FALSE),\"\")","v":""},{"$f":"IFERROR(VLOOKUP(OdnośnikDoUcznia,Obecności_Październik[],20,FALSE),\"\")","v":""},{"$f":"IFERROR(VLOOKUP(OdnośnikDoUcznia,Obecności_Październik[],21,FALSE),\"\")","v":""},{"$f":"IFERROR(VLOOKUP(OdnośnikDoUcznia,Obecności_Październik[],22,FALSE),\"\")","v":""},{"$f":"IFERROR(VLOOKUP(OdnośnikDoUcznia,Obecności_Październik[],23,FALSE),\"\")","v":""},{"$f":"IFERROR(VLOOKUP(OdnośnikDoUcznia,Obecności_Październik[],24,FALSE),\"\")","v":""},{"$f":"IFERROR(VLOOKUP(OdnośnikDoUcznia,Obecności_Październik[],25,FALSE),\"\")","v":""},{"$f":"IFERROR(VLOOKUP(OdnośnikDoUcznia,Obecności_Październik[],26,FALSE),\"\")","v":""},{"$f":"IFERROR(VLOOKUP(OdnośnikDoUcznia,Obecności_Październik[],27,FALSE),\"\")","v":""},{"$f":"IFERROR(VLOOKUP(OdnośnikDoUcznia,Obecności_Październik[],28,FALSE),\"\")","v":""},{"$f":"IFERROR(VLOOKUP(OdnośnikDoUcznia,Obecności_Październik[],29,FALSE),\"\")","v":""},{"$f":"IFERROR(VLOOKUP(OdnośnikDoUcznia,Obecności_Październik[],30,FALSE),\"\")","v":""},{"$f":"IFERROR(VLOOKUP(OdnośnikDoUcznia,Obecności_Październik[],31,FALSE),\"\")","v":""},{"$f":"IFERROR(VLOOKUP(OdnośnikDoUcznia,Obecności_Październik[],32,FALSE),\"\")","v":""},{"$f":"IFERROR(VLOOKUP(OdnośnikDoUcznia,Obecności_Październik[],33,FALSE),\"\")","v":""}]
[null,"Listopad",1,2,3,4,5,6,7,8,9,10,11,12,13,14,15,16,17,18,19,20,21,22,23,24,25,26,27,28,29,30,null,{"$f":"COUNTIF($D23:$AH23,Kod_1)","v":0},{"$f":"COUNTIF($D23:$AH23,Kod_2)","v":0},{"$f":"COUNTIF($D23:$AH23,Kod_3)","v":0},{"$f":"COUNTIF($D23:$AH23,Kod_4)","v":0}]
[null,null,{"$f":"IFERROR(VLOOKUP(OdnośnikDoUcznia,Obecności_Listopad[],3,FALSE),\"\")","v":""},{"$f":"IFERROR(VLOOKUP(OdnośnikDoUcznia,Obecności_Listopad[],4,FALSE),\"\")","v":""},{"$f":"IFERROR(VLOOKUP(OdnośnikDoUcznia,Obecności_Listopad[],5,FALSE),\"\")","v":""},{"$f":"IFERROR(VLOOKUP(OdnośnikDoUcznia,Obecności_Listopad[],6,FALSE),\"\")","v":""},{"$f":"IFERROR(VLOOKUP(OdnośnikDoUcznia,Obecności_Listopad[],7,FALSE),\"\")","v":""},{"$f":"IFERROR(VLOOKUP(OdnośnikDoUcznia,Obecności_Listopad[],8,FALSE),\"\")","v":""},{"$f":"IFERROR(VLOOKUP(OdnośnikDoUcznia,Obecności_Listopad[],9,FALSE),\"\")","v":""},{"$f":"IFERROR(VLOOKUP(OdnośnikDoUcznia,Obecności_Listopad[],10,FALSE),\"\")","v":""},{"$f":"IFERROR(VLOOKUP(OdnośnikDoUcznia,Obecności_Listopad[],11,FALSE),\"\")","v":""},{"$f":"IFERROR(VLOOKUP(OdnośnikDoUcznia,Obecności_Listopad[],12,FALSE),\"\")","v":""},{"$f":"IFERROR(VLOOKUP(OdnośnikDoUcznia,Obecności_Listopad[],13,FALSE),\"\")","v":""},{"$f":"IFERROR(VLOOKUP(OdnośnikDoUcznia,Obecności_Listopad[],14,FALSE),\"\")","v":""},{"$f":"IFERROR(VLOOKUP(OdnośnikDoUcznia,Obecności_Listopad[],15,FALSE),\"\")","v":""},{"$f":"IFERROR(VLOOKUP(OdnośnikDoUcznia,Obecności_Listopad[],16,FALSE),\"\")","v":""},{"$f":"IFERROR(VLOOKUP(OdnośnikDoUcznia,Obecności_Listopad[],17,FALSE),\"\")","v":""},{"$f":"IFERROR(VLOOKUP(OdnośnikDoUcznia,Obecności_Listopad[],18,FALSE),\"\")","v":""},{"$f":"IFERROR(VLOOKUP(OdnośnikDoUcznia,Obecności_Listopad[],19,FALSE),\"\")","v":""},{"$f":"IFERROR(VLOOKUP(OdnośnikDoUcznia,Obecności_Listopad[],20,FALSE),\"\")","v":""},{"$f":"IFERROR(VLOOKUP(OdnośnikDoUcznia,Obecności_Listopad[],21,FALSE),\"\")","v":""},{"$f":"IFERROR(VLOOKUP(OdnośnikDoUcznia,Obecności_Listopad[],22,FALSE),\"\")","v":""},{"$f":"IFERROR(VLOOKUP(OdnośnikDoUcznia,Obecności_Listopad[],23,FALSE),\"\")","v":""},{"$f":"IFERROR(VLOOKUP(OdnośnikDoUcznia,Obecności_Listopad[],24,FALSE),\"\")","v":""},{"$f":"IFERROR(VLOOKUP(OdnośnikDoUcznia,Obecności_Listopad[],25,FALSE),\"\")","v":""},{"$f":"IFERROR(VLOOKUP(OdnośnikDoUcznia,Obecności_Listopad[],26,FALSE),\"\")","v":""},{"$f":"IFERROR(VLOOKUP(OdnośnikDoUcznia,Obecności_Listopad[],27,FALSE),\"\")","v":""},{"$f":"IFERROR(VLOOKUP(OdnośnikDoUcznia,Obecności_Listopad[],28,FALSE),\"\")","v":""},{"$f":"IFERROR(VLOOKUP(OdnośnikDoUcznia,Obecności_Listopad[],29,FALSE),\"\")","v":""},{"$f":"IFERROR(VLOOKUP(OdnośnikDoUcznia,Obecności_Listopad[],30,FALSE),\"\")","v":""},{"$f":"IFERROR(VLOOKUP(OdnośnikDoUcznia,Obecności_Listopad[],31,FALSE),\"\")","v":""},{"$f":"IFERROR(VLOOKUP(OdnośnikDoUcznia,Obecności_Listopad[],32,FALSE),\"\")","v":""}]
[null,"Grudzień",1,2,3,4,5,6,7,8,9,10,11,12,13,14,15,16,17,18,19,20,21,22,23,24,25,26,27,28,29,30,31,{"$f":"COUNTIF($D25:$AH25,Kod_1)","v":0},{"$f":"COUNTIF($D25:$AH25,Kod_2)","v":0},{"$f":"COUNTIF($D25:$AH25,Kod_3)","v":0},{"$f":"COUNTIF($D25:$AH25,Kod_4)","v":0}]
[null,null,{"$f":"IFERROR(VLOOKUP(OdnośnikDoUcznia,Obecności_Grudzień[],3,FALSE),\"\")","v":""},{"$f":"IFERROR(VLOOKUP(OdnośnikDoUcznia,Obecności_Grudzień[],4,FALSE),\"\")","v":""},{"$f":"IFERROR(VLOOKUP(OdnośnikDoUcznia,Obecności_Grudzień[],5,FALSE),\"\")","v":""},{"$f":"IFERROR(VLOOKUP(OdnośnikDoUcznia,Obecności_Grudzień[],6,FALSE),\"\")","v":""},{"$f":"IFERROR(VLOOKUP(OdnośnikDoUcznia,Obecności_Grudzień[],7,FALSE),\"\")","v":""},{"$f":"IFERROR(VLOOKUP(OdnośnikDoUcznia,Obecności_Grudzień[],8,FALSE),\"\")","v":""},{"$f":"IFERROR(VLOOKUP(OdnośnikDoUcznia,Obecności_Grudzień[],9,FALSE),\"\")","v":""},{"$f":"IFERROR(VLOOKUP(OdnośnikDoUcznia,Obecności_Grudzień[],10,FALSE),\"\")","v":""},{"$f":"IFERROR(VLOOKUP(OdnośnikDoUcznia,Obecności_Grudzień[],11,FALSE),\"\")","v":""},{"$f":"IFERROR(VLOOKUP(OdnośnikDoUcznia,Obecności_Grudzień[],12,FALSE),\"\")","v":""},{"$f":"IFERROR(VLOOKUP(OdnośnikDoUcznia,Obecności_Grudzień[],13,FALSE),\"\")","v":""},{"$f":"IFERROR(VLOOKUP(OdnośnikDoUcznia,Obecności_Grudzień[],14,FALSE),\"\")","v":""},{"$f":"IFERROR(VLOOKUP(OdnośnikDoUcznia,Obecności_Grudzień[],15,FALSE),\"\")","v":""},{"$f":"IFERROR(VLOOKUP(OdnośnikDoUcznia,Obecności_Grudzień[],16,FALSE),\"\")","v":""},{"$f":"IFERROR(VLOOKUP(OdnośnikDoUcznia,Obecności_Grudzień[],17,FALSE),\"\")","v":""},{"$f":"IFERROR(VLOOKUP(OdnośnikDoUcznia,Obecności_Grudzień[],18,FALSE),\"\")","v":""},{"$f":"IFERROR(VLOOKUP(OdnośnikDoUcznia,Obecności_Grudzień[],19,FALSE),\"\")","v":""},{"$f":"IFERROR(VLOOKUP(OdnośnikDoUcznia,Obecności_Grudzień[],20,FALSE),\"\")","v":""},{"$f":"IFERROR(VLOOKUP(OdnośnikDoUcznia,Obecności_Grudzień[],21,FALSE),\"\")","v":""},{"$f":"IFERROR(VLOOKUP(OdnośnikDoUcznia,Obecności_Grudzień[],22,FALSE),\"\")","v":""},{"$f":"IFERROR(VLOOKUP(OdnośnikDoUcznia,Obecności_Grudzień[],23,FALSE),\"\")","v":""},{"$f":"IFERROR(VLOOKUP(OdnośnikDoUcznia,Obecności_Grudzień[],24,FALSE),\"\")","v":""},{"$f":"IFERROR(VLOOKUP(OdnośnikDoUcznia,Obecności_Grudzień[],25,FALSE),\"\")","v":""},{"$f":"IFERROR(VLOOKUP(OdnośnikDoUcznia,Obecności_Grudzień[],26,FALSE),\"\")","v":""},{"$f":"IFERROR(VLOOKUP(OdnośnikDoUcznia,Obecności_Grudzień[],27,FALSE),\"\")","v":""},{"$f":"IFERROR(VLOOKUP(OdnośnikDoUcznia,Obecności_Grudzień[],28,FALSE),\"\")","v":""},{"$f":"IFERROR(VLOOKUP(OdnośnikDoUcznia,Obecności_Grudzień[],29,FALSE),\"\")","v":""},{"$f":"IFERROR(VLOOKUP(OdnośnikDoUcznia,Obecności_Grudzień[],30,FALSE),\"\")","v":""},{"$f":"IFERROR(VLOOKUP(OdnośnikDoUcznia,Obecności_Grudzień[],31,FALSE),\"\")","v":""},{"$f":"IFERROR(VLOOKUP(OdnośnikDoUcznia,Obecności_Grudzień[],32,FALSE),\"\")","v":""},{"$f":"IFERROR(VLOOKUP(OdnośnikDoUcznia,Obecności_Grudzień[],33,FALSE),\"\")","v":""}]
[null,"Styczeń",1,2,3,4,5,6,7,8,9,10,11,12,13,14,15,16,17,18,19,20,21,22,23,24,25,26,27,28,29,30,31,{"$f":"COUNTIF($D27:$AH27,Kod_1)","v":0},{"$f":"COUNTIF($D27:$AH27,Kod_2)","v":0},{"$f":"COUNTIF($D27:$AH27,Kod_3)","v":0},{"$f":"COUNTIF($D27:$AH27,Kod_4)","v":0}]
[null,null,{"$f":"IFERROR(VLOOKUP(OdnośnikDoUcznia,Obecności_Styczeń[],3,FALSE),\"\")","v":""},{"$f":"IFERROR(VLOOKUP(OdnośnikDoUcznia,Obecności_Styczeń[],4,FALSE),\"\")","v":""},{"$f":"IFERROR(VLOOKUP(OdnośnikDoUcznia,Obecności_Styczeń[],5,FALSE),\"\")","v":""},{"$f":"IFERROR(VLOOKUP(OdnośnikDoUcznia,Obecności_Styczeń[],6,FALSE),\"\")","v":""},{"$f":"IFERROR(VLOOKUP(OdnośnikDoUcznia,Obecności_Styczeń[],7,FALSE),\"\")","v":""},{"$f":"IFERROR(VLOOKUP(OdnośnikDoUcznia,Obecności_Styczeń[],8,FALSE),\"\")","v":""},{"$f":"IFERROR(VLOOKUP(OdnośnikDoUcznia,Obecności_Styczeń[],9,FALSE),\"\")","v":""},{"$f":"IFERROR(VLOOKUP(OdnośnikDoUcznia,Obecności_Styczeń[],10,FALSE),\"\")","v":""},{"$f":"IFERROR(VLOOKUP(OdnośnikDoUcznia,Obecności_Styczeń[],11,FALSE),\"\")","v":""},{"$f":"IFERROR(VLOOKUP(OdnośnikDoUcznia,Obecności_Styczeń[],12,FALSE),\"\")","v":""},{"$f":"IFERROR(VLOOKUP(OdnośnikDoUcznia,Obecności_Styczeń[],13,FALSE),\"\")","v":""},{"$f":"IFERROR(VLOOKUP(OdnośnikDoUcznia,Obecności_Styczeń[],14,FALSE),\"\")","v":""},{"$f":"IFERROR(VLOOKUP(OdnośnikDoUcznia,Obecności_Styczeń[],15,FALSE),\"\")","v":""},{"$f":"IFERROR(VLOOKUP(OdnośnikDoUcznia,Obecności_Styczeń[],16,FALSE),\"\")","v":""},{"$f":"IFERROR(VLOOKUP(OdnośnikDoUcznia,Obecności_Styczeń[],17,FALSE),\"\")","v":""},{"$f":"IFERROR(VLOOKUP(OdnośnikDoUcznia,Obecności_Styczeń[],18,FALSE),\"\")","v":""},{"$f":"IFERROR(VLOOKUP(OdnośnikDoUcznia,Obecności_Styczeń[],19,FALSE),\"\")","v":""},{"$f":"IFERROR(VLOOKUP(OdnośnikDoUcznia,Obecności_Styczeń[],20,FALSE),\"\")","v":""},{"$f":"IFERROR(VLOOKUP(OdnośnikDoUcznia,Obecności_Styczeń[],21,FALSE),\"\")","v":""},{"$f":"IFERROR(VLOOKUP(OdnośnikDoUcznia,Obecności_Styczeń[],22,FALSE),\"\")","v":""},{"$f":"IFERROR(VLOOKUP(OdnośnikDoUcznia,Obecności_Styczeń[],23,FALSE),\"\")","v":""},{"$f":"IFERROR(VLOOKUP(OdnośnikDoUcznia,Obecności_Styczeń[],24,FALSE),\"\")","v":""},{"$f":"IFERROR(VLOOKUP(OdnośnikDoUcznia,Obecności_Styczeń[],25,FALSE),\"\")","v":""},{"$f":"IFERROR(VLOOKUP(OdnośnikDoUcznia,Obecności_Styczeń[],26,FALSE),\"\")","v":""},{"$f":"IFERROR(VLOOKUP(OdnośnikDoUcznia,Obecności_Styczeń[],27,FALSE),\"\")","v":""},{"$f":"IFERROR(VLOOKUP(OdnośnikDoUcznia,Obecności_Styczeń[],28,FALSE),\"\")","v":""},{"$f":"IFERROR(VLOOKUP(OdnośnikDoUcznia,Obecności_Styczeń[],29,FALSE),\"\")","v":""},{"$f":"IFERROR(VLOOKUP(OdnośnikDoUcznia,Obecności_Styczeń[],30,FALSE),\"\")","v":""},{"$f":"IFERROR(VLOOKUP(OdnośnikDoUcznia,Obecności_Styczeń[],31,FALSE),\"\")","v":""},{"$f":"IFERROR(VLOOKUP(OdnośnikDoUcznia,Obecności_Styczeń[],32,FALSE),\"\")","v":""},{"$f":"IFERROR(VLOOKUP(OdnośnikDoUcznia,Obecności_Styczeń[],33,FALSE),\"\")","v":""}]
[null,"Luty",1,2,3,4,5,6,7,8,9,10,11,12,13,14,15,16,17,18,19,20,21,22,23,24,25,26,27,28,29,null,null,{"$f":"COUNTIF($D29:$AH29,Kod_1)","v":0},{"$f":"COUNTIF($D29:$AH29,Kod_2)","v":0},{"$f":"COUNTIF($D29:$AH29,Kod_3)","v":0},{"$f":"COUNTIF($D29:$AH29,Kod_4)","v":0}]
[null,null,{"$f":"IFERROR(VLOOKUP(OdnośnikDoUcznia,Obecności_Luty[],3,FALSE),\"\")","v":""},{"$f":"IFERROR(VLOOKUP(OdnośnikDoUcznia,Obecności_Luty[],4,FALSE),\"\")","v":""},{"$f":"IFERROR(VLOOKUP(OdnośnikDoUcznia,Obecności_Luty[],5,FALSE),\"\")","v":""},{"$f":"IFERROR(VLOOKUP(OdnośnikDoUcznia,Obecności_Luty[],6,FALSE),\"\")","v":""},{"$f":"IFERROR(VLOOKUP(OdnośnikDoUcznia,Obecności_Luty[],7,FALSE),\"\")","v":""},{"$f":"IFERROR(VLOOKUP(OdnośnikDoUcznia,Obecności_Luty[],8,FALSE),\"\")","v":""},{"$f":"IFERROR(VLOOKUP(OdnośnikDoUcznia,Obecności_Luty[],9,FALSE),\"\")","v":""},{"$f":"IFERROR(VLOOKUP(OdnośnikDoUcznia,Obecności_Luty[],10,FALSE),\"\")","v":""},{"$f":"IFERROR(VLOOKUP(OdnośnikDoUcznia,Obecności_Luty[],11,FALSE),\"\")","v":""},{"$f":"IFERROR(VLOOKUP(OdnośnikDoUcznia,Obecności_Luty[],12,FALSE),\"\")","v":""},{"$f":"IFERROR(VLOOKUP(OdnośnikDoUcznia,Obecności_Luty[],13,FALSE),\"\")","v":""},{"$f":"IFERROR(VLOOKUP(OdnośnikDoUcznia,Obecności_Luty[],14,FALSE),\"\")","v":""},{"$f":"IFERROR(VLOOKUP(OdnośnikDoUcznia,Obecności_Luty[],15,FALSE),\"\")","v":""},{"$f":"IFERROR(VLOOKUP(OdnośnikDoUcznia,Obecności_Luty[],16,FALSE),\"\")","v":""},{"$f":"IFERROR(VLOOKUP(OdnośnikDoUcznia,Obecności_Luty[],17,FALSE),\"\")","v":""},{"$f":"IFERROR(VLOOKUP(OdnośnikDoUcznia,Obecności_Luty[],18,FALSE),\"\")","v":""},{"$f":"IFERROR(VLOOKUP(OdnośnikDoUcznia,Obecności_Luty[],19,FALSE),\"\")","v":""},{"$f":"IFERROR(VLOOKUP(OdnośnikDoUcznia,Obecności_Luty[],20,FALSE),\"\")","v":""},{"$f":"IFERROR(VLOOKUP(OdnośnikDoUcznia,Obecności_Luty[],21,FALSE),\"\")","v":""},{"$f":"IFERROR(VLOOKUP(OdnośnikDoUcznia,Obecności_Luty[],22,FALSE),\"\")","v":""},{"$f":"IFERROR(VLOOKUP(OdnośnikDoUcznia,Obecności_Luty[],23,FALSE),\"\")","v":""},{"$f":"IFERROR(VLOOKUP(OdnośnikDoUcznia,Obecności_Luty[],24,FALSE),\"\")","v":""},{"$f":"IFERROR(VLOOKUP(OdnośnikDoUcznia,Obecności_Luty[],25,FALSE),\"\")","v":""},{"$f":"IFERROR(VLOOKUP(OdnośnikDoUcznia,Obecności_Luty[],26,FALSE),\"\")","v":""},{"$f":"IFERROR(VLOOKUP(OdnośnikDoUcznia,Obecności_Luty[],27,FALSE),\"\")","v":""},{"$f":"IFERROR(VLOOKUP(OdnośnikDoUcznia,Obecności_Luty[],28,FALSE),\"\")","v":""},{"$f":"IFERROR(VLOOKUP(OdnośnikDoUcznia,Obecności_Luty[],29,FALSE),\"\")","v":""},{"$f":"IFERROR(VLOOKUP(OdnośnikDoUcznia,Obecności_Luty[],30,FALSE),\"\")","v":""},{"$f":"IFERROR(VLOOKUP(OdnośnikDoUcznia,Obecności_Luty[],31,FALSE),\"\")","v":""}]
[null,"Marzec",1,2,3,4,5,6,7,8,9,10,11,12,13,14,15,16,17,18,19,20,21,22,23,24,25,26,27,28,29,30,31,{"$f":"COUNTIF($D31:$AH31,Kod_1)","v":0},{"$f":"COUNTIF($D31:$AH31,Kod_2)","v":0},{"$f":"COUNTIF($D31:$AH31,Kod_3)","v":0},{"$f":"COUNTIF($D31:$AH31,Kod_4)","v":0}]
[null,null,{"$f":"IFERROR(VLOOKUP(OdnośnikDoUcznia,Obecności_Marzec[],3,FALSE),\"\")","v":""},{"$f":"IFERROR(VLOOKUP(OdnośnikDoUcznia,Obecności_Marzec[],4,FALSE),\"\")","v":""},{"$f":"IFERROR(VLOOKUP(OdnośnikDoUcznia,Obecności_Marzec[],5,FALSE),\"\")","v":""},{"$f":"IFERROR(VLOOKUP(OdnośnikDoUcznia,Obecności_Marzec[],6,FALSE),\"\")","v":""},{"$f":"IFERROR(VLOOKUP(OdnośnikDoUcznia,Obecności_Marzec[],7,FALSE),\"\")","v":""},{"$f":"IFERROR(VLOOKUP(OdnośnikDoUcznia,Obecności_Marzec[],8,FALSE),\"\")","v":""},{"$f":"IFERROR(VLOOKUP(OdnośnikDoUcznia,Obecności_Marzec[],9,FALSE),\"\")","v":""},{"$f":"IFERROR(VLOOKUP(OdnośnikDoUcznia,Obecności_Marzec[],10,FALSE),\"\")","v":""},{"$f":"IFERROR(VLOOKUP(OdnośnikDoUcznia,Obecności_Marzec[],11,FALSE),\"\")","v":""},{"$f":"IFERROR(VLOOKUP(OdnośnikDoUcznia,Obecności_Marzec[],12,FALSE),\"\")","v":""},{"$f":"IFERROR(VLOOKUP(OdnośnikDoUcznia,Obecności_Marzec[],13,FALSE),\"\")","v":""},{"$f":"IFERROR(VLOOKUP(OdnośnikDoUcznia,Obecności_Marzec[],14,FALSE),\"\")","v":""},{"$f":"IFERROR(VLOOKUP(OdnośnikDoUcznia,Obecności_Marzec[],15,FALSE),\"\")","v":""},{"$f":"IFERROR(VLOOKUP(OdnośnikDoUcznia,Obecności_Marzec[],16,FALSE),\"\")","v":""},{"$f":"IFERROR(VLOOKUP(OdnośnikDoUcznia,Obecności_Marzec[],17,FALSE),\"\")","v":""},{"$f":"IFERROR(VLOOKUP(OdnośnikDoUcznia,Obecności_Marzec[],18,FALSE),\"\")","v":""},{"$f":"IFERROR(VLOOKUP(OdnośnikDoUcznia,Obecności_Marzec[],19,FALSE),\"\")","v":""},{"$f":"IFERROR(VLOOKUP(OdnośnikDoUcznia,Obecności_Marzec[],20,FALSE),\"\")","v":""},{"$f":"IFERROR(VLOOKUP(OdnośnikDoUcznia,Obecności_Marzec[],21,FALSE),\"\")","v":""},{"$f":"IFERROR(VLOOKUP(OdnośnikDoUcznia,Obecności_Marzec[],22,FALSE),\"\")","v":""},{"$f":"IFERROR(VLOOKUP(OdnośnikDoUcznia,Obecności_Marzec[],23,FALSE),\"\")","v":""},{"$f":"IFERROR(VLOOKUP(OdnośnikDoUcznia,Obecności_Marzec[],24,FALSE),\"\")","v":""},{"$f":"IFERROR(VLOOKUP(OdnośnikDoUcznia,Obecności_Marzec[],25,FALSE),\"\")","v":""},{"$f":"IFERROR(VLOOKUP(OdnośnikDoUcznia,Obecności_Marzec[],26,FALSE),\"\")","v":""},{"$f":"IFERROR(VLOOKUP(OdnośnikDoUcznia,Obecności_Marzec[],27,FALSE),\"\")","v":""},{"$f":"IFERROR(VLOOKUP(OdnośnikDoUcznia,Obecności_Marzec[],28,FALSE),\"\")","v":""},{"$f":"IFERROR(VLOOKUP(OdnośnikDoUcznia,Obecności_Marzec[],29,FALSE),\"\")","v":""},{"$f":"IFERROR(VLOOKUP(OdnośnikDoUcznia,Obecności_Marzec[],30,FALSE),\"\")","v":""},{"$f":"IFERROR(VLOOKUP(OdnośnikDoUcznia,Obecności_Marzec[],31,FALSE),\"\")","v":""},{"$f":"IFERROR(VLOOKUP(OdnośnikDoUcznia,Obecności_Marzec[],32,FALSE),\"\")","v":""},{"$f":"IFERROR(VLOOKUP(OdnośnikDoUcznia,Obecności_Marzec[],33,FALSE),\"\")","v":""}]
[null,"Kwiecień",1,2,3,4,5,6,7,8,9,10,11,12,13,14,15,16,17,18,19,20,21,22,23,24,25,26,27,28,29,30,null,{"$f":"COUNTIF($D33:$AH33,Kod_1)","v":0},{"$f":"COUNTIF($D33:$AH33,Kod_2)","v":0},{"$f":"COUNTIF($D33:$AH33,Kod_3)","v":0},{"$f":"COUNTIF($D33:$AH33,Kod_4)","v":0}]
[null,null,{"$f":"IFERROR(VLOOKUP(OdnośnikDoUcznia,Obecności_Kwiecień[],3,FALSE),\"\")","v":""},{"$f":"IFERROR(VLOOKUP(OdnośnikDoUcznia,Obecności_Kwiecień[],4,FALSE),\"\")","v":""},{"$f":"IFERROR(VLOOKUP(OdnośnikDoUcznia,Obecności_Kwiecień[],5,FALSE),\"\")","v":""},{"$f":"IFERROR(VLOOKUP(OdnośnikDoUcznia,Obecności_Kwiecień[],6,FALSE),\"\")","v":""},{"$f":"IFERROR(VLOOKUP(OdnośnikDoUcznia,Obecności_Kwiecień[],7,FALSE),\"\")","v":""},{"$f":"IFERROR(VLOOKUP(OdnośnikDoUcznia,Obecności_Kwiecień[],8,FALSE),\"\")","v":""},{"$f":"IFERROR(VLOOKUP(OdnośnikDoUcznia,Obecności_Kwiecień[],9,FALSE),\"\")","v":""},{"$f":"IFERROR(VLOOKUP(OdnośnikDoUcznia,Obecności_Kwiecień[],10,FALSE),\"\")","v":""},{"$f":"IFERROR(VLOOKUP(OdnośnikDoUcznia,Obecności_Kwiecień[],11,FALSE),\"\")","v":""},{"$f":"IFERROR(VLOOKUP(OdnośnikDoUcznia,Obecności_Kwiecień[],12,FALSE),\"\")","v":""},{"$f":"IFERROR(VLOOKUP(OdnośnikDoUcznia,Obecności_Kwiecień[],13,FALSE),\"\")","v":""},{"$f":"IFERROR(VLOOKUP(OdnośnikDoUcznia,Obecności_Kwiecień[],14,FALSE),\"\")","v":""},{"$f":"IFERROR(VLOOKUP(OdnośnikDoUcznia,Obecności_Kwiecień[],15,FALSE),\"\")","v":""},{"$f":"IFERROR(VLOOKUP(OdnośnikDoUcznia,Obecności_Kwiecień[],16,FALSE),\"\")","v":""},{"$f":"IFERROR(VLOOKUP(OdnośnikDoUcznia,Obecności_Kwiecień[],17,FALSE),\"\")","v":""},{"$f":"IFERROR(VLOOKUP(OdnośnikDoUcznia,Obecności_Kwiecień[],18,FALSE),\"\")","v":""},{"$f":"IFERROR(VLOOKUP(OdnośnikDoUcznia,Obecności_Kwiecień[],19,FALSE),\"\")","v":""},{"$f":"IFERROR(VLOOKUP(OdnośnikDoUcznia,Obecności_Kwiecień[],20,FALSE),\"\")","v":""},{"$f":"IFERROR(VLOOKUP(OdnośnikDoUcznia,Obecności_Kwiecień[],21,FALSE),\"\")","v":""},{"$f":"IFERROR(VLOOKUP(OdnośnikDoUcznia,Obecności_Kwiecień[],22,FALSE),\"\")","v":""},{"$f":"IFERROR(VLOOKUP(OdnośnikDoUcznia,Obecności_Kwiecień[],23,FALSE),\"\")","v":""},{"$f":"IFERROR(VLOOKUP(OdnośnikDoUcznia,Obecności_Kwiecień[],24,FALSE),\"\")","v":""},{"$f":"IFERROR(VLOOKUP(OdnośnikDoUcznia,Obecności_Kwiecień[],25,FALSE),\"\")","v":""},{"$f":"IFERROR(VLOOKUP(OdnośnikDoUcznia,Obecności_Kwiecień[],26,FALSE),\"\")","v":""},{"$f":"IFERROR(VLOOKUP(OdnośnikDoUcznia,Obecności_Kwiecień[],27,FALSE),\"\")","v":""},{"$f":"IFERROR(VLOOKUP(OdnośnikDoUcznia,Obecności_Kwiecień[],28,FALSE),\"\")","v":""},{"$f":"IFERROR(VLOOKUP(OdnośnikDoUcznia,Obecności_Kwiecień[],29,FALSE),\"\")","v":""},{"$f":"IFERROR(VLOOKUP(OdnośnikDoUcznia,Obecności_Kwiecień[],30,FALSE),\"\")","v":""},{"$f":"IFERROR(VLOOKUP(OdnośnikDoUcznia,Obecności_Kwiecień[],31,FALSE),\"\")","v":""},{"$f":"IFERROR(VLOOKUP(OdnośnikDoUcznia,Obecności_Kwiecień[],32,FALSE),\"\")","v":""}]
[null,"Maj",1,2,3,4,5,6,7,8,9,10,11,12,13,14,15,16,17,18,19,20,21,22,23,24,25,26,27,28,29,30,31,{"$f":"COUNTIF($D35:$AH35,Kod_1)","v":0},{"$f":"COUNTIF($D35:$AH35,Kod_2)","v":0},{"$f":"COUNTIF($D35:$AH35,Kod_3)","v":0},{"$f":"COUNTIF($D35:$AH35,Kod_4)","v":0}]
[null,null,{"$f":"IFERROR(VLOOKUP(OdnośnikDoUcznia,Obecności_Maj[],3,FALSE),\"\")","v":""},{"$f":"IFERROR(VLOOKUP(OdnośnikDoUcznia,Obecności_Maj[],4,FALSE),\"\")","v":""},{"$f":"IFERROR(VLOOKUP(OdnośnikDoUcznia,Obecności_Maj[],5,FALSE),\"\")","v":""},{"$f":"IFERROR(VLOOKUP(OdnośnikDoUcznia,Obecności_Maj[],6,FALSE),\"\")","v":""},{"$f":"IFERROR(VLOOKUP(OdnośnikDoUcznia,Obecności_Maj[],7,FALSE),\"\")","v":""},{"$f":"IFERROR(VLOOKUP(OdnośnikDoUcznia,Obecności_Maj[],8,FALSE),\"\")","v":""},{"$f":"IFERROR(VLOOKUP(OdnośnikDoUcznia,Obecności_Maj[],9,FALSE),\"\")","v":""},{"$f":"IFERROR(VLOOKUP(OdnośnikDoUcznia,Obecności_Maj[],10,FALSE),\"\")","v":""},{"$f":"IFERROR(VLOOKUP(OdnośnikDoUcznia,Obecności_Maj[],11,FALSE),\"\")","v":""},{"$f":"IFERROR(VLOOKUP(OdnośnikDoUcznia,Obecności_Maj[],12,FALSE),\"\")","v":""},{"$f":"IFERROR(VLOOKUP(OdnośnikDoUcznia,Obecności_Maj[],13,FALSE),\"\")","v":""},{"$f":"IFERROR(VLOOKUP(OdnośnikDoUcznia,Obecności_Maj[],14,FALSE),\"\")","v":""},{"$f":"IFERROR(VLOOKUP(OdnośnikDoUcznia,Obecności_Maj[],15,FALSE),\"\")","v":""},{"$f":"IFERROR(VLOOKUP(OdnośnikDoUcznia,Obecności_Maj[],16,FALSE),\"\")","v":""},{"$f":"IFERROR(VLOOKUP(OdnośnikDoUcznia,Obecności_Maj[],17,FALSE),\"\")","v":""},{"$f":"IFERROR(VLOOKUP(OdnośnikDoUcznia,Obecności_Maj[],18,FALSE),\"\")","v":""},{"$f":"IFERROR(VLOOKUP(OdnośnikDoUcznia,Obecności_Maj[],19,FALSE),\"\")","v":""},{"$f":"IFERROR(VLOOKUP(OdnośnikDoUcznia,Obecności_Maj[],20,FALSE),\"\")","v":""},{"$f":"IFERROR(VLOOKUP(OdnośnikDoUcznia,Obecności_Maj[],21,FALSE),\"\")","v":""},{"$f":"IFERROR(VLOOKUP(OdnośnikDoUcznia,Obecności_Maj[],22,FALSE),\"\")","v":""},{"$f":"IFERROR(VLOOKUP(OdnośnikDoUcznia,Obecności_Maj[],23,FALSE),\"\")","v":""},{"$f":"IFERROR(VLOOKUP(OdnośnikDoUcznia,Obecności_Maj[],24,FALSE),\"\")","v":""},{"$f":"IFERROR(VLOOKUP(OdnośnikDoUcznia,Obecności_Maj[],25,FALSE),\"\")","v":""},{"$f":"IFERROR(VLOOKUP(OdnośnikDoUcznia,Obecności_Maj[],26,FALSE),\"\")","v":""},{"$f":"IFERROR(VLOOKUP(OdnośnikDoUcznia,Obecności_Maj[],27,FALSE),\"\")","v":""},{"$f":"IFERROR(VLOOKUP(OdnośnikDoUcznia,Obecności_Maj[],28,FALSE),\"\")","v":""},{"$f":"IFERROR(VLOOKUP(OdnośnikDoUcznia,Obecności_Maj[],29,FALSE),\"\")","v":""},{"$f":"IFERROR(VLOOKUP(OdnośnikDoUcznia,Obecności_Maj[],30,FALSE),\"\")","v":""},{"$f":"IFERROR(VLOOKUP(OdnośnikDoUcznia,Obecności_Maj[],31,FALSE),\"\")","v":""},{"$f":"IFERROR(VLOOKUP(OdnośnikDoUcznia,Obecności_Maj[],32,FALSE),\"\")","v":""},{"$f":"IFERROR(VLOOKUP(OdnośnikDoUcznia,Obecności_Maj[],33,FALSE),\"\")","v":""}]
[null,"Czerwiec",1,2,3,4,5,6,7,8,9,10,11,12,13,14,15,16,17,18,19,20,21,22,23,24,25,26,27,28,29,30,null,{"$f":"COUNTIF($D37:$AH37,Kod_1)","v":0},{"$f":"COUNTIF($D37:$AH37,Kod_2)","v":0},{"$f":"COUNTIF($D37:$AH37,Kod_3)","v":0},{"$f":"COUNTIF($D37:$AH37,Kod_4)","v":0}]
[null,null,{"$f":"IFERROR(VLOOKUP(OdnośnikDoUcznia,Obecności_Czerwiec[],3,FALSE),\"\")","v":""},{"$f":"IFERROR(VLOOKUP(OdnośnikDoUcznia,Obecności_Czerwiec[],4,FALSE),\"\")","v":""},{"$f":"IFERROR(VLOOKUP(OdnośnikDoUcznia,Obecności_Czerwiec[],5,FALSE),\"\")","v":""},{"$f":"IFERROR(VLOOKUP(OdnośnikDoUcznia,Obecności_Czerwiec[],6,FALSE),\"\")","v":""},{"$f":"IFERROR(VLOOKUP(OdnośnikDoUcznia,Obecności_Czerwiec[],7,FALSE),\"\")","v":""},{"$f":"IFERROR(VLOOKUP(OdnośnikDoUcznia,Obecności_Czerwiec[],8,FALSE),\"\")","v":""},{"$f":"IFERROR(VLOOKUP(OdnośnikDoUcznia,Obecności_Czerwiec[],9,FALSE),\"\")","v":""},{"$f":"IFERROR(VLOOKUP(OdnośnikDoUcznia,Obecności_Czerwiec[],10,FALSE),\"\")","v":""},{"$f":"IFERROR(VLOOKUP(OdnośnikDoUcznia,Obecności_Czerwiec[],11,FALSE),\"\")","v":""},{"$f":"IFERROR(VLOOKUP(OdnośnikDoUcznia,Obecności_Czerwiec[],12,FALSE),\"\")","v":""},{"$f":"IFERROR(VLOOKUP(OdnośnikDoUcznia,Obecności_Czerwiec[],13,FALSE),\"\")","v":""},{"$f":"IFERROR(VLOOKUP(OdnośnikDoUcznia,Obecności_Czerwiec[],14,FALSE),\"\")","v":""},{"$f":"IFERROR(VLOOKUP(OdnośnikDoUcznia,Obecności_Czerwiec[],15,FALSE),\"\")","v":""},{"$f":"IFERROR(VLOOKUP(OdnośnikDoUcznia,Obecności_Czerwiec[],16,FALSE),\"\")","v":""},{"$f":"IFERROR(VLOOKUP(OdnośnikDoUcznia,Obecności_Czerwiec[],17,FALSE),\"\")","v":""},{"$f":"IFERROR(VLOOKUP(OdnośnikDoUcznia,Obecności_Czerwiec[],18,FALSE),\"\")","v":""},{"$f":"IFERROR(VLOOKUP(OdnośnikDoUcznia,Obecności_Czerwiec[],19,FALSE),\"\")","v":""},{"$f":"IFERROR(VLOOKUP(OdnośnikDoUcznia,Obecności_Czerwiec[],20,FALSE),\"\")","v":""},{"$f":"IFERROR(VLOOKUP(OdnośnikDoUcznia,Obecności_Czerwiec[],21,FALSE),\"\")","v":""},{"$f":"IFERROR(VLOOKUP(OdnośnikDoUcznia,Obecności_Czerwiec[],22,FALSE),\"\")","v":""},{"$f":"IFERROR(VLOOKUP(OdnośnikDoUcznia,Obecności_Czerwiec[],23,FALSE),\"\")","v":""},{"$f":"IFERROR(VLOOKUP(OdnośnikDoUcznia,Obecności_Czerwiec[],24,FALSE),\"\")","v":""},{"$f":"IFERROR(VLOOKUP(OdnośnikDoUcznia,Obecności_Czerwiec[],25,FALSE),\"\")","v":""},{"$f":"IFERROR(VLOOKUP(OdnośnikDoUcznia,Obecności_Czerwiec[],26,FALSE),\"\")","v":""},{"$f":"IFERROR(VLOOKUP(OdnośnikDoUcznia,Obecności_Czerwiec[],27,FALSE),\"\")","v":""},{"$f":"IFERROR(VLOOKUP(OdnośnikDoUcznia,Obecności_Czerwiec[],28,FALSE),\"\")","v":""},{"$f":"IFERROR(VLOOKUP(OdnośnikDoUcznia,Obecności_Czerwiec[],29,FALSE),\"\")","v":""},{"$f":"IFERROR(VLOOKUP(OdnośnikDoUcznia,Obecności_Czerwiec[],30,FALSE),\"\")","v":""},{"$f":"IFERROR(VLOOKUP(OdnośnikDoUcznia,Obecności_Czerwiec[],31,FALSE),\"\")","v":""},{"$f":"IFERROR(VLOOKUP(OdnośnikDoUcznia,Obecności_Czerwiec[],32,FALSE),\"\")","v":""}]
[null,"Lipiec",1,2,3,4,5,6,7,8,9,10,11,12,13,14,15,16,17,18,19,20,21,22,23,24,25,26,27,28,29,30,31,{"$f":"COUNTIF($D39:$AH39,Kod_1)","v":0},{"$f":"COUNTIF($D39:$AH39,Kod_2)","v":0},{"$f":"COUNTIF($D39:$AH39,Kod_3)","v":0},{"$f":"COUNTIF($D39:$AH39,Kod_4)","v":0}]
[null,null,{"$f":"IFERROR(VLOOKUP(OdnośnikDoUcznia,Obecności_Lipiec[],3,FALSE),\"\")","v":""},{"$f":"IFERROR(VLOOKUP(OdnośnikDoUcznia,Obecności_Lipiec[],4,FALSE),\"\")","v":""},{"$f":"IFERROR(VLOOKUP(OdnośnikDoUcznia,Obecności_Lipiec[],5,FALSE),\"\")","v":""},{"$f":"IFERROR(VLOOKUP(OdnośnikDoUcznia,Obecności_Lipiec[],6,FALSE),\"\")","v":""},{"$f":"IFERROR(VLOOKUP(OdnośnikDoUcznia,Obecności_Lipiec[],7,FALSE),\"\")","v":""},{"$f":"IFERROR(VLOOKUP(OdnośnikDoUcznia,Obecności_Lipiec[],8,FALSE),\"\")","v":""},{"$f":"IFERROR(VLOOKUP(OdnośnikDoUcznia,Obecności_Lipiec[],9,FALSE),\"\")","v":""},{"$f":"IFERROR(VLOOKUP(OdnośnikDoUcznia,Obecności_Lipiec[],10,FALSE),\"\")","v":""},{"$f":"IFERROR(VLOOKUP(OdnośnikDoUcznia,Obecności_Lipiec[],11,FALSE),\"\")","v":""},{"$f":"IFERROR(VLOOKUP(OdnośnikDoUcznia,Obecności_Lipiec[],12,FALSE),\"\")","v":""},{"$f":"IFERROR(VLOOKUP(OdnośnikDoUcznia,Obecności_Lipiec[],13,FALSE),\"\")","v":""},{"$f":"IFERROR(VLOOKUP(OdnośnikDoUcznia,Obecności_Lipiec[],14,FALSE),\"\")","v":""},{"$f":"IFERROR(VLOOKUP(OdnośnikDoUcznia,Obecności_Lipiec[],15,FALSE),\"\")","v":""},{"$f":"IFERROR(VLOOKUP(OdnośnikDoUcznia,Obecności_Lipiec[],16,FALSE),\"\")","v":""},{"$f":"IFERROR(VLOOKUP(OdnośnikDoUcznia,Obecności_Lipiec[],17,FALSE),\"\")","v":""},{"$f":"IFERROR(VLOOKUP(OdnośnikDoUcznia,Obecności_Lipiec[],18,FALSE),\"\")","v":""},{"$f":"IFERROR(VLOOKUP(OdnośnikDoUcznia,Obecności_Lipiec[],19,FALSE),\"\")","v":""},{"$f":"IFERROR(VLOOKUP(OdnośnikDoUcznia,Obecności_Lipiec[],20,FALSE),\"\")","v":""},{"$f":"IFERROR(VLOOKUP(OdnośnikDoUcznia,Obecności_Lipiec[],21,FALSE),\"\")","v":""},{"$f":"IFERROR(VLOOKUP(OdnośnikDoUcznia,Obecności_Lipiec[],22,FALSE),\"\")","v":""},{"$f":"IFERROR(VLOOKUP(OdnośnikDoUcznia,Obecności_Lipiec[],23,FALSE),\"\")","v":""},{"$f":"IFERROR(VLOOKUP(OdnośnikDoUcznia,Obecności_Lipiec[],24,FALSE),\"\")","v":""},{"$f":"IFERROR(VLOOKUP(OdnośnikDoUcznia,Obecności_Lipiec[],25,FALSE),\"\")","v":""},{"$f":"IFERROR(VLOOKUP(OdnośnikDoUcznia,Obecności_Lipiec[],26,FALSE),\"\")","v":""},{"$f":"IFERROR(VLOOKUP(OdnośnikDoUcznia,Obecności_Lipiec[],27,FALSE),\"\")","v":""},{"$f":"IFERROR(VLOOKUP(OdnośnikDoUcznia,Obecności_Lipiec[],28,FALSE),\"\")","v":""},{"$f":"IFERROR(VLOOKUP(OdnośnikDoUcznia,Obecności_Lipiec[],29,FALSE),\"\")","v":""},{"$f":"IFERROR(VLOOKUP(OdnośnikDoUcznia,Obecności_Lipiec[],30,FALSE),\"\")","v":""},{"$f":"IFERROR(VLOOKUP(OdnośnikDoUcznia,Obecności_Lipiec[],31,FALSE),\"\")","v":""},{"$f":"IFERROR(VLOOKUP(OdnośnikDoUcznia,Obecności_Lipiec[],32,FALSE),\"\")","v":""},{"$f":"IFERROR(VLOOKUP(OdnośnikDoUcznia,Obecności_Lipiec[],33,FALSE),\"\")","v":""}]
[{"$nulls":30},"Sumy",null,null,{"$f":"SUM(AH16:AH39)","v":2},{"$f":"SUM(AI16:AI39)","v":1},{"$f":"SUM(AJ16:AJ39)","v":0},{"$f":"SUM(AK16:AK39)","v":19}]